BODY,BODY NAME,SUPPLIER CODE,SUPPLIER NAME,TRANSACTION NUMBER,INVOICE DATE,THEIR REF,NARR1,PAID DATE,VAT AMOUNT,EXCLUSIVE AMOUNT,INCLUSIVE AMOUNT,EXPENSE AREA,EXPENSE TYPE,EXPENSE CODE
http://statistics.data.gov.uk/id/local-authority/12UE,Huntingdonshire District Council,201329,TRINITY FREE CHURCH,79630,28/04/2023,APJ000266,20/04/2023,07/07/2023,0,-58.73,-58.73,Paymaster Account,Main Account,10080
http://statistics.data.gov.uk/id/local-authority/12UE,Huntingdonshire District Council,201329,TRINITY FREE CHURCH,79630,28/04/2023,APJ000266,27/04/2023,07/07/2023,0,-58.73,-58.73,Paymaster Account,Main Account,10080
http://statistics.data.gov.uk/id/local-authority/12UE,Huntingdonshire District Council,201329,TRINITY FREE CHURCH,79630,28/04/2023,APJ000266,20/04/2023,07/07/2023,0,-58.73,-58.73,Paymaster Account,Main Account,10080
http://statistics.data.gov.uk/id/local-authority/12UE,Huntingdonshire District Council,201329,TRINITY FREE CHURCH,79630,28/04/2023,APJ000266,27/04/2023,07/07/2023,0,-58.73,-58.73,Paymaster Account,Main Account,10080
http://statistics.data.gov.uk/id/local-authority/12UE,Huntingdonshire District Council,201329,TRINITY FREE CHURCH,79630,28/04/2023,APJ000266,20/04/2023,07/07/2023,0,-175,-175,Paymaster Account,Main Account,10080
http://statistics.data.gov.uk/id/local-authority/12UE,Huntingdonshire District Council,201329,TRINITY FREE CHURCH,79630,28/04/2023,APJ000266,27/04/2023,07/07/2023,0,-175,-175,Paymaster Account,Main Account,10080
http://statistics.data.gov.uk/id/local-authority/12UE,Huntingdonshire District Council,201329,TRINITY FREE CHURCH,79630,28/04/2023,APJ000266,20/04/2023,07/07/2023,0,-175,-175,Paymaster Account,Main Account,10080
http://statistics.data.gov.uk/id/local-authority/12UE,Huntingdonshire District Council,201329,TRINITY FREE CHURCH,79630,28/04/2023,APJ000266,27/04/2023,07/07/2023,0,-175,-175,Paymaster Account,Main Account,10080
http://statistics.data.gov.uk/id/local-authority/12UE,Huntingdonshire District Council,200181,CFL ESTATE SERVICES CFL ESTATE SERVICES,83248,03/07/2023,HDC146,Bridge Place CP Sale Work,27/07/2023,0,256,256,Bridge Place Car Park Const,Consultancy Fees,62400
http://statistics.data.gov.uk/id/local-authority/12UE,Huntingdonshire District Council,202788,HOUGHTON & SON LIMITED,86258,24/04/2023,26815,REDACTED,21/09/2023,0,19529.28,19529.28,Disables Facilities Grants,Mandatory Grants,64601
http://statistics.data.gov.uk/id/local-authority/12UE,Huntingdonshire District Council,202815,WESTONE HOUSING LTD,85725,14/08/2023,J004164,REDACTED,07/09/2023,0,12547.71,12547.71,Disables Facilities Grants,Mandatory Grants,64601
http://statistics.data.gov.uk/id/local-authority/12UE,Huntingdonshire District Council,202815,WESTONE HOUSING LTD,84355,23/05/2023,J002795,REDACTED,10/08/2023,0,10960.96,10960.96,Disables Facilities Grants,Mandatory Grants,64601
http://statistics.data.gov.uk/id/local-authority/12UE,Huntingdonshire District Council,202788,HOUGHTON & SON LIMITED,85732,28/04/2023,26824,REDACTED,07/09/2023,0,9535.2,9535.2,Disables Facilities Grants,Mandatory Grants,64601
http://statistics.data.gov.uk/id/local-authority/12UE,Huntingdonshire District Council,202815,WESTONE HOUSING LTD,85739,15/08/2023,J003906,REDACTED,07/09/2023,0,9026.53,9026.53,Disables Facilities Grants,Mandatory Grants,64601
http://statistics.data.gov.uk/id/local-authority/12UE,Huntingdonshire District Council,202815,WESTONE HOUSING LTD,84689,27/07/2023,J004186,REDACTED,17/08/2023,0,8726.76,8726.76,Disables Facilities Grants,Mandatory Grants,64601
http://statistics.data.gov.uk/id/local-authority/12UE,Huntingdonshire District Council,202489,DIRECT HEALTHCARE GROUP LTD,84153,31/05/2023,GB02CSI031809,REDACTED,10/08/2023,0,8657,8657,Disables Facilities Grants,Mandatory Grants,64601
http://statistics.data.gov.uk/id/local-authority/12UE,Huntingdonshire District Council,202815,WESTONE HOUSING LTD,83995,28/07/2023,J003558,REDACTED,17/08/2023,0,8288.96,8288.96,Disables Facilities Grants,Mandatory Grants,64601
http://statistics.data.gov.uk/id/local-authority/12UE,Huntingdonshire District Council,202815,WESTONE HOUSING LTD,85892,31/07/2023, J004491,PSH HS\PST\HCN\14 Level Access Shower,14/09/2023,0,8248.81,8248.81,Disables Facilities Grants,Mandatory Grants,64601
http://statistics.data.gov.uk/id/local-authority/12UE,Huntingdonshire District Council,202394,FOSTER BUILDING SERVICES LTD,83977,20/06/2023,4716,REDACTED,03/08/2023,0,7995.14,7995.14,Disables Facilities Grants,Mandatory Grants,64601
http://statistics.data.gov.uk/id/local-authority/12UE,Huntingdonshire District Council,202788,HOUGHTON & SON LIMITED,85899,31/08/2023,27772,REDACTED,14/09/2023,0,7577.2,7577.2,Disables Facilities Grants,Mandatory Grants,64601
http://statistics.data.gov.uk/id/local-authority/12UE,Huntingdonshire District Council,202815,WESTONE HOUSING LTD,86290,09/08/2023,J004203,REDACTED,21/09/2023,0,7166.44,7166.44,Disables Facilities Grants,Mandatory Grants,64601
http://statistics.data.gov.uk/id/local-authority/12UE,Huntingdonshire District Council,202815,WESTONE HOUSING LTD,85843,24/05/2023,3003858,CHIA LAS-HS\PST\HCN\14428,14/09/2023,0,7092.65,7092.65,Disables Facilities Grants,Mandatory Grants,64601
http://statistics.data.gov.uk/id/local-authority/12UE,Huntingdonshire District Council,202815,WESTONE HOUSING LTD,82749,09/05/2023,J003718,REDACTED,07/07/2023,0,7090.13,7090.13,Disables Facilities Grants,Mandatory Grants,64601
http://statistics.data.gov.uk/id/local-authority/12UE,Huntingdonshire District Council,202815,WESTONE HOUSING LTD,83913,23/05/2023,J003576,REDACTED,03/08/2023,0,6922.55,6922.55,Disables Facilities Grants,Mandatory Grants,64601
http://statistics.data.gov.uk/id/local-authority/12UE,Huntingdonshire District Council,202788,HOUGHTON & SON LIMITED,86259,24/04/2023,26816,REDACTED,21/09/2023,0,6548,6548,Disables Facilities Grants,Mandatory Grants,64601
http://statistics.data.gov.uk/id/local-authority/12UE,Huntingdonshire District Council,202394,FOSTER BUILDING SERVICES LTD,86286,09/08/2023,4813,REDACTED,21/09/2023,0,6411.42,6411.42,Disables Facilities Grants,Mandatory Grants,64601
http://statistics.data.gov.uk/id/local-authority/12UE,Huntingdonshire District Council,202815,WESTONE HOUSING LTD,84690,14/08/2023,J003789,REDACTED,07/09/2023,0,6317.43,6317.43,Disables Facilities Grants,Mandatory Grants,64601
http://statistics.data.gov.uk/id/local-authority/12UE,Huntingdonshire District Council,202815,WESTONE HOUSING LTD,82821,28/03/2023,J003626,REDACTED,10/07/2023,0,6271.97,6271.97,Disables Facilities Grants,Mandatory Grants,64601
http://statistics.data.gov.uk/id/local-authority/12UE,Huntingdonshire District Council,202815,WESTONE HOUSING LTD,84608,09/08/2023,J004223,REDACTED,31/08/2023,0,5889.08,5889.08,Disables Facilities Grants,Mandatory Grants,64601
http://statistics.data.gov.uk/id/local-authority/12UE,Huntingdonshire District Council,202815,WESTONE HOUSING LTD,83994,05/04/2023,J003666,REDACTED,03/08/2023,0,5723.81,5723.81,Disables Facilities Grants,Mandatory Grants,64601
http://statistics.data.gov.uk/id/local-authority/12UE,Huntingdonshire District Council,202489,DIRECT HEALTHCARE GROUP LTD,83996,31/07/2023,GB02CSI035225,REDACTED,24/08/2023,0,5678,5678,Disables Facilities Grants,Mandatory Grants,64601
http://statistics.data.gov.uk/id/local-authority/12UE,Huntingdonshire District Council,202394,FOSTER BUILDING SERVICES LTD,85726,01/08/2023,4843,REDACTED,07/09/2023,0,5576.22,5576.22,Disables Facilities Grants,Mandatory Grants,64601
http://statistics.data.gov.uk/id/local-authority/12UE,Huntingdonshire District Council,202788,HOUGHTON & SON LIMITED,83468,14/07/2023,26914,REDACTED,03/08/2023,0,5549.6,5549.6,Disables Facilities Grants,Mandatory Grants,64601
http://statistics.data.gov.uk/id/local-authority/12UE,Huntingdonshire District Council,202787,PARK LANE PLUMBING AND HEATING LTD,83976,06/06/2023,1236,REDACTED,03/08/2023,0,5511.8,5511.8,Disables Facilities Grants,Mandatory Grants,64601
http://statistics.data.gov.uk/id/local-authority/12UE,Huntingdonshire District Council,202787,PARK LANE PLUMBING AND HEATING LTD,82816,16/05/2023,1234,REDACTED,10/07/2023,0,5442.4,5442.4,Disables Facilities Grants,Mandatory Grants,64601
http://statistics.data.gov.uk/id/local-authority/12UE,Huntingdonshire District Council,202788,HOUGHTON & SON LIMITED,83725,22/07/2023,26948,REDACTED,10/08/2023,0,5354.8,5354.8,Disables Facilities Grants,Mandatory Grants,64601
http://statistics.data.gov.uk/id/local-authority/12UE,Huntingdonshire District Council,202815,WESTONE HOUSING LTD,82729,13/12/2022,J002835,REDACTED,07/07/2023,0,5143.4,5143.4,Disables Facilities Grants,Mandatory Grants,64601
http://statistics.data.gov.uk/id/local-authority/12UE,Huntingdonshire District Council,202787,PARK LANE PLUMBING AND HEATING LTD,82945,04/03/2023,1222,REDACTED,13/07/2023,0,5110,5110,Disables Facilities Grants,Mandatory Grants,64601
http://statistics.data.gov.uk/id/local-authority/12UE,Huntingdonshire District Council,202788,HOUGHTON & SON LIMITED,86358,22/07/2023,26949,REDACTED,21/09/2023,0,4708.8,4708.8,Disables Facilities Grants,Mandatory Grants,64601
http://statistics.data.gov.uk/id/local-authority/12UE,Huntingdonshire District Council,202815,WESTONE HOUSING LTD,81880,14/06/2023,J002778,REDACTED,07/07/2023,0,4550,4550,Disables Facilities Grants,Mandatory Grants,64601
http://statistics.data.gov.uk/id/local-authority/12UE,Huntingdonshire District Council,202787,PARK LANE PLUMBING AND HEATING LTD,85945,17/07/2023,1242,REDACTED,14/09/2023,0,4315.8,4315.8,Disables Facilities Grants,Mandatory Grants,64601
http://statistics.data.gov.uk/id/local-authority/12UE,Huntingdonshire District Council,203274,Climatise Solutions Ltd,83997,30/07/2023,1085,REDACTED,03/08/2023,0,4147.92,4147.92,Disables Facilities Grants,Mandatory Grants,64601
http://statistics.data.gov.uk/id/local-authority/12UE,Huntingdonshire District Council,202489,DIRECT HEALTHCARE GROUP LTD,83709,13/07/2023,GB02CSI034222,REDACTED,03/08/2023,0,3619,3619,Disables Facilities Grants,Mandatory Grants,64601
http://statistics.data.gov.uk/id/local-authority/12UE,Huntingdonshire District Council,202787,PARK LANE PLUMBING AND HEATING LTD,83467,08/04/2023,1226,REDACTED,24/07/2023,0,3397.8,3397.8,Disables Facilities Grants,Mandatory Grants,64601
http://statistics.data.gov.uk/id/local-authority/12UE,Huntingdonshire District Council,200017,ACCESS & AUTOMATION LTD ACCESS & AUTOMATION LTD,82686,16/06/2023,8555,REDACTED,07/07/2023,0,2790,2790,Disables Facilities Grants,Mandatory Grants,64601
http://statistics.data.gov.uk/id/local-authority/12UE,Huntingdonshire District Council,202787,PARK LANE PLUMBING AND HEATING LTD,86676,06/06/2023,1237,REDACTED,28/09/2023,0,2704.8,2704.8,Disables Facilities Grants,Mandatory Grants,64601
http://statistics.data.gov.uk/id/local-authority/12UE,Huntingdonshire District Council,203052,Dolphin Lifts Midland Limited,82953,09/06/2023,50642,REDACTED,13/07/2023,0,2600,2600,Disables Facilities Grants,Mandatory Grants,64601
http://statistics.data.gov.uk/id/local-authority/12UE,Huntingdonshire District Council,201124,ANDY KNOTT CONSTRUCTION,84490,19/07/2023,4930,REDACTED,14/08/2023,0,1874.4,1874.4,Disables Facilities Grants,Mandatory Grants,64601
http://statistics.data.gov.uk/id/local-authority/12UE,Huntingdonshire District Council,200516,M WATSON CONSTRUCTION LTD M WATSON CONSTRUCTION LTD,82685,30/06/2023,25713,REDACTED,21/07/2023,0,1182.78,1182.78,Disables Facilities Grants,Mandatory Grants,64601
http://statistics.data.gov.uk/id/local-authority/12UE,Huntingdonshire District Council,202866,NORTHDOWN PROPERTY SERVICES (NPS) LTD,82687,28/04/2023,INV-2166,REDACTED,07/07/2023,0,1014,1014,Disables Facilities Grants,Mandatory Grants,64601
http://statistics.data.gov.uk/id/local-authority/12UE,Huntingdonshire District Council,202394,FOSTER BUILDING SERVICES LTD,86239,09/08/2023,4812,REDACTED,21/09/2023,0,710.8,710.8,Disables Facilities Grants,Mandatory Grants,64601
http://statistics.data.gov.uk/id/local-authority/12UE,Huntingdonshire District Council,203342,REDACTED,86345,17/09/2023,REDACTED,REDACTED,21/09/2023,0,685,685,Disables Facilities Grants,Mandatory Grants,64601
http://statistics.data.gov.uk/id/local-authority/12UE,Huntingdonshire District Council,200516,M WATSON CONSTRUCTION LTD M WATSON CONSTRUCTION LTD,82822,30/06/2023,25714,REDACTED,21/07/2023,0,442.3,442.3,Disables Facilities Grants,Mandatory Grants,64601
http://statistics.data.gov.uk/id/local-authority/12UE,Huntingdonshire District Council,200542,MIRAMAR ENGINEERING LTD MIRAMAR ENGINEERING LTD,83202,05/07/2023,11322,OLH Replace Pump Boosters,27/07/2023,1543.08,7715.4,9258.48,Leisure Cents - Future Improve,Maintenance - Building,60201
http://statistics.data.gov.uk/id/local-authority/12UE,Huntingdonshire District Council,202742,NFC Property Maintenance Ltd,82846,15/05/2023,960,OLSI Downpipes & Roof Repairs,10/07/2023,720,3600,4320,Leisure Cents - Future Improve,Maintenance - Building,60201
http://statistics.data.gov.uk/id/local-authority/12UE,Huntingdonshire District Council,200542,MIRAMAR ENGINEERING LTD MIRAMAR ENGINEERING LTD,83240,11/07/2023,11401,OLSN Replace AHU Pump,03/08/2023,604.48,3022.4,3626.88,Leisure Cents - Future Improve,Maintenance - Building,60201
http://statistics.data.gov.uk/id/local-authority/12UE,Huntingdonshire District Council,200674,REPLAY MAINTENANCE LTD REPLAY MAINTENANCE LTD,82518,22/05/2023,1004,3G Repair & Maintenance,03/07/2023,459,2295,2754,Leisure Cents - Future Improve,Maintenance - Building,60201
http://statistics.data.gov.uk/id/local-authority/12UE,Huntingdonshire District Council,202742,NFC Property Maintenance Ltd,82629,27/06/2023,1002,OLSI Remove Wallpaper & Paint Gym Lounge,21/07/2023,295,1475,1770,Leisure Cents - Future Improve,Maintenance - Building,60201
http://statistics.data.gov.uk/id/local-authority/12UE,Huntingdonshire District Council,200427,J A K  SYSTEMS LTD J A K SYSTEMS LTD,82091,22/06/2023,16529,Cyclical/Planned Maintenance,13/07/2023,188.27,941.34,1129.61,Leisure Cents - Future Improve,Maintenance - Building,60201
http://statistics.data.gov.uk/id/local-authority/12UE,Huntingdonshire District Council,202742,NFC Property Maintenance Ltd,82625,19/06/2023,992,OL Maintenance,13/07/2023,122,610,732,Leisure Cents - Future Improve,Maintenance - Building,60201
http://statistics.data.gov.uk/id/local-authority/12UE,Huntingdonshire District Council,200542,MIRAMAR ENGINEERING LTD MIRAMAR ENGINEERING LTD,81976,19/06/2023,11211,OLSN Remedial Works - Boiler Service,13/07/2023,119.6,598,717.6,Leisure Cents - Future Improve,Maintenance - Building,60201
http://statistics.data.gov.uk/id/local-authority/12UE,Huntingdonshire District Council,200542,MIRAMAR ENGINEERING LTD MIRAMAR ENGINEERING LTD,81979,19/06/2023,11213,OLSN Remedial Works - Boiler Service,13/07/2023,68.64,343.2,411.84,Leisure Cents - Future Improve,Maintenance - Building,60201
http://statistics.data.gov.uk/id/local-authority/12UE,Huntingdonshire District Council,202742,NFC Property Maintenance Ltd,84540,22/06/2023,994,OLH REDOCRATIONS,17/08/2023,466,2330,2796,Leisure Cents - Future Improve,Maintenance - Building,60201
http://statistics.data.gov.uk/id/local-authority/12UE,Huntingdonshire District Council,200430,J P LENNARD LTD J P LENNARD LTD,82988,03/07/2023,184958,OLH Sports Equipment,27/07/2023,85.27,426.36,511.63,Leisure Cents - Future Improve,Maintenance - Building,60201
http://statistics.data.gov.uk/id/local-authority/12UE,Huntingdonshire District Council,200891,RAFFERTY LIGHTNING PROTECTION LTD,84828,10/08/2023,4857,facilities lights,31/08/2023,198,990,1188,Leisure Cents - Future Improve,Maintenance - Building,60201
http://statistics.data.gov.uk/id/local-authority/12UE,Huntingdonshire District Council,203258,Sven Saunas Limited,84481,11/07/2023,SI-190258,OLSTNTS SAUNA,14/08/2023,410.25,2051.27,2461.52,Leisure Cents - Future Improve,Maintenance - Building,60201
http://statistics.data.gov.uk/id/local-authority/12UE,Huntingdonshire District Council,202540,THOMPSON AUDIO VISUAL COMMUNICATIONS LTD,86385,30/08/2023,22426,OLSN Defects From Recent Service,21/09/2023,171.12,855.58,1026.7,Leisure Cents - Future Improve,Maintenance - Building,60201
http://statistics.data.gov.uk/id/local-authority/12UE,Huntingdonshire District Council,200494,LIFE FITNESS UK LTD LIFE FITNESS UK LTD,83985,28/07/2023,510PI115256,Bike 15 - Labour,17/08/2023,95.82,479.11,574.93,Leisure Cents - Future Improve,Maintenance - Building,60201
http://statistics.data.gov.uk/id/local-authority/12UE,Huntingdonshire District Council,200694,ROGER WILSON ELECTRONICS ROGER WILSON ELECTRONICS,83846,25/07/2023,11010,OLSI Various Maintenance Items,03/08/2023,303.45,1517.25,1820.7,Leisure Cents - Future Improve,Maintenance - Building,60201
http://statistics.data.gov.uk/id/local-authority/12UE,Huntingdonshire District Council,200542,MIRAMAR ENGINEERING LTD MIRAMAR ENGINEERING LTD,83981,27/07/2023,11537,OLSI AC Works,17/08/2023,195.96,979.8,1175.76,Leisure Cents - Future Improve,Maintenance - Building,60201
http://statistics.data.gov.uk/id/local-authority/12UE,Huntingdonshire District Council,200694,ROGER WILSON ELECTRONICS ROGER WILSON ELECTRONICS,83847,25/07/2023,11013,OLR Various Maintenance Items,03/08/2023,266.49,1332.45,1598.94,Leisure Cents - Future Improve,Maintenance - Building,60201
http://statistics.data.gov.uk/id/local-authority/12UE,Huntingdonshire District Council,201660,TOTAL ENVIRONMENTAL COMPLIANCE LTD,84640,22/06/2023,50854,OLR Cyclical/Planned Maintenance,17/08/2023,109,545,654,Leisure Cents - Future Improve,Maintenance - Building,60201
http://statistics.data.gov.uk/id/local-authority/12UE,Huntingdonshire District Council,200542,MIRAMAR ENGINEERING LTD MIRAMAR ENGINEERING LTD,85753,05/09/2023,11827,OLR Health Suite Pipework Removal,28/09/2023,10.7,53.51,64.21,Leisure Cents - Future Improve,Maintenance - Building,60201
http://statistics.data.gov.uk/id/local-authority/12UE,Huntingdonshire District Council,200542,MIRAMAR ENGINEERING LTD MIRAMAR ENGINEERING LTD,85753,05/09/2023,11827,OLR Health Suite Pipework Removal,28/09/2023,43.73,218.63,262.36,Leisure Cents - Future Improve,Maintenance - Building,60201
http://statistics.data.gov.uk/id/local-authority/12UE,Huntingdonshire District Council,200542,MIRAMAR ENGINEERING LTD MIRAMAR ENGINEERING LTD,85753,05/09/2023,11827,OLR Health Suite Pipework Removal,28/09/2023,41.07,205.37,246.44,Leisure Cents - Future Improve,Maintenance - Building,60201
http://statistics.data.gov.uk/id/local-authority/12UE,Huntingdonshire District Council,200542,MIRAMAR ENGINEERING LTD MIRAMAR ENGINEERING LTD,85754,05/09/2023,11828,OLR Fault Finding New Equipment,28/09/2023,10.05,50.25,60.3,Leisure Cents - Future Improve,Maintenance - Building,60201
http://statistics.data.gov.uk/id/local-authority/12UE,Huntingdonshire District Council,200542,MIRAMAR ENGINEERING LTD MIRAMAR ENGINEERING LTD,85754,05/09/2023,11828,OLR Fault Finding New Equipment,28/09/2023,41.07,205.37,246.44,Leisure Cents - Future Improve,Maintenance - Building,60201
http://statistics.data.gov.uk/id/local-authority/12UE,Huntingdonshire District Council,200542,MIRAMAR ENGINEERING LTD MIRAMAR ENGINEERING LTD,85754,05/09/2023,11828,OLR Fault Finding New Equipment,28/09/2023,38.58,192.88,231.46,Leisure Cents - Future Improve,Maintenance - Building,60201
http://statistics.data.gov.uk/id/local-authority/12UE,Huntingdonshire District Council,200542,MIRAMAR ENGINEERING LTD MIRAMAR ENGINEERING LTD,83155,11/07/2023,11420,OLR Install Pipework,03/08/2023,68.03,340.13,408.16,Leisure Cents - Future Improve,Maintenance - Building,60201
http://statistics.data.gov.uk/id/local-authority/12UE,Huntingdonshire District Council,200262,EGBERT H TAYLOR AND CO LTD EGBERT H TAYLOR AND CO LTD,85449,21/08/2023,INV000022287,TW DRAIN PLUGS,18/09/2023,510,2550,3060,Wheeled Bins,Refuse Containers/Litter Bins,61200
http://statistics.data.gov.uk/id/local-authority/12UE,Huntingdonshire District Council,200262,EGBERT H TAYLOR AND CO LTD EGBERT H TAYLOR AND CO LTD,85449,21/08/2023,INV000022287,TW DRAIN PLUGS,18/09/2023,90,450,540,Wheeled Bins,Refuse Containers/Litter Bins,61200
http://statistics.data.gov.uk/id/local-authority/12UE,Huntingdonshire District Council,200262,EGBERT H TAYLOR AND CO LTD EGBERT H TAYLOR AND CO LTD,85449,21/08/2023,INV000022287,TW DRAIN PLUGS,18/09/2023,320,1600,1920,Wheeled Bins,Refuse Containers/Litter Bins,61200
http://statistics.data.gov.uk/id/local-authority/12UE,Huntingdonshire District Council,200900,CRAEMER UK LTD,82341,16/06/2023,3052178,Blue 1100L Trade Recycling Bins,07/07/2023,880.5,4402.5,5283,Wheeled Bins,Refuse Containers/Litter Bins,61200
http://statistics.data.gov.uk/id/local-authority/12UE,Huntingdonshire District Council,200900,CRAEMER UK LTD,82377,16/06/2023,3052177,1100 Ltr Grey Wheeled Bin,07/07/2023,838.5,4192.5,5031,Wheeled Bins,Refuse Containers/Litter Bins,61200
http://statistics.data.gov.uk/id/local-authority/12UE,Huntingdonshire District Council,200807,UK CONTAINER MAINTENANCE LTD UK CONTAINER MAINTENANCE LTD,83963,25/07/2023,47447,Trade 1100 On Site Refurbs,17/08/2023,309.6,1548,1857.6,Wheeled Bins,Refuse Containers/Litter Bins,61200
http://statistics.data.gov.uk/id/local-authority/12UE,Huntingdonshire District Council,200807,UK CONTAINER MAINTENANCE LTD UK CONTAINER MAINTENANCE LTD,83963,25/07/2023,47447,Trade 1100 On Site Refurbs,17/08/2023,246.4,1232,1478.4,Wheeled Bins,Refuse Containers/Litter Bins,61200
http://statistics.data.gov.uk/id/local-authority/12UE,Huntingdonshire District Council,200262,EGBERT H TAYLOR AND CO LTD EGBERT H TAYLOR AND CO LTD,85450,21/08/2023,INV000022288,TW BIN LID,18/09/2023,64,320,384,Wheeled Bins,Refuse Containers/Litter Bins,61200
http://statistics.data.gov.uk/id/local-authority/12UE,Huntingdonshire District Council,200060,ARTHUR IBBETT LTD ARTHUR IBBETT LTD,83984,28/07/2023,156905,Tractor/First Registration Fee,17/08/2023,15391.6,76958,92349.6,Vehicles & Plant,Vehicles Plant Furniture & Equipment Cost,11300
http://statistics.data.gov.uk/id/local-authority/12UE,Huntingdonshire District Council,200060,ARTHUR IBBETT LTD ARTHUR IBBETT LTD,83984,28/07/2023,156905,Tractor/First Registration Fee,17/08/2023,11,55,66,Vehicles & Plant,Vehicles Plant Furniture & Equipment Cost,11300
http://statistics.data.gov.uk/id/local-authority/12UE,Huntingdonshire District Council,200236,DENNIS EAGLE LTD DENNIS EAGLE LTD,82940,29/06/2023,D110524,Lot 2a Elite 6x2 Narrow Rear Steer,24/07/2023,39480,197400,236880,Vehicles & Plant,Purchase Of Vehicles Related Costs,60906
http://statistics.data.gov.uk/id/local-authority/12UE,Huntingdonshire District Council,200236,DENNIS EAGLE LTD DENNIS EAGLE LTD,82940,29/06/2023,D110524,Lot 2a Elite 6x2 Narrow Rear Steer,24/07/2023,0,55,55,Vehicles & Plant,Purchase Of Vehicles Related Costs,60906
http://statistics.data.gov.uk/id/local-authority/12UE,Huntingdonshire District Council,200236,DENNIS EAGLE LTD DENNIS EAGLE LTD,82940,29/06/2023,D110524,Lot 2a Elite 6x2 Narrow Rear Steer,24/07/2023,1585.6,7928,9513.6,Vehicles & Plant,Purchase Of Vehicles Related Costs,60906
http://statistics.data.gov.uk/id/local-authority/12UE,Huntingdonshire District Council,200236,DENNIS EAGLE LTD DENNIS EAGLE LTD,82940,29/06/2023,D110524,Lot 2a Elite 6x2 Narrow Rear Steer,24/07/2023,34.6,173,207.6,Vehicles & Plant,Purchase Of Vehicles Related Costs,60906
http://statistics.data.gov.uk/id/local-authority/12UE,Huntingdonshire District Council,200236,DENNIS EAGLE LTD DENNIS EAGLE LTD,82939,29/06/2023,D110523,Lot 2a Elite 6x2 Narrow Rear Steer,24/07/2023,39480,197400,236880,Vehicles & Plant,Purchase Of Vehicles Related Costs,60906
http://statistics.data.gov.uk/id/local-authority/12UE,Huntingdonshire District Council,200236,DENNIS EAGLE LTD DENNIS EAGLE LTD,82939,29/06/2023,D110523,Lot 2a Elite 6x2 Narrow Rear Steer,24/07/2023,0,55,55,Vehicles & Plant,Purchase Of Vehicles Related Costs,60906
http://statistics.data.gov.uk/id/local-authority/12UE,Huntingdonshire District Council,200236,DENNIS EAGLE LTD DENNIS EAGLE LTD,82939,29/06/2023,D110523,Lot 2a Elite 6x2 Narrow Rear Steer,24/07/2023,34.6,173,207.6,Vehicles & Plant,Purchase Of Vehicles Related Costs,60906
http://statistics.data.gov.uk/id/local-authority/12UE,Huntingdonshire District Council,200250,DTS SOLUTIONS (UK) LTD DTS SOLUTIONS (UK) LTD,83325,30/06/2023,S011534,Supply & Fit 2 Way Radio Kits,21/07/2023,228.4,1142,1370.4,Vehicles & Plant,Purchase Of Vehicles Related Costs,60906
http://statistics.data.gov.uk/id/local-authority/12UE,Huntingdonshire District Council,200220,D & H SIGN & DISPLAY SERVICE D & H SIGN & DISPLAY SERVICE,83414,04/07/2023,7263,VN23HWJ Supply & Fit Logos,27/07/2023,151,755,906,Vehicles & Plant,Purchase Of Vehicles Related Costs,60906
http://statistics.data.gov.uk/id/local-authority/12UE,Huntingdonshire District Council,200220,D & H SIGN & DISPLAY SERVICE D & H SIGN & DISPLAY SERVICE,83549,04/07/2023,7262,VN23UDU Supply & Fit HDC Logo,27/07/2023,151,755,906,Vehicles & Plant,Purchase Of Vehicles Related Costs,60906
http://statistics.data.gov.uk/id/local-authority/12UE,Huntingdonshire District Council,200392,HUNTREE FENCING LTD HUNTREE FENCING LTD,83705,18/07/2023,9134,REDACTED,10/08/2023,316.8,1584,1900.8,Park Fencing,Site Alterations And Materials,60273
http://statistics.data.gov.uk/id/local-authority/12UE,Huntingdonshire District Council,201118,ST NEOTS FENCING COMPANY LTD,82400,17/06/2023,INV-4831A,REDACTED,07/07/2023,137.55,687.75,825.3,Park Fencing,Site Alterations And Materials,60273
http://statistics.data.gov.uk/id/local-authority/12UE,Huntingdonshire District Council,203083,Dell Corporation Limited,85281,18/08/2023,7402941771,IT Hardware,07/09/2023,451.66,2258.31,2709.97,Hardware Replacement (HDC IT),Ict Hardware,64070
http://statistics.data.gov.uk/id/local-authority/12UE,Huntingdonshire District Council,202842,HAYDENS ARBORICULTURAL CONSULTANTS LTD,84385,18/05/2023,INV-24-0126,ops full arborcultural method,10/08/2023,127.4,637,764.4,Hinchingbrooke Country Park,Consultancy Fees,62400
http://statistics.data.gov.uk/id/local-authority/12UE,Huntingdonshire District Council,203230,Aspects Services (UK) Limited (ASL),84822,28/04/2023,HDC/6182,hcp investigations,21/08/2023,1133.2,5666,6799.2,Hinchingbrooke Country Park,Surveys,64020
http://statistics.data.gov.uk/id/local-authority/12UE,Huntingdonshire District Council,203230,Aspects Services (UK) Limited (ASL),83371,15/06/2023,HDC/6262,Consultancy Fees,21/07/2023,354,1770,2124,Hinchingbrooke Country Park,Surveys,64020
http://statistics.data.gov.uk/id/local-authority/12UE,Huntingdonshire District Council,202004,BLOOM PROCUREMENT SERVICES LTD,83611,05/06/2023,SIN043423,Consultancy Fees,27/07/2023,500,2500,3000,St Neots Riverside Park Path/Cycle Imps,Consultancy Fees,62400
http://statistics.data.gov.uk/id/local-authority/12UE,Huntingdonshire District Council,202004,BLOOM PROCUREMENT SERVICES LTD,84414,05/06/2023,SIN044535,Consultancy Fees,14/08/2023,500,2500,3000,St Neots Riverside Park Path/Cycle Imps,Consultancy Fees,62400
http://statistics.data.gov.uk/id/local-authority/12UE,Huntingdonshire District Council,200429,J BREHENY CIVIL ENGINEERING LTD J BREHENY CIVIL ENGINEERING LTD,85674,18/07/2023,HM/5106/36714,Alms Close Replace Access Doors & Grills,07/09/2023,1281.2,6406,7687.2,Sites for SMEs,Maintenance - Building,60201
http://statistics.data.gov.uk/id/local-authority/12UE,Huntingdonshire District Council,201468,BROWNE JACOBSON LLP,86214,29/06/2023,1026014,Professional Services,21/09/2023,182.56,912.8,1095.36,Old Falcon,Legal Fees,63200
http://statistics.data.gov.uk/id/local-authority/12UE,Huntingdonshire District Council,201468,BROWNE JACOBSON LLP,86214,29/06/2023,1026014,Professional Services,21/09/2023,240,1200,1440,Old Falcon,Legal Fees,63200
http://statistics.data.gov.uk/id/local-authority/12UE,Huntingdonshire District Council,201468,BROWNE JACOBSON LLP,86214,29/06/2023,1026014,Professional Services,21/09/2023,452.24,2261.2,2713.44,Old Falcon,Legal Fees,63200
http://statistics.data.gov.uk/id/local-authority/12UE,Huntingdonshire District Council,201468,BROWNE JACOBSON LLP,83189,21/03/2023,IN-000144764,Professional Services,17/07/2023,96,480,576,Old Falcon,Legal Fees,63200
http://statistics.data.gov.uk/id/local-authority/12UE,Huntingdonshire District Council,201468,BROWNE JACOBSON LLP,86020,30/08/2023,79685.00014,The Old Falcon,21/09/2023,61.44,307.2,368.64,Old Falcon,Legal Fees,63200
http://statistics.data.gov.uk/id/local-authority/12UE,Huntingdonshire District Council,202670,Etec Contract Services Ltd,82449,06/06/2023,13450,Ramsey Survey,07/07/2023,1405.2,7026,8431.2,Ramsey Car Park,Maintenance - Building,60201
http://statistics.data.gov.uk/id/local-authority/12UE,Huntingdonshire District Council,203284,AOC Architecture Limited,85432,29/08/2023,2596,Priory Centre Initial Works,21/09/2023,6533.8,32669,39202.8,Priory Centre & Qtr,Consultancy Fees,62400
http://statistics.data.gov.uk/id/local-authority/12UE,Huntingdonshire District Council,203284,AOC Architecture Limited,84205,28/07/2023,2584,Priory Centre Initial Works,17/08/2023,5842.6,29213,35055.6,Priory Centre & Qtr,Consultancy Fees,62400
http://statistics.data.gov.uk/id/local-authority/12UE,Huntingdonshire District Council,202882,Tetra Tech Limited,84179,26/07/2023,30057673,Professional Services,17/08/2023,1400,7000,8400,Market Towns Ramsey St Ives Huntingdon,Professional Services - General,62402
http://statistics.data.gov.uk/id/local-authority/12UE,Huntingdonshire District Council,202789,WSP UK LTD,85989,21/08/2023,64641031,fees up to 11.08.23,18/09/2023,2021.88,10109.39,12131.27,Transport Project,Consultancy Fees,62400
http://statistics.data.gov.uk/id/local-authority/12UE,Huntingdonshire District Council,202789,WSP UK LTD,84797,06/07/2023,64632403,Professional Services,21/08/2023,1696.4,8482.01,10178.41,Transport Project,Consultancy Fees,62400
http://statistics.data.gov.uk/id/local-authority/12UE,Huntingdonshire District Council,200159,CAMBRIDGESHIRE COUNTY COUNCIL CAMBRIDGESHIRE COUNTY COUNCIL,85977,08/09/2023,4.23004E+11,planning mar-june,28/09/2023,310.23,1551.13,1861.36,Transport Project,Consultancy Fees,62400
http://statistics.data.gov.uk/id/local-authority/12UE,Huntingdonshire District Council,202670,Etec Contract Services Ltd,82260,23/06/2023,13452,Fareham Office Works,07/07/2023,20279.97,101399.85,121679.82,Fareham Offices Capital Works,Maintenance - Building,60201
http://statistics.data.gov.uk/id/local-authority/12UE,Huntingdonshire District Council,202670,Etec Contract Services Ltd,83945,28/07/2023,13492,Fareham Offices,03/08/2023,4360.27,21801.36,26161.63,Fareham Offices Capital Works,Maintenance - Building,60201
http://statistics.data.gov.uk/id/local-authority/12UE,Huntingdonshire District Council,202670,Etec Contract Services Ltd,83945,28/07/2023,13492,Fareham Offices,03/08/2023,7406.46,37032.31,44438.77,Fareham Offices Capital Works,Maintenance - Building,60201
http://statistics.data.gov.uk/id/local-authority/12UE,Huntingdonshire District Council,202906,Constellia Public Ltd,85902,11/09/2023,INV-4489,,18/09/2023,100,500,600,Fareham Offices Capital Works,Consultancy Fees,62400
http://statistics.data.gov.uk/id/local-authority/12UE,Huntingdonshire District Council,200101,BID HUNTINGDON BID HUNTINGDON,85005,23/08/2023,INV-2019,PLANNING DISPLAY UNITS,24/08/2023,0,7329.19,7329.19,Market Towns Huntingdon and St Ives,Other Services,69150
http://statistics.data.gov.uk/id/local-authority/12UE,Huntingdonshire District Council,200101,BID HUNTINGDON BID HUNTINGDON,84320,02/08/2023,INV-2014,Grant Award - Huntingdon BID VC,10/08/2023,0,4285,4285,Market Towns Huntingdon and St Ives,Other Services,69150
http://statistics.data.gov.uk/id/local-authority/12UE,Huntingdonshire District Council,200101,BID HUNTINGDON BID HUNTINGDON,86276,15/09/2023,INV-2024,Grant Award - Huntingdon BID VC,21/09/2023,0,4285,4285,Market Towns Huntingdon and St Ives,Other Services,69150
http://statistics.data.gov.uk/id/local-authority/12UE,Huntingdonshire District Council,200101,BID HUNTINGDON BID HUNTINGDON,83604,19/07/2023,INV-2010,Grant Award - Huntingdon BID VC,27/07/2023,0,2176.87,2176.87,Market Towns Huntingdon and St Ives,Other Services,69150
http://statistics.data.gov.uk/id/local-authority/12UE,Huntingdonshire District Council,200101,BID HUNTINGDON BID HUNTINGDON,83956,28/07/2023,INV-045285,Grant Money Architect Costs,03/08/2023,0,1900,1900,Market Towns Huntingdon and St Ives,Other Services,69150
http://statistics.data.gov.uk/id/local-authority/12UE,Huntingdonshire District Council,200101,BID HUNTINGDON BID HUNTINGDON,86275,14/09/2023,INV-2023,Grant Award - Huntingdon BID VC,21/09/2023,0,1851.25,1851.25,Market Towns Huntingdon and St Ives,Other Services,69150
http://statistics.data.gov.uk/id/local-authority/12UE,Huntingdonshire District Council,200101,BID HUNTINGDON BID HUNTINGDON,84644,11/08/2023,INV-2018,Grant Award - Huntingdon BID VC,17/08/2023,0,1299.02,1299.02,Market Towns Huntingdon and St Ives,Other Services,69150
http://statistics.data.gov.uk/id/local-authority/12UE,Huntingdonshire District Council,200101,BID HUNTINGDON BID HUNTINGDON,82646,30/06/2023,INV-2002,Grant Award - Huntingdon BID VC,07/07/2023,0,975,975,Market Towns Huntingdon and St Ives,Other Services,69150
http://statistics.data.gov.uk/id/local-authority/12UE,Huntingdonshire District Council,200101,BID HUNTINGDON BID HUNTINGDON,84322,07/08/2023,INV-2016,Grant Award - Huntingdon BID VC,10/08/2023,0,537.45,537.45,Market Towns Huntingdon and St Ives,Other Services,69150
http://statistics.data.gov.uk/id/local-authority/12UE,Huntingdonshire District Council,200197,CIVICA UK LTD CIVICA UK LTD,83447,13/06/2023,C/RB276411,Open Revenues Upgrade,24/07/2023,2800,14000,16800,Windows 2012 Server Replacement,Consultancy Fees,62400
http://statistics.data.gov.uk/id/local-authority/12UE,Huntingdonshire District Council,200145,CACI LIMITED CACI LIMITED,84794,27/07/2023,44036,Business Objects Upgrade Consultancy,21/08/2023,1870,9350,11220,Windows 2012 Server Replacement,Consultancy Fees,62400
http://statistics.data.gov.uk/id/local-authority/12UE,Huntingdonshire District Council,200145,CACI LIMITED CACI LIMITED,84741,28/07/2023,44050,Training,17/08/2023,170,850,1020,Windows 2012 Server Replacement,Consultancy Fees,62400
http://statistics.data.gov.uk/id/local-authority/12UE,Huntingdonshire District Council,200401,IDOX IDOX,86735,05/09/2023,119828,IT Maintenance,28/09/2023,200,1000,1200,Democratic Services Software,Professional Services - General,62402
http://statistics.data.gov.uk/id/local-authority/12UE,Huntingdonshire District Council,203257,Chessum Communication Limited,83526,14/06/2023,005-016,Cllr Media Training - Green Bins,27/07/2023,135,675,810,Second Green Bin Implementation,Amounts Paid,10009
http://statistics.data.gov.uk/id/local-authority/12UE,Huntingdonshire District Council,200891,RAFFERTY LIGHTNING PROTECTION LTD,84828,10/08/2023,4857,facilities lights,31/08/2023,90,450,540,Community Centres,Maintenance - Building,60201
http://statistics.data.gov.uk/id/local-authority/12UE,Huntingdonshire District Council,202135,TOTAL GAS AND POWER LTD,86058,10/09/2023,313260007/23,PFH AUGUST 23,18/09/2023,3983.98,19919.89,23903.87,Community Centres,Electricity,60303
http://statistics.data.gov.uk/id/local-authority/12UE,Huntingdonshire District Council,200021,ACTIVE IN TIME LTD ACTIVE IN TIME LTD,82852,06/07/2023,2000536,Active Time License OL Jul23-Jun24,27/07/2023,72,360,432,One Leisure Support Team,Licences,60410
http://statistics.data.gov.uk/id/local-authority/12UE,Huntingdonshire District Council,200021,ACTIVE IN TIME LTD ACTIVE IN TIME LTD,82852,06/07/2023,2000536,Active Time License OL Jul23-Jun24,27/07/2023,72,360,432,One Leisure Support Team,Licences,60410
http://statistics.data.gov.uk/id/local-authority/12UE,Huntingdonshire District Council,200021,ACTIVE IN TIME LTD ACTIVE IN TIME LTD,82852,06/07/2023,2000536,Active Time License OL Jul23-Jun24,27/07/2023,72,360,432,One Leisure Support Team,Licences,60410
http://statistics.data.gov.uk/id/local-authority/12UE,Huntingdonshire District Council,200021,ACTIVE IN TIME LTD ACTIVE IN TIME LTD,82852,06/07/2023,2000536,Active Time License OL Jul23-Jun24,27/07/2023,72,360,432,One Leisure Support Team,Licences,60410
http://statistics.data.gov.uk/id/local-authority/12UE,Huntingdonshire District Council,201621,AUTHENTIC8 ID SOLUTIONS,81933,14/06/2023,4007980,Smart Fobs OL,07/07/2023,0,15,15,One Leisure Support Team,Equipment,61713
http://statistics.data.gov.uk/id/local-authority/12UE,Huntingdonshire District Council,200391,HUNTINGDONSHIRE FOOTBALL ASSOCIATION HUNTINGDONSHIRE FOOTBALL ASSOCIATION,86279,21/08/2023,INV-1189,Sponsorship,21/09/2023,0,2000,2000,One Leisure Support Team,"Advertising, Publicity And Marketing",62005
http://statistics.data.gov.uk/id/local-authority/12UE,Huntingdonshire District Council,203223,Key Lime PR and Marketing Ltd,82828,01/07/2023,5974,Jul23 Social Media Content - Health Hub,21/07/2023,340,1700,2040,One Leisure Support Team,"Advertising, Publicity And Marketing",62005
http://statistics.data.gov.uk/id/local-authority/12UE,Huntingdonshire District Council,203223,Key Lime PR and Marketing Ltd,84565,01/08/2023,6022,OLSI Social Media & Advertising Aug23,24/08/2023,340,1700,2040,One Leisure Support Team,"Advertising, Publicity And Marketing",62005
http://statistics.data.gov.uk/id/local-authority/12UE,Huntingdonshire District Council,203223,Key Lime PR and Marketing Ltd,85635,01/09/2023,INV-6071,OL Advertising Sep23,21/09/2023,340,1700,2040,One Leisure Support Team,"Advertising, Publicity And Marketing",62005
http://statistics.data.gov.uk/id/local-authority/12UE,Huntingdonshire District Council,203223,Key Lime PR and Marketing Ltd,83305,14/07/2023,6000,OL Outreach/Swim Banners,03/08/2023,300.1,1500.5,1800.6,One Leisure Support Team,"Advertising, Publicity And Marketing",62005
http://statistics.data.gov.uk/id/local-authority/12UE,Huntingdonshire District Council,203223,Key Lime PR and Marketing Ltd,85658,04/09/2023,INV-6086,OL Advertising Sep23,28/09/2023,162.15,810.75,972.9,One Leisure Support Team,"Advertising, Publicity And Marketing",62005
http://statistics.data.gov.uk/id/local-authority/12UE,Huntingdonshire District Council,202988,Addleisure Ltd t/a Leisure DB,84830,17/08/2023,24125 SOI & SOSI,OL UK FITNESS,07/09/2023,139,695,834,One Leisure Support Team,Consultancy Fees,62400
http://statistics.data.gov.uk/id/local-authority/12UE,Huntingdonshire District Council,202988,Addleisure Ltd t/a Leisure DB,84830,17/08/2023,24125 SOI & SOSI,OL UK FITNESS,07/09/2023,70,350,420,One Leisure Support Team,Consultancy Fees,62400
http://statistics.data.gov.uk/id/local-authority/12UE,Huntingdonshire District Council,200117,BRAMBLE HUB LTD BRAMBLE HUB LTD,84073,28/07/2023,INV-13509,Remote Training Days - One Leisure,17/08/2023,486.67,2433.34,2920.01,One Leisure Management Team,Staff Development And Training,60115
http://statistics.data.gov.uk/id/local-authority/12UE,Huntingdonshire District Council,200117,BRAMBLE HUB LTD BRAMBLE HUB LTD,84071,27/07/2023,INV-13507,Staff Training & Development,17/08/2023,333.62,1668.11,2001.73,One Leisure Management Team,Staff Development And Training,60115
http://statistics.data.gov.uk/id/local-authority/12UE,Huntingdonshire District Council,200117,BRAMBLE HUB LTD BRAMBLE HUB LTD,82517,27/06/2023,INV-13412,OL Remote Training Days,21/07/2023,84.98,424.89,509.87,One Leisure Management Team,Staff Development And Training,60115
http://statistics.data.gov.uk/id/local-authority/12UE,Huntingdonshire District Council,203090,REDACTED,82839,01/06/2023,8,OL Sales Support Programme Jun23,10/07/2023,0,3000,3000,One Leisure Management Team,Consultancy Fees,62400
http://statistics.data.gov.uk/id/local-authority/12UE,Huntingdonshire District Council,203336,Fitness Compared Ltd,86176,21/08/2023,INV-0121,Consultancy Fees Redevelopment OL Sites,21/09/2023,300,1500,1800,One Leisure Management Team,Consultancy Fees,62400
http://statistics.data.gov.uk/id/local-authority/12UE,Huntingdonshire District Council,202545,HITCHIN INDUSTRIAL & BUSINESS ESTATES LTD C/O BIDWELLS,83219,14/07/2023,ARJ008117,Bidwells Paid in Error,17/07/2023,-73.32,-366.61,-439.93,OLH - Hospitality,Vending Machine Income,51207
http://statistics.data.gov.uk/id/local-authority/12UE,Huntingdonshire District Council,202545,HITCHIN INDUSTRIAL & BUSINESS ESTATES LTD C/O BIDWELLS,83219,14/07/2023,ARJ008117,Bidwells Paid in Error,17/07/2023,-73.32,-366.61,-439.93,OLH - Hospitality,Vending Machine Income,51207
http://statistics.data.gov.uk/id/local-authority/12UE,Huntingdonshire District Council,202545,HITCHIN INDUSTRIAL & BUSINESS ESTATES LTD C/O BIDWELLS,83219,14/07/2023,ARJ008117,Bidwells Paid in Error,17/07/2023,-73.32,-366.61,-439.93,OLH - Hospitality,Vending Machine Income,51207
http://statistics.data.gov.uk/id/local-authority/12UE,Huntingdonshire District Council,202545,HITCHIN INDUSTRIAL & BUSINESS ESTATES LTD C/O BIDWELLS,83219,14/07/2023,ARJ008117,Bidwells Paid in Error,17/07/2023,-53.62,-268.1,-321.72,OLH - Hospitality,Vending Machine Income,51207
http://statistics.data.gov.uk/id/local-authority/12UE,Huntingdonshire District Council,202545,HITCHIN INDUSTRIAL & BUSINESS ESTATES LTD C/O BIDWELLS,83219,14/07/2023,ARJ008117,Bidwells Paid in Error,17/07/2023,-53.62,-268.1,-321.72,OLH - Hospitality,Vending Machine Income,51207
http://statistics.data.gov.uk/id/local-authority/12UE,Huntingdonshire District Council,202545,HITCHIN INDUSTRIAL & BUSINESS ESTATES LTD C/O BIDWELLS,83219,14/07/2023,ARJ008117,Bidwells Paid in Error,17/07/2023,-53.62,-268.1,-321.72,OLH - Hospitality,Vending Machine Income,51207
http://statistics.data.gov.uk/id/local-authority/12UE,Huntingdonshire District Council,201123,SELECTA UK LTD,81823,12/06/2023,230077710,OLH Vending Maintenance Jul-Sep23,07/07/2023,96.52,482.58,579.1,OLH - Hospitality,Hire - Equipment Furniture And Materials,61700
http://statistics.data.gov.uk/id/local-authority/12UE,Huntingdonshire District Council,202688,NUTRIVEND LTD,82547,27/06/2023,2028297,OLH Bottled Drinks,21/07/2023,188.94,944.7,1133.64,OLH - Hospitality,Vending Materials,61907
http://statistics.data.gov.uk/id/local-authority/12UE,Huntingdonshire District Council,200726,SNACKLINE DIRECT LTD SNACKLINE DIRECT LTD,83311,27/06/2023,141641,OLH Vending Materials,21/07/2023,92.55,462.73,555.28,OLH - Hospitality,Vending Materials,61907
http://statistics.data.gov.uk/id/local-authority/12UE,Huntingdonshire District Council,200726,SNACKLINE DIRECT LTD SNACKLINE DIRECT LTD,83311,27/06/2023,141641,OLH Vending Materials,21/07/2023,0,29.28,29.28,OLH - Hospitality,Vending Materials,61907
http://statistics.data.gov.uk/id/local-authority/12UE,Huntingdonshire District Council,200726,SNACKLINE DIRECT LTD SNACKLINE DIRECT LTD,86102,15/08/2023,142771,OLH Vending Materials,18/09/2023,0,29.28,29.28,OLH - Hospitality,Vending Materials,61907
http://statistics.data.gov.uk/id/local-authority/12UE,Huntingdonshire District Council,200726,SNACKLINE DIRECT LTD SNACKLINE DIRECT LTD,86102,15/08/2023,142771,OLH Vending Materials,18/09/2023,83.15,415.75,498.9,OLH - Hospitality,Vending Materials,61907
http://statistics.data.gov.uk/id/local-authority/12UE,Huntingdonshire District Council,200809,UKACTIVE UKACTIVE,82230,26/06/2023,INV-204896,Licences Aug23-Jul24 Health Commintment,21/07/2023,25,125,150,OLH - Impressions,Licences,60410
http://statistics.data.gov.uk/id/local-authority/12UE,Huntingdonshire District Council,200674,REPLAY MAINTENANCE LTD REPLAY MAINTENANCE LTD,82527,21/04/2023,790,Grounds Maint Across Sites Y5 Of 5,03/07/2023,142.5,712.5,855,OLH - Outdoor Sports,Grounds Maintenance,60503
http://statistics.data.gov.uk/id/local-authority/12UE,Huntingdonshire District Council,200694,ROGER WILSON ELECTRONICS ROGER WILSON ELECTRONICS,83844,25/07/2023,11012,OLH Various Maintenance Items,03/08/2023,115.8,578.98,694.78,OLH - Site & Centre Management,Maintenance - Building,60201
http://statistics.data.gov.uk/id/local-authority/12UE,Huntingdonshire District Council,200427,J A K  SYSTEMS LTD J A K SYSTEMS LTD,84568,11/08/2023,16932,OLH Blocked Dosing Unit 26.07.23,31/08/2023,100,499.98,599.98,OLH - Site & Centre Management,Maintenance - Building,60201
http://statistics.data.gov.uk/id/local-authority/12UE,Huntingdonshire District Council,200427,J A K  SYSTEMS LTD J A K SYSTEMS LTD,85491,18/08/2023,16976,OLH Granudos Fault 15.08.23,07/09/2023,80.8,404,484.8,OLH - Site & Centre Management,Maintenance - Building,60201
http://statistics.data.gov.uk/id/local-authority/12UE,Huntingdonshire District Council,200580,NOVUS COMPLIANCE SERVICES LTD NOVUS COMPLIANCE SERVICES LTD,81712,14/06/2023,22570,OLH PAT23,07/07/2023,75.4,377,452.4,OLH - Site & Centre Management,Maintenance - Building,60201
http://statistics.data.gov.uk/id/local-authority/12UE,Huntingdonshire District Council,200580,NOVUS COMPLIANCE SERVICES LTD NOVUS COMPLIANCE SERVICES LTD,82311,14/06/2023,25570,OLH Fixed Wire Testing Apr23,07/07/2023,75.4,377,452.4,OLH - Site & Centre Management,Maintenance - Building,60201
http://statistics.data.gov.uk/id/local-authority/12UE,Huntingdonshire District Council,200427,J A K  SYSTEMS LTD J A K SYSTEMS LTD,84713,31/07/2023,16875,OLH Granudos Fault 24.07.23,24/08/2023,74.8,374,448.8,OLH - Site & Centre Management,Maintenance - Building,60201
http://statistics.data.gov.uk/id/local-authority/12UE,Huntingdonshire District Council,200488,LEISURETEQ LEISURETEQ,84800,08/08/2023,105916,OLHUN EQUIPMENT,31/08/2023,4.5,22.5,27,OLH - Site & Centre Management,Maintenance - Building,60201
http://statistics.data.gov.uk/id/local-authority/12UE,Huntingdonshire District Council,200913,WAVE  ANGLIAN WATER BUSINESS,85731,05/09/2023,12503415,OLH Dryside Jun-Sep23,07/09/2023,0,2674.94,2674.94,OLH - Site & Centre Management,Water And Sewerage,60302
http://statistics.data.gov.uk/id/local-authority/12UE,Huntingdonshire District Council,202135,TOTAL GAS AND POWER LTD,86104,10/09/2023,313260051/23,OLH Dry Aug23,18/09/2023,908.7,4543.48,5452.18,OLH - Site & Centre Management,Electricity,60303
http://statistics.data.gov.uk/id/local-authority/12UE,Huntingdonshire District Council,202135,TOTAL GAS AND POWER LTD,84509,06/08/2023,309179612/23,OLH Dry Jul23,17/08/2023,833.53,4167.65,5001.18,OLH - Site & Centre Management,Electricity,60303
http://statistics.data.gov.uk/id/local-authority/12UE,Huntingdonshire District Council,202699,SMS ENERGY SERVICES LTD,86256,11/06/2023,ESL-SINV041747,MOP Contract,21/09/2023,42.8,214,256.8,OLH - Site & Centre Management,Electricity,60303
http://statistics.data.gov.uk/id/local-authority/12UE,Huntingdonshire District Council,202699,SMS ENERGY SERVICES LTD,86256,11/06/2023,ESL-SINV041747,MOP Contract,21/09/2023,42.8,214,256.8,OLH - Site & Centre Management,Electricity,60303
http://statistics.data.gov.uk/id/local-authority/12UE,Huntingdonshire District Council,202135,TOTAL GAS AND POWER LTD,83194,09/07/2023,306356870/23,OLH Dry Jun23,17/07/2023,753.9,3769.5,4523.4,OLH - Site & Centre Management,Electricity,60303
http://statistics.data.gov.uk/id/local-authority/12UE,Huntingdonshire District Council,200258,EDF ENERGY CUSTOMER FIELD SERVICES EDF ENERGY CUSTOMER FIELD SERVICES,83512,08/06/2023,600006165,OLH Elec Metering Charge Jun23,27/07/2023,72,360,432,OLH - Site & Centre Management,Electricity,60303
http://statistics.data.gov.uk/id/local-authority/12UE,Huntingdonshire District Council,202699,SMS ENERGY SERVICES LTD,86369,19/09/2023,SCR003876,MOP Contract,21/09/2023,-42.8,-214,-256.8,OLH - Site & Centre Management,Electricity,60303
http://statistics.data.gov.uk/id/local-authority/12UE,Huntingdonshire District Council,200348,GREENDAY ENERGY LTD GREENDAY ENERGY LTD,81643,12/06/2023,GD1654,Renewal Display Energy Cert May23,07/07/2023,22,110,132,OLH - Site & Centre Management,Gas,60305
http://statistics.data.gov.uk/id/local-authority/12UE,Huntingdonshire District Council,200126,BRITISH GAS BUSINESS BRITISH GAS BUSINESS,83914,31/07/2023,854432614,OLH Dry Jun23,03/08/2023,63.36,316.8,380.16,OLH - Site & Centre Management,Gas,60305
http://statistics.data.gov.uk/id/local-authority/12UE,Huntingdonshire District Council,200126,BRITISH GAS BUSINESS BRITISH GAS BUSINESS,86236,18/09/2023,886419049,OLH Dry Aug23,21/09/2023,61.77,308.84,370.61,OLH - Site & Centre Management,Gas,60305
http://statistics.data.gov.uk/id/local-authority/12UE,Huntingdonshire District Council,200126,BRITISH GAS BUSINESS BRITISH GAS BUSINESS,84875,18/08/2023,814454889,OLHUN DRY JULY 23,24/08/2023,61.37,306.83,368.2,OLH - Site & Centre Management,Gas,60305
http://statistics.data.gov.uk/id/local-authority/12UE,Huntingdonshire District Council,202101,TRAINING SHED FAMILY LTD,82665,01/07/2023,INV-0161,OL Licences ALL Sites Jul23,07/07/2023,19.8,99,118.8,OLH - Site & Centre Management,Licences,60410
http://statistics.data.gov.uk/id/local-authority/12UE,Huntingdonshire District Council,202101,TRAINING SHED FAMILY LTD,84163,01/08/2023,INV-0162,One Leisure Licences Aug23,10/08/2023,19.8,99,118.8,OLH - Site & Centre Management,Licences,60410
http://statistics.data.gov.uk/id/local-authority/12UE,Huntingdonshire District Council,202101,TRAINING SHED FAMILY LTD,85639,01/09/2023,INV-0163,OL Myzone Facility License,07/09/2023,19.8,99,118.8,OLH - Site & Centre Management,Licences,60410
http://statistics.data.gov.uk/id/local-authority/12UE,Huntingdonshire District Council,202728,ESCOREFRESH,82574,30/06/2023,43695,OLH Cleaning Materials,21/07/2023,100.28,501.42,601.7,OLH - Site & Centre Management,Cleaning Materials,61300
http://statistics.data.gov.uk/id/local-authority/12UE,Huntingdonshire District Council,202728,ESCOREFRESH,82959,07/07/2023,43709,OLH Cleaning Materials,27/07/2023,40.33,201.67,242,OLH - Site & Centre Management,Cleaning Materials,61300
http://statistics.data.gov.uk/id/local-authority/12UE,Huntingdonshire District Council,200737,SPORTMAX SPORTMAX,81666,12/06/2023,126276,OLH Goods For Sale,07/07/2023,97.05,485.25,582.3,OLH - Site & Centre Management,Goods For Resale,61400
http://statistics.data.gov.uk/id/local-authority/12UE,Huntingdonshire District Council,200615,PHS GROUP LTD PHS GROUP LTD,84058,07/02/2023,69616693,OLH Late Invoice Feb23,07/08/2023,283.63,1418.14,1701.77,OLH - Site & Centre Management,Hire - Equipment Furniture And Materials,61700
http://statistics.data.gov.uk/id/local-authority/12UE,Huntingdonshire District Council,200411,INITIAL WASHROOM SOLUTIONS INITIAL WASHROOM SOLUTIONS,83157,11/07/2023,34760873,OLSN Hire Equipment,03/08/2023,34.01,170.05,204.06,OLH - Site & Centre Management,Hire - Equipment Furniture And Materials,61700
http://statistics.data.gov.uk/id/local-authority/12UE,Huntingdonshire District Council,200411,INITIAL WASHROOM SOLUTIONS INITIAL WASHROOM SOLUTIONS,84642,09/08/2023,34793344,OL Hire Equipment 30.08-09.09.23,31/08/2023,34.07,170.35,204.42,OLH - Site & Centre Management,Hire - Equipment Furniture And Materials,61700
http://statistics.data.gov.uk/id/local-authority/12UE,Huntingdonshire District Council,200411,INITIAL WASHROOM SOLUTIONS INITIAL WASHROOM SOLUTIONS,85965,08/09/2023,34825296,OLSTI 3009-2910,28/09/2023,34.01,170.05,204.06,OLH - Site & Centre Management,Hire - Equipment Furniture And Materials,61700
http://statistics.data.gov.uk/id/local-authority/12UE,Huntingdonshire District Council,200694,ROGER WILSON ELECTRONICS ROGER WILSON ELECTRONICS,84522,26/07/2023,11014,OLH Equipment Maintenance,17/08/2023,246.88,1234.42,1481.3,OLH - Site & Centre Management,"Maintenance - Equipment, Furniture And Materials",61702
http://statistics.data.gov.uk/id/local-authority/12UE,Huntingdonshire District Council,202540,THOMPSON AUDIO VISUAL COMMUNICATIONS LTD,85737,30/08/2023,22422,OLH Maintenance - Equipment,21/09/2023,127.08,635.38,762.46,OLH - Site & Centre Management,"Maintenance - Equipment, Furniture And Materials",61702
http://statistics.data.gov.uk/id/local-authority/12UE,Huntingdonshire District Council,202728,ESCOREFRESH,84552,11/08/2023,43797,OLH Pressure Washer Repair,31/08/2023,52.47,262.37,314.84,OLH - Site & Centre Management,"Maintenance - Equipment, Furniture And Materials",61702
http://statistics.data.gov.uk/id/local-authority/12UE,Huntingdonshire District Council,200232,DCRS LTD DCRS LTD,84795,26/07/2023,261176,Radios,21/08/2023,304.54,1522.7,1827.24,OLH - Site & Centre Management,"Purchase - Equipment, Furniture And Materials",61703
http://statistics.data.gov.uk/id/local-authority/12UE,Huntingdonshire District Council,203269,Grant Services Ltd T/A LVC,84152,31/07/2023,812150,OLH Scrubber,24/08/2023,87.12,435.61,522.73,OLH - Site & Centre Management,"Purchase - Equipment, Furniture And Materials",61703
http://statistics.data.gov.uk/id/local-authority/12UE,Huntingdonshire District Council,201621,AUTHENTIC8 ID SOLUTIONS,81933,14/06/2023,4007980,Smart Fobs OL,07/07/2023,410.5,2052.5,2463,OLH - Site & Centre Management,Equipment,61713
http://statistics.data.gov.uk/id/local-authority/12UE,Huntingdonshire District Council,201621,AUTHENTIC8 ID SOLUTIONS,82225,26/06/2023,4008026,OLSI Wrist Bands,13/07/2023,141,705,846,OLH - Site & Centre Management,Equipment,61713
http://statistics.data.gov.uk/id/local-authority/12UE,Huntingdonshire District Council,200488,LEISURETEQ LEISURETEQ,84800,08/08/2023,105916,OLHUN EQUIPMENT,31/08/2023,8,40,48,OLH - Site & Centre Management,Equipment,61713
http://statistics.data.gov.uk/id/local-authority/12UE,Huntingdonshire District Council,200488,LEISURETEQ LEISURETEQ,84800,08/08/2023,105916,OLHUN EQUIPMENT,31/08/2023,5.8,29,34.8,OLH - Site & Centre Management,Equipment,61713
http://statistics.data.gov.uk/id/local-authority/12UE,Huntingdonshire District Council,200488,LEISURETEQ LEISURETEQ,84800,08/08/2023,105916,OLHUN EQUIPMENT,31/08/2023,1.3,6.5,7.8,OLH - Site & Centre Management,Equipment,61713
http://statistics.data.gov.uk/id/local-authority/12UE,Huntingdonshire District Council,200488,LEISURETEQ LEISURETEQ,84800,08/08/2023,105916,OLHUN EQUIPMENT,31/08/2023,37.5,187.5,225,OLH - Site & Centre Management,Equipment,61713
http://statistics.data.gov.uk/id/local-authority/12UE,Huntingdonshire District Council,200488,LEISURETEQ LEISURETEQ,84800,08/08/2023,105916,OLHUN EQUIPMENT,31/08/2023,3,15,18,OLH - Site & Centre Management,Equipment,61713
http://statistics.data.gov.uk/id/local-authority/12UE,Huntingdonshire District Council,200434,JADE SECURITY SERVICES LTD JADE SECURITY SERVICES LTD,85828,31/08/2023,6140,Ops Car Park Aug 23,21/09/2023,10.8,54,64.8,OLH - Site & Centre Management,Contract Charges ,61800
http://statistics.data.gov.uk/id/local-authority/12UE,Huntingdonshire District Council,200434,JADE SECURITY SERVICES LTD JADE SECURITY SERVICES LTD,84052,31/07/2023,5914,Cash Collection Jul23,24/08/2023,10.8,54,64.8,OLH - Site & Centre Management,Contract Charges ,61800
http://statistics.data.gov.uk/id/local-authority/12UE,Huntingdonshire District Council,200434,JADE SECURITY SERVICES LTD JADE SECURITY SERVICES LTD,84699,30/06/2023,5803,Cash Collections Jun23,17/08/2023,10.8,54,64.8,OLH - Site & Centre Management,Contract Charges ,61800
http://statistics.data.gov.uk/id/local-authority/12UE,Huntingdonshire District Council,203322,Right Directions (Management) Ltd,86561,22/09/2023,9814,OLSI Audit Fees (Health & Safety),28/09/2023,130,650,780,OLH - Site & Centre Management,Audit Fees,62100
http://statistics.data.gov.uk/id/local-authority/12UE,Huntingdonshire District Council,200117,BRAMBLE HUB LTD BRAMBLE HUB LTD,84075,28/07/2023,INV-13508,Staff Training & Development,17/08/2023,411.9,2059.52,2471.42,OLH - Site & Centre Management,Ict Software,64071
http://statistics.data.gov.uk/id/local-authority/12UE,Huntingdonshire District Council,200117,BRAMBLE HUB LTD BRAMBLE HUB LTD,84176,27/07/2023,INV-13505,OL IT Software,17/08/2023,124.45,622.23,746.68,OLH - Site & Centre Management,Ict Software,64071
http://statistics.data.gov.uk/id/local-authority/12UE,Huntingdonshire District Council,200913,WAVE  ANGLIAN WATER BUSINESS,85479,26/08/2023,12467431,OLH May-Aug23,07/09/2023,0,689.32,689.32,OLH - Swimming,Water And Sewerage,60302
http://statistics.data.gov.uk/id/local-authority/12UE,Huntingdonshire District Council,202699,SMS ENERGY SERVICES LTD,86256,11/06/2023,ESL-SINV041747,MOP Contract,21/09/2023,33.4,167,200.4,OLH - Swimming,Electricity,60303
http://statistics.data.gov.uk/id/local-authority/12UE,Huntingdonshire District Council,202699,SMS ENERGY SERVICES LTD,86256,11/06/2023,ESL-SINV041747,MOP Contract,21/09/2023,33.4,167,200.4,OLH - Swimming,Electricity,60303
http://statistics.data.gov.uk/id/local-authority/12UE,Huntingdonshire District Council,202135,TOTAL GAS AND POWER LTD,83193,09/07/2023,306370432/23,OLH Wet Jun23,17/07/2023,539.76,2698.8,3238.56,OLH - Swimming,Electricity,60303
http://statistics.data.gov.uk/id/local-authority/12UE,Huntingdonshire District Council,202135,TOTAL GAS AND POWER LTD,86100,10/09/2023,313264055/23,OLH Wet Aug23,18/09/2023,195.16,975.82,1170.98,OLH - Swimming,Electricity,60303
http://statistics.data.gov.uk/id/local-authority/12UE,Huntingdonshire District Council,202135,TOTAL GAS AND POWER LTD,84510,06/08/2023,309208223/23,OLH Wet Jul23,17/08/2023,166.72,833.59,1000.31,OLH - Swimming,Electricity,60303
http://statistics.data.gov.uk/id/local-authority/12UE,Huntingdonshire District Council,200126,BRITISH GAS BUSINESS BRITISH GAS BUSINESS,84035,01/08/2023,721027312,OLH Wet Jul23,07/08/2023,435.56,2177.82,2613.38,OLH - Swimming,Gas,60305
http://statistics.data.gov.uk/id/local-authority/12UE,Huntingdonshire District Council,200126,BRITISH GAS BUSINESS BRITISH GAS BUSINESS,83185,12/07/2023,720913324,OLH Jun23,21/07/2023,417.72,2088.62,2506.34,OLH - Swimming,Gas,60305
http://statistics.data.gov.uk/id/local-authority/12UE,Huntingdonshire District Council,200126,BRITISH GAS BUSINESS BRITISH GAS BUSINESS,85939,11/09/2023,872026323,OLHUN WET AUG 23,21/09/2023,173.85,869.27,1043.12,OLH - Swimming,Gas,60305
http://statistics.data.gov.uk/id/local-authority/12UE,Huntingdonshire District Council,200348,GREENDAY ENERGY LTD GREENDAY ENERGY LTD,81643,12/06/2023,GD1654,Renewal Display Energy Cert May23,07/07/2023,22,110,132,OLH - Swimming,Gas,60305
http://statistics.data.gov.uk/id/local-authority/12UE,Huntingdonshire District Council,200126,BRITISH GAS BUSINESS BRITISH GAS BUSINESS,85937,11/09/2023,872026322,OLHUNT WET,21/09/2023,108.86,544.31,653.17,OLH - Swimming,Gas,60305
http://statistics.data.gov.uk/id/local-authority/12UE,Huntingdonshire District Council,200126,BRITISH GAS BUSINESS BRITISH GAS BUSINESS,85940,08/09/2023,721273662,OLHUN WET AUG 23,21/09/2023,-435.56,-2177.82,-2613.38,OLH - Swimming,Gas,60305
http://statistics.data.gov.uk/id/local-authority/12UE,Huntingdonshire District Council,200542,MIRAMAR ENGINEERING LTD MIRAMAR ENGINEERING LTD,82887,05/07/2023,11323,OLH Boiler Faults,27/07/2023,240.05,1200.27,1440.32,OLH - Swimming,"Maintenance - Equipment, Furniture And Materials",61702
http://statistics.data.gov.uk/id/local-authority/12UE,Huntingdonshire District Council,202749,COMPLETE POOL CONTROLS LTD,85749,05/09/2023,INV091573,OLH Pool Chemicals,28/09/2023,129.53,647.65,777.18,OLH - Swimming,Chemicals,64000
http://statistics.data.gov.uk/id/local-authority/12UE,Huntingdonshire District Council,202749,COMPLETE POOL CONTROLS LTD,84060,03/08/2023,INV090418,OLH Pool Chemicals,24/08/2023,106.71,533.54,640.25,OLH - Swimming,Chemicals,64000
http://statistics.data.gov.uk/id/local-authority/12UE,Huntingdonshire District Council,202749,COMPLETE POOL CONTROLS LTD,83235,13/07/2023,INV089423,OLH Pool Chemicals,03/08/2023,102.58,512.9,615.48,OLH - Swimming,Chemicals,64000
http://statistics.data.gov.uk/id/local-authority/12UE,Huntingdonshire District Council,200489,LES MILLS UK LES MILLS UK,82871,06/07/2023,LMUK-SIV-171136,OLH Licences,27/07/2023,51.63,258.17,309.8,OLH - Fitness Activities,Licences,60410
http://statistics.data.gov.uk/id/local-authority/12UE,Huntingdonshire District Council,200489,LES MILLS UK LES MILLS UK,84070,03/08/2023,LMUK-SIV-172601,OLH Licences May23-Mar24,24/08/2023,51.63,258.17,309.8,OLH - Fitness Activities,Licences,60410
http://statistics.data.gov.uk/id/local-authority/12UE,Huntingdonshire District Council,200489,LES MILLS UK LES MILLS UK,85746,06/09/2023,LMUK-SIV-174000,OLH Licences,28/09/2023,51.63,258.17,309.8,OLH - Fitness Activities,Licences,60410
http://statistics.data.gov.uk/id/local-authority/12UE,Huntingdonshire District Council,202545,HITCHIN INDUSTRIAL & BUSINESS ESTATES LTD C/O BIDWELLS,83219,14/07/2023,ARJ008117,Bidwells Paid in Error,17/07/2023,-58.8,-293.98,-352.78,OLR - Hospitality,Vending Machine Income,51207
http://statistics.data.gov.uk/id/local-authority/12UE,Huntingdonshire District Council,202545,HITCHIN INDUSTRIAL & BUSINESS ESTATES LTD C/O BIDWELLS,83219,14/07/2023,ARJ008117,Bidwells Paid in Error,17/07/2023,-58.8,-293.98,-352.78,OLR - Hospitality,Vending Machine Income,51207
http://statistics.data.gov.uk/id/local-authority/12UE,Huntingdonshire District Council,202545,HITCHIN INDUSTRIAL & BUSINESS ESTATES LTD C/O BIDWELLS,83219,14/07/2023,ARJ008117,Bidwells Paid in Error,17/07/2023,-58.8,-293.98,-352.78,OLR - Hospitality,Vending Machine Income,51207
http://statistics.data.gov.uk/id/local-authority/12UE,Huntingdonshire District Council,202688,NUTRIVEND LTD,85483,23/08/2023,2032714,OLR Bottled Drinks,18/09/2023,72.43,362.16,434.59,OLR - Hospitality,Vending Materials,61907
http://statistics.data.gov.uk/id/local-authority/12UE,Huntingdonshire District Council,202688,NUTRIVEND LTD,81901,13/06/2023,2027253,OLR Bottled Drinks,07/07/2023,66.29,331.47,397.76,OLR - Hospitality,Vending Materials,61907
http://statistics.data.gov.uk/id/local-authority/12UE,Huntingdonshire District Council,202688,NUTRIVEND LTD,83637,17/07/2023,2029937,OLR Bottled Drinks,10/08/2023,62.34,311.68,374.02,OLR - Hospitality,Vending Materials,61907
http://statistics.data.gov.uk/id/local-authority/12UE,Huntingdonshire District Council,200809,UKACTIVE UKACTIVE,82230,26/06/2023,INV-204896,Licences Aug23-Jul24 Health Commintment,21/07/2023,25,125,150,OLR - Impressions,Licences,60410
http://statistics.data.gov.uk/id/local-authority/12UE,Huntingdonshire District Council,201994,Pulse Fitness Ltd,86016,04/07/2023,7245,WARRANTY 010723-300623,14/09/2023,754.23,3771.13,4525.36,OLR - Impressions,"Maintenance - Equipment, Furniture And Materials",61702
http://statistics.data.gov.uk/id/local-authority/12UE,Huntingdonshire District Council,200674,REPLAY MAINTENANCE LTD REPLAY MAINTENANCE LTD,82527,21/04/2023,790,Grounds Maint Across Sites Y5 Of 5,03/07/2023,142.5,712.5,855,OLR - Outdoor Sports,Grounds Maintenance,60503
http://statistics.data.gov.uk/id/local-authority/12UE,Huntingdonshire District Council,200694,ROGER WILSON ELECTRONICS ROGER WILSON ELECTRONICS,83847,25/07/2023,11013,OLR Various Maintenance Items,03/08/2023,37.75,188.74,226.49,OLR - Site & Centre Management,Maintenance - Building,60201
http://statistics.data.gov.uk/id/local-authority/12UE,Huntingdonshire District Council,200226,DAL-ROD (CAMRIDGESHIRE) DAL-ROD (CAMRIDGESHIRE),82823,05/07/2023,30000931,OLR Cyclical/Planned Maintenance,27/07/2023,75,375,450,OLR - Site & Centre Management,Maintenance - Building,60201
http://statistics.data.gov.uk/id/local-authority/12UE,Huntingdonshire District Council,202135,TOTAL GAS AND POWER LTD,84504,06/08/2023,309179447/23,OLR Jul23,17/08/2023,1677.92,8389.62,10067.54,OLR - Site & Centre Management,Electricity,60303
http://statistics.data.gov.uk/id/local-authority/12UE,Huntingdonshire District Council,202135,TOTAL GAS AND POWER LTD,86103,10/09/2023,313259963/23,OLR Aug23,18/09/2023,1645.14,8225.71,9870.85,OLR - Site & Centre Management,Electricity,60303
http://statistics.data.gov.uk/id/local-authority/12UE,Huntingdonshire District Council,202135,TOTAL GAS AND POWER LTD,83197,09/07/2023,306356814/23,OLR Jun23,17/07/2023,1619.96,8099.79,9719.75,OLR - Site & Centre Management,Electricity,60303
http://statistics.data.gov.uk/id/local-authority/12UE,Huntingdonshire District Council,202699,SMS ENERGY SERVICES LTD,86256,11/06/2023,ESL-SINV041747,MOP Contract,21/09/2023,84,420,504,OLR - Site & Centre Management,Electricity,60303
http://statistics.data.gov.uk/id/local-authority/12UE,Huntingdonshire District Council,202699,SMS ENERGY SERVICES LTD,86256,11/06/2023,ESL-SINV041747,MOP Contract,21/09/2023,42,210,252,OLR - Site & Centre Management,Electricity,60303
http://statistics.data.gov.uk/id/local-authority/12UE,Huntingdonshire District Council,200348,GREENDAY ENERGY LTD GREENDAY ENERGY LTD,81643,12/06/2023,GD1654,Renewal Display Energy Cert May23,07/07/2023,22,110,132,OLR - Site & Centre Management,Gas,60305
http://statistics.data.gov.uk/id/local-authority/12UE,Huntingdonshire District Council,202101,TRAINING SHED FAMILY LTD,82665,01/07/2023,INV-0161,OL Licences ALL Sites Jul23,07/07/2023,19.8,99,118.8,OLR - Site & Centre Management,Licences,60410
http://statistics.data.gov.uk/id/local-authority/12UE,Huntingdonshire District Council,202101,TRAINING SHED FAMILY LTD,84163,01/08/2023,INV-0162,One Leisure Licences Aug23,10/08/2023,19.8,99,118.8,OLR - Site & Centre Management,Licences,60410
http://statistics.data.gov.uk/id/local-authority/12UE,Huntingdonshire District Council,202101,TRAINING SHED FAMILY LTD,85639,01/09/2023,INV-0163,OL Myzone Facility License,07/09/2023,19.8,99,118.8,OLR - Site & Centre Management,Licences,60410
http://statistics.data.gov.uk/id/local-authority/12UE,Huntingdonshire District Council,200096,BEN BURGESS & COMPANY BEN BURGESS & COMPANY,84952,11/08/2023,960938,olsti panel fix,31/08/2023,10,50,60,OLR - Site & Centre Management,Vehicle Maintenance - External,60921
http://statistics.data.gov.uk/id/local-authority/12UE,Huntingdonshire District Council,200096,BEN BURGESS & COMPANY BEN BURGESS & COMPANY,84952,11/08/2023,960938,olsti panel fix,31/08/2023,153.42,767.1,920.52,OLR - Site & Centre Management,Vehicle Maintenance - External,60921
http://statistics.data.gov.uk/id/local-authority/12UE,Huntingdonshire District Council,202728,ESCOREFRESH,83871,22/12/2022,43169,OLR Cleaning Products,03/08/2023,84.44,422.21,506.65,OLR - Site & Centre Management,Cleaning Materials,61300
http://statistics.data.gov.uk/id/local-authority/12UE,Huntingdonshire District Council,202728,ESCOREFRESH,83870,13/01/2023,43202,OLR Cleaning Products,03/08/2023,84.06,420.32,504.38,OLR - Site & Centre Management,Cleaning Materials,61300
http://statistics.data.gov.uk/id/local-authority/12UE,Huntingdonshire District Council,202728,ESCOREFRESH,83865,23/06/2023,43664,OLR Cleaning Materials,03/08/2023,82.09,410.44,492.53,OLR - Site & Centre Management,Cleaning Materials,61300
http://statistics.data.gov.uk/id/local-authority/12UE,Huntingdonshire District Council,202728,ESCOREFRESH,84469,21/07/2023,43754,OLR Cleaning Materials,14/08/2023,71.93,359.67,431.6,OLR - Site & Centre Management,Cleaning Materials,61300
http://statistics.data.gov.uk/id/local-authority/12UE,Huntingdonshire District Council,200411,INITIAL WASHROOM SOLUTIONS INITIAL WASHROOM SOLUTIONS,83157,11/07/2023,34760873,OLSN Hire Equipment,03/08/2023,8.59,42.96,51.55,OLR - Site & Centre Management,Hire - Equipment Furniture And Materials,61700
http://statistics.data.gov.uk/id/local-authority/12UE,Huntingdonshire District Council,200411,INITIAL WASHROOM SOLUTIONS INITIAL WASHROOM SOLUTIONS,84642,09/08/2023,34793344,OL Hire Equipment 30.08-09.09.23,31/08/2023,8.59,42.96,51.55,OLR - Site & Centre Management,Hire - Equipment Furniture And Materials,61700
http://statistics.data.gov.uk/id/local-authority/12UE,Huntingdonshire District Council,200411,INITIAL WASHROOM SOLUTIONS INITIAL WASHROOM SOLUTIONS,85965,08/09/2023,34825296,OLSTI 3009-2910,28/09/2023,8.59,42.96,51.55,OLR - Site & Centre Management,Hire - Equipment Furniture And Materials,61700
http://statistics.data.gov.uk/id/local-authority/12UE,Huntingdonshire District Council,200615,PHS GROUP LTD PHS GROUP LTD,84158,07/02/2023,69616684,OLR Equipment Hire,10/08/2023,139.45,697.26,836.71,OLR - Site & Centre Management,Hire - Equipment Furniture And Materials,61700
http://statistics.data.gov.uk/id/local-authority/12UE,Huntingdonshire District Council,200615,PHS GROUP LTD PHS GROUP LTD,85861,27/08/2023,70038158,olram equipment,18/09/2023,65.23,326.16,391.39,OLR - Site & Centre Management,Hire - Equipment Furniture And Materials,61700
http://statistics.data.gov.uk/id/local-authority/12UE,Huntingdonshire District Council,200004,AAA INFLATABLES LTD AAA INFLATABLES LTD,83108,08/06/2023,INV-2328,OLR Inflatables Inspection,13/07/2023,58,290,348,OLR - Site & Centre Management,"Maintenance - Equipment, Furniture And Materials",61702
http://statistics.data.gov.uk/id/local-authority/12UE,Huntingdonshire District Council,200689,RLSS UK Enterprise Ltd,82889,12/06/2023,SIN03677,10x New Candidates NPLQ,13/07/2023,0,610,610,OLR - Site & Centre Management,Materials,61709
http://statistics.data.gov.uk/id/local-authority/12UE,Huntingdonshire District Council,201621,AUTHENTIC8 ID SOLUTIONS,81933,14/06/2023,4007980,Smart Fobs OL,07/07/2023,287,1435,1722,OLR - Site & Centre Management,Equipment,61713
http://statistics.data.gov.uk/id/local-authority/12UE,Huntingdonshire District Council,201621,AUTHENTIC8 ID SOLUTIONS,82225,26/06/2023,4008026,OLSI Wrist Bands,13/07/2023,47,235,282,OLR - Site & Centre Management,Equipment,61713
http://statistics.data.gov.uk/id/local-authority/12UE,Huntingdonshire District Council,200434,JADE SECURITY SERVICES LTD JADE SECURITY SERVICES LTD,85828,31/08/2023,6140,Ops Car Park Aug 23,21/09/2023,10.8,54,64.8,OLR - Site & Centre Management,Contract Charges ,61800
http://statistics.data.gov.uk/id/local-authority/12UE,Huntingdonshire District Council,200434,JADE SECURITY SERVICES LTD JADE SECURITY SERVICES LTD,84052,31/07/2023,5914,Cash Collection Jul23,24/08/2023,10.8,54,64.8,OLR - Site & Centre Management,Contract Charges ,61800
http://statistics.data.gov.uk/id/local-authority/12UE,Huntingdonshire District Council,200434,JADE SECURITY SERVICES LTD JADE SECURITY SERVICES LTD,84699,30/06/2023,5803,Cash Collections Jun23,17/08/2023,10.8,54,64.8,OLR - Site & Centre Management,Contract Charges ,61800
http://statistics.data.gov.uk/id/local-authority/12UE,Huntingdonshire District Council,203322,Right Directions (Management) Ltd,86561,22/09/2023,9814,OLSI Audit Fees (Health & Safety),28/09/2023,130,650,780,OLR - Site & Centre Management,Audit Fees,62100
http://statistics.data.gov.uk/id/local-authority/12UE,Huntingdonshire District Council,200117,BRAMBLE HUB LTD BRAMBLE HUB LTD,84176,27/07/2023,INV-13505,OL IT Software,17/08/2023,124.44,622.22,746.66,OLR - Site & Centre Management,Ict Software,64071
http://statistics.data.gov.uk/id/local-authority/12UE,Huntingdonshire District Council,200117,BRAMBLE HUB LTD BRAMBLE HUB LTD,84076,27/07/2023,INV-13504,Staff Training & Development,17/08/2023,205.95,1029.76,1235.71,OLR - Site & Centre Management,Ict Software,64071
http://statistics.data.gov.uk/id/local-authority/12UE,Huntingdonshire District Council,200417,Swim England Trading Limited,85384,29/08/2023,SWINV090661,OLR Badges & Certificates,21/09/2023,331.21,1656.05,1987.26,OLR - Swimming,Materials,61709
http://statistics.data.gov.uk/id/local-authority/12UE,Huntingdonshire District Council,202749,COMPLETE POOL CONTROLS LTD,84074,03/08/2023,INV090419,OLR Pool Chemicals,24/08/2023,129.53,647.65,777.18,OLR - Swimming,Chemicals,64000
http://statistics.data.gov.uk/id/local-authority/12UE,Huntingdonshire District Council,202749,COMPLETE POOL CONTROLS LTD,85382,30/08/2023,INV091320,OLR Pool Chemicals,21/09/2023,64.73,323.65,388.38,OLR - Swimming,Chemicals,64000
http://statistics.data.gov.uk/id/local-authority/12UE,Huntingdonshire District Council,203100,Booker Wholesale Cambridge,82529,25/06/2023,3545512,ZEST Catering/Bar/Materials/Confection,07/07/2023,97.48,487.38,584.86,OLSI - Burgess Bar,Materials,61709
http://statistics.data.gov.uk/id/local-authority/12UE,Huntingdonshire District Council,203100,Booker Wholesale Cambridge,85840,05/09/2023,3548195,OLSTI DRINKS,14/09/2023,32.79,163.96,196.75,OLSI - Burgess Bar,Materials,61709
http://statistics.data.gov.uk/id/local-authority/12UE,Huntingdonshire District Council,200471,LACONS LACONS,82622,22/06/2023,924505,BH Bar Provisions/Gas Cylinders,13/07/2023,28.72,143.62,172.34,OLSI - Burgess Bar,Gas Cylinders,61711
http://statistics.data.gov.uk/id/local-authority/12UE,Huntingdonshire District Council,200471,LACONS LACONS,83916,26/07/2023,928618,BH Bar Provisions/Gas Cylinders,17/08/2023,2.76,13.81,16.57,OLSI - Burgess Bar,Gas Cylinders,61711
http://statistics.data.gov.uk/id/local-authority/12UE,Huntingdonshire District Council,203100,Booker Wholesale Cambridge,82529,25/06/2023,3545512,ZEST Catering/Bar/Materials/Confection,07/07/2023,0,19.29,19.29,OLSI - Burgess Bar,Catering Supplies,61900
http://statistics.data.gov.uk/id/local-authority/12UE,Huntingdonshire District Council,203100,Booker Wholesale Cambridge,84167,30/07/2023,3546852,BH Bar Provisions/Catering Supplies,10/08/2023,0,36.88,36.88,OLSI - Burgess Bar,Catering Supplies,61900
http://statistics.data.gov.uk/id/local-authority/12UE,Huntingdonshire District Council,203100,Booker Wholesale Cambridge,84168,27/07/2023,3546783,BH Catering Supplies/Bar Provisions,10/08/2023,0,359.8,359.8,OLSI - Burgess Bar,Catering Supplies,61900
http://statistics.data.gov.uk/id/local-authority/12UE,Huntingdonshire District Council,200734,SOUTH LINCS FOOD SERVICE SOUTH LINCS FOOD SERVICE,83520,11/07/2023,303252,ZEST/BH Catering/Vending/Bar/Confect/Mat,27/07/2023,0,105.44,105.44,OLSI - Burgess Bar,Catering Supplies,61900
http://statistics.data.gov.uk/id/local-authority/12UE,Huntingdonshire District Council,200734,SOUTH LINCS FOOD SERVICE SOUTH LINCS FOOD SERVICE,84170,29/07/2023,309317,ZEST/BH Catering/Bar Provisions,10/08/2023,0,19.4,19.4,OLSI - Burgess Bar,Catering Supplies,61900
http://statistics.data.gov.uk/id/local-authority/12UE,Huntingdonshire District Council,203100,Booker Wholesale Cambridge,86483,18/09/2023,3548600,BH Catering/Vending/Bar Provisions,25/09/2023,0,30.95,30.95,OLSI - Burgess Bar,Catering Supplies,61900
http://statistics.data.gov.uk/id/local-authority/12UE,Huntingdonshire District Council,200471,LACONS LACONS,82622,22/06/2023,924505,BH Bar Provisions/Gas Cylinders,13/07/2023,611.81,3059.05,3670.86,OLSI - Burgess Bar,Bar Provisions,61905
http://statistics.data.gov.uk/id/local-authority/12UE,Huntingdonshire District Council,203100,Booker Wholesale Cambridge,82529,25/06/2023,3545512,ZEST Catering/Bar/Materials/Confection,07/07/2023,420.4,2102,2522.4,OLSI - Burgess Bar,Bar Provisions,61905
http://statistics.data.gov.uk/id/local-authority/12UE,Huntingdonshire District Council,200471,LACONS LACONS,83916,26/07/2023,928618,BH Bar Provisions/Gas Cylinders,17/08/2023,307,1535.01,1842.01,OLSI - Burgess Bar,Bar Provisions,61905
http://statistics.data.gov.uk/id/local-authority/12UE,Huntingdonshire District Council,200471,LACONS LACONS,85925,04/09/2023,933891,olsti drinks,28/09/2023,290.75,1453.73,1744.48,OLSI - Burgess Bar,Bar Provisions,61905
http://statistics.data.gov.uk/id/local-authority/12UE,Huntingdonshire District Council,203100,Booker Wholesale Cambridge,84167,30/07/2023,3546852,BH Bar Provisions/Catering Supplies,10/08/2023,265.33,1326.64,1591.97,OLSI - Burgess Bar,Bar Provisions,61905
http://statistics.data.gov.uk/id/local-authority/12UE,Huntingdonshire District Council,203100,Booker Wholesale Cambridge,84166,27/07/2023,3546782,BH Bar Provisions,10/08/2023,113.24,566.22,679.46,OLSI - Burgess Bar,Bar Provisions,61905
http://statistics.data.gov.uk/id/local-authority/12UE,Huntingdonshire District Council,203100,Booker Wholesale Cambridge,84168,27/07/2023,3546783,BH Catering Supplies/Bar Provisions,10/08/2023,38.38,191.9,230.28,OLSI - Burgess Bar,Bar Provisions,61905
http://statistics.data.gov.uk/id/local-authority/12UE,Huntingdonshire District Council,203100,Booker Wholesale Cambridge,85840,05/09/2023,3548195,OLSTI DRINKS,14/09/2023,66.16,330.79,396.95,OLSI - Burgess Bar,Bar Provisions,61905
http://statistics.data.gov.uk/id/local-authority/12UE,Huntingdonshire District Council,203100,Booker Wholesale Cambridge,86483,18/09/2023,3548600,BH Catering/Vending/Bar Provisions,25/09/2023,44.96,224.78,269.74,OLSI - Burgess Bar,Bar Provisions,61905
http://statistics.data.gov.uk/id/local-authority/12UE,Huntingdonshire District Council,200583,OAKHAM ALES OAKHAM ALES,83917,28/07/2023,I2880882,BH Bar Provisions,03/08/2023,50.03,250.16,300.19,OLSI - Burgess Bar,Bar Provisions,61905
http://statistics.data.gov.uk/id/local-authority/12UE,Huntingdonshire District Council,203100,Booker Wholesale Cambridge,82529,25/06/2023,3545512,ZEST Catering/Bar/Materials/Confection,07/07/2023,9.44,47.18,56.62,OLSI - Burgess Bar,Confectionery,61906
http://statistics.data.gov.uk/id/local-authority/12UE,Huntingdonshire District Council,200734,SOUTH LINCS FOOD SERVICE SOUTH LINCS FOOD SERVICE,83520,11/07/2023,303252,ZEST/BH Catering/Vending/Bar/Confect/Mat,27/07/2023,17.98,89.91,107.89,OLSI - Burgess Bar,Confectionery,61906
http://statistics.data.gov.uk/id/local-authority/12UE,Huntingdonshire District Council,200845,WESTMINSTER FOODSERVICE WESTMINSTER FOODSERVICE,83517,12/07/2023,37468,ZEST/BH Catering/Confectionery/Bar,03/08/2023,9.32,46.59,55.91,OLSI - Burgess Bar,Confectionery,61906
http://statistics.data.gov.uk/id/local-authority/12UE,Huntingdonshire District Council,202030,MGS LTD,85823,29/08/2023,19812,ops job 14183,21/09/2023,12.2,61,73.2,OLSI - Burgess Hall,Maintenance - Building,60201
http://statistics.data.gov.uk/id/local-authority/12UE,Huntingdonshire District Council,200611,PPL PRS LTD PERFORMING RIGHT SOCIETY,83978,31/07/2023,SIN2453935,Music Licence Recharge,24/08/2023,161.8,809.02,970.82,OLSI - Burgess Hall,Licences,60410
http://statistics.data.gov.uk/id/local-authority/12UE,Huntingdonshire District Council,200694,ROGER WILSON ELECTRONICS ROGER WILSON ELECTRONICS,83850,25/07/2023,11009,BH Cyclical/Planned Maint + Equipment,03/08/2023,62.93,314.66,377.59,OLSI - Burgess Hall,"Purchase - Equipment, Furniture And Materials",61703
http://statistics.data.gov.uk/id/local-authority/12UE,Huntingdonshire District Council,203109,Concord Theatricals Ltd,80969,30/05/2023,1943917,CtrPlyrs Slice Of Sat Night May23,17/08/2023,185.4,927,1112.4,OLSI - Burgess Hall,Entertainments,64079
http://statistics.data.gov.uk/id/local-authority/12UE,Huntingdonshire District Council,200114,THE BORDER STUDIO LTD,85924,08/09/2023,11456,olsti blackcloth hire,18/09/2023,190,950,1140,OLSI - Burgess Hall,Materials,61709
http://statistics.data.gov.uk/id/local-authority/12UE,Huntingdonshire District Council,200734,SOUTH LINCS FOOD SERVICE SOUTH LINCS FOOD SERVICE,82978,27/06/2023,298941,ZEST Catering/Bar Provisions/Material,13/07/2023,33.48,167.39,200.87,OLSI - Hospitality,Materials,61709
http://statistics.data.gov.uk/id/local-authority/12UE,Huntingdonshire District Council,200723,SLUSH PUPPIE LTD SLUSH PUPPIE LTD,84498,03/08/2023,INVGB287529,OLSI Catering&Vending Supplies/Materials,24/08/2023,20.69,103.46,124.15,OLSI - Hospitality,Materials,61709
http://statistics.data.gov.uk/id/local-authority/12UE,Huntingdonshire District Council,200734,SOUTH LINCS FOOD SERVICE SOUTH LINCS FOOD SERVICE,83520,11/07/2023,303252,ZEST/BH Catering/Vending/Bar/Confect/Mat,27/07/2023,14.16,70.8,84.96,OLSI - Hospitality,Materials,61709
http://statistics.data.gov.uk/id/local-authority/12UE,Huntingdonshire District Council,200455,KEN BOOTH & CO KEN BOOTH & CO,82443,27/06/2023,421088,OLSI Catering Materials,21/07/2023,82.53,412.65,495.18,OLSI - Hospitality,Materials,61709
http://statistics.data.gov.uk/id/local-authority/12UE,Huntingdonshire District Council,200734,SOUTH LINCS FOOD SERVICE SOUTH LINCS FOOD SERVICE,86113,05/09/2023,321180,ZEST Catering/Vending/Bar/Materials,18/09/2023,0.4,2,2.4,OLSI - Hospitality,Materials,61709
http://statistics.data.gov.uk/id/local-authority/12UE,Huntingdonshire District Council,200845,WESTMINSTER FOODSERVICE WESTMINSTER FOODSERVICE,83384,05/07/2023,37288,ZEST Bar/Confectionery/Catering/Material,27/07/2023,4.2,20.99,25.19,OLSI - Hospitality,Materials,61709
http://statistics.data.gov.uk/id/local-authority/12UE,Huntingdonshire District Council,200734,SOUTH LINCS FOOD SERVICE SOUTH LINCS FOOD SERVICE,86482,12/09/2023,323331,ZEST Catering/Vending/Bar/Materials,25/09/2023,0.59,2.97,3.56,OLSI - Hospitality,Materials,61709
http://statistics.data.gov.uk/id/local-authority/12UE,Huntingdonshire District Council,200734,SOUTH LINCS FOOD SERVICE SOUTH LINCS FOOD SERVICE,84865,06/08/2023,312170,OLSTI CATERING,24/08/2023,4.47,22.37,26.84,OLSI - Hospitality,Materials,61709
http://statistics.data.gov.uk/id/local-authority/12UE,Huntingdonshire District Council,203100,Booker Wholesale Cambridge,82529,25/06/2023,3545512,ZEST Catering/Bar/Materials/Confection,07/07/2023,0,30.18,30.18,OLSI - Hospitality,Catering Supplies,61900
http://statistics.data.gov.uk/id/local-authority/12UE,Huntingdonshire District Council,200734,SOUTH LINCS FOOD SERVICE SOUTH LINCS FOOD SERVICE,82978,27/06/2023,298941,ZEST Catering/Bar Provisions/Material,13/07/2023,0,329.09,329.09,OLSI - Hospitality,Catering Supplies,61900
http://statistics.data.gov.uk/id/local-authority/12UE,Huntingdonshire District Council,200726,SNACKLINE DIRECT LTD SNACKLINE DIRECT LTD,82061,13/06/2023,141236,OLSI Confectionery/Bar Provs/Wild Waters,07/07/2023,5.19,25.96,31.15,OLSI - Hospitality,Catering Supplies,61900
http://statistics.data.gov.uk/id/local-authority/12UE,Huntingdonshire District Council,200723,SLUSH PUPPIE LTD SLUSH PUPPIE LTD,84498,03/08/2023,INVGB287529,OLSI Catering&Vending Supplies/Materials,24/08/2023,71.56,357.8,429.36,OLSI - Hospitality,Catering Supplies,61900
http://statistics.data.gov.uk/id/local-authority/12UE,Huntingdonshire District Council,200726,SNACKLINE DIRECT LTD SNACKLINE DIRECT LTD,83722,18/07/2023,142185,ZEST Catering/Confectionery/Bar,10/08/2023,9.09,45.43,54.52,OLSI - Hospitality,Catering Supplies,61900
http://statistics.data.gov.uk/id/local-authority/12UE,Huntingdonshire District Council,200734,SOUTH LINCS FOOD SERVICE SOUTH LINCS FOOD SERVICE,83520,11/07/2023,303252,ZEST/BH Catering/Vending/Bar/Confect/Mat,27/07/2023,0,149.72,149.72,OLSI - Hospitality,Catering Supplies,61900
http://statistics.data.gov.uk/id/local-authority/12UE,Huntingdonshire District Council,200845,WESTMINSTER FOODSERVICE WESTMINSTER FOODSERVICE,82062,16/06/2023,36787,OLSI Catering/Vending/Confectionery/Bar,07/07/2023,0,60.27,60.27,OLSI - Hospitality,Catering Supplies,61900
http://statistics.data.gov.uk/id/local-authority/12UE,Huntingdonshire District Council,200726,SNACKLINE DIRECT LTD SNACKLINE DIRECT LTD,82251,21/06/2023,141508,ZEST Bar/Catering/Vending/Confectionery,13/07/2023,12.98,64.9,77.88,OLSI - Hospitality,Catering Supplies,61900
http://statistics.data.gov.uk/id/local-authority/12UE,Huntingdonshire District Council,200845,WESTMINSTER FOODSERVICE WESTMINSTER FOODSERVICE,86116,05/09/2023,38746,OLSI Catering/Vending/Bar/Confectionery,28/09/2023,0,128.24,128.24,OLSI - Hospitality,Catering Supplies,61900
http://statistics.data.gov.uk/id/local-authority/12UE,Huntingdonshire District Council,200734,SOUTH LINCS FOOD SERVICE SOUTH LINCS FOOD SERVICE,86113,05/09/2023,321180,ZEST Catering/Vending/Bar/Materials,18/09/2023,0,322.32,322.32,OLSI - Hospitality,Catering Supplies,61900
http://statistics.data.gov.uk/id/local-authority/12UE,Huntingdonshire District Council,200734,SOUTH LINCS FOOD SERVICE SOUTH LINCS FOOD SERVICE,84170,29/07/2023,309317,ZEST/BH Catering/Bar Provisions,10/08/2023,0,276.75,276.75,OLSI - Hospitality,Catering Supplies,61900
http://statistics.data.gov.uk/id/local-authority/12UE,Huntingdonshire District Council,200845,WESTMINSTER FOODSERVICE WESTMINSTER FOODSERVICE,83384,05/07/2023,37288,ZEST Bar/Confectionery/Catering/Material,27/07/2023,0,69.24,69.24,OLSI - Hospitality,Catering Supplies,61900
http://statistics.data.gov.uk/id/local-authority/12UE,Huntingdonshire District Council,200726,SNACKLINE DIRECT LTD SNACKLINE DIRECT LTD,84169,25/07/2023,142337,ZEST Catering/Bar/Confectionery,17/08/2023,7.79,38.94,46.73,OLSI - Hospitality,Catering Supplies,61900
http://statistics.data.gov.uk/id/local-authority/12UE,Huntingdonshire District Council,200726,SNACKLINE DIRECT LTD SNACKLINE DIRECT LTD,84866,08/08/2023,142627,olsti catering,31/08/2023,20.77,103.84,124.61,OLSI - Hospitality,Catering Supplies,61900
http://statistics.data.gov.uk/id/local-authority/12UE,Huntingdonshire District Council,200734,SOUTH LINCS FOOD SERVICE SOUTH LINCS FOOD SERVICE,86482,12/09/2023,323331,ZEST Catering/Vending/Bar/Materials,25/09/2023,0,248.22,248.22,OLSI - Hospitality,Catering Supplies,61900
http://statistics.data.gov.uk/id/local-authority/12UE,Huntingdonshire District Council,200734,SOUTH LINCS FOOD SERVICE SOUTH LINCS FOOD SERVICE,84856,17/08/2023,315092,olsti catering,24/08/2023,0,161.6,161.6,OLSI - Hospitality,Catering Supplies,61900
http://statistics.data.gov.uk/id/local-authority/12UE,Huntingdonshire District Council,200734,SOUTH LINCS FOOD SERVICE SOUTH LINCS FOOD SERVICE,84865,06/08/2023,312170,OLSTI CATERING,24/08/2023,0,243.36,243.36,OLSI - Hospitality,Catering Supplies,61900
http://statistics.data.gov.uk/id/local-authority/12UE,Huntingdonshire District Council,200726,SNACKLINE DIRECT LTD SNACKLINE DIRECT LTD,84862,15/08/2023,142783,OLSTI SNACKS,07/09/2023,18.17,90.86,109.03,OLSI - Hospitality,Catering Supplies,61900
http://statistics.data.gov.uk/id/local-authority/12UE,Huntingdonshire District Council,200734,SOUTH LINCS FOOD SERVICE SOUTH LINCS FOOD SERVICE,83313,23/05/2023,287611,ZEST Catering/Vending/Bar Provisions,21/07/2023,0,233.61,233.61,OLSI - Hospitality,Catering Supplies,61900
http://statistics.data.gov.uk/id/local-authority/12UE,Huntingdonshire District Council,200845,WESTMINSTER FOODSERVICE WESTMINSTER FOODSERVICE,83517,12/07/2023,37468,ZEST/BH Catering/Confectionery/Bar,03/08/2023,0,75.06,75.06,OLSI - Hospitality,Catering Supplies,61900
http://statistics.data.gov.uk/id/local-authority/12UE,Huntingdonshire District Council,200845,WESTMINSTER FOODSERVICE WESTMINSTER FOODSERVICE,84861,16/08/2023,38286,OLSTI DRINKS,07/09/2023,0,66.61,66.61,OLSI - Hospitality,Catering Supplies,61900
http://statistics.data.gov.uk/id/local-authority/12UE,Huntingdonshire District Council,200845,WESTMINSTER FOODSERVICE WESTMINSTER FOODSERVICE,82254,21/06/2023,36920,ZEST Catering/Vending/Bar/Confectionery,13/07/2023,0,121.31,121.31,OLSI - Hospitality,Catering Supplies,61900
http://statistics.data.gov.uk/id/local-authority/12UE,Huntingdonshire District Council,203100,Booker Wholesale Cambridge,82529,25/06/2023,3545512,ZEST Catering/Bar/Materials/Confection,07/07/2023,17.57,87.85,105.42,OLSI - Hospitality,Bar Provisions,61905
http://statistics.data.gov.uk/id/local-authority/12UE,Huntingdonshire District Council,200734,SOUTH LINCS FOOD SERVICE SOUTH LINCS FOOD SERVICE,82978,27/06/2023,298941,ZEST Catering/Bar Provisions/Material,13/07/2023,6.79,33.96,40.75,OLSI - Hospitality,Bar Provisions,61905
http://statistics.data.gov.uk/id/local-authority/12UE,Huntingdonshire District Council,200726,SNACKLINE DIRECT LTD SNACKLINE DIRECT LTD,82061,13/06/2023,141236,OLSI Confectionery/Bar Provs/Wild Waters,07/07/2023,47.66,238.3,285.96,OLSI - Hospitality,Bar Provisions,61905
http://statistics.data.gov.uk/id/local-authority/12UE,Huntingdonshire District Council,200726,SNACKLINE DIRECT LTD SNACKLINE DIRECT LTD,86111,05/09/2023,143248,ZEST Confectionery/Bar Provisions,28/09/2023,39.86,199.31,239.17,OLSI - Hospitality,Bar Provisions,61905
http://statistics.data.gov.uk/id/local-authority/12UE,Huntingdonshire District Council,200726,SNACKLINE DIRECT LTD SNACKLINE DIRECT LTD,86111,05/09/2023,143248,ZEST Confectionery/Bar Provisions,28/09/2023,0,31.98,31.98,OLSI - Hospitality,Bar Provisions,61905
http://statistics.data.gov.uk/id/local-authority/12UE,Huntingdonshire District Council,200726,SNACKLINE DIRECT LTD SNACKLINE DIRECT LTD,83722,18/07/2023,142185,ZEST Catering/Confectionery/Bar,10/08/2023,34.98,174.88,209.86,OLSI - Hospitality,Bar Provisions,61905
http://statistics.data.gov.uk/id/local-authority/12UE,Huntingdonshire District Council,200734,SOUTH LINCS FOOD SERVICE SOUTH LINCS FOOD SERVICE,83520,11/07/2023,303252,ZEST/BH Catering/Vending/Bar/Confect/Mat,27/07/2023,1.43,7.14,8.57,OLSI - Hospitality,Bar Provisions,61905
http://statistics.data.gov.uk/id/local-authority/12UE,Huntingdonshire District Council,200845,WESTMINSTER FOODSERVICE WESTMINSTER FOODSERVICE,82062,16/06/2023,36787,OLSI Catering/Vending/Confectionery/Bar,07/07/2023,64.83,324.16,388.99,OLSI - Hospitality,Bar Provisions,61905
http://statistics.data.gov.uk/id/local-authority/12UE,Huntingdonshire District Council,200726,SNACKLINE DIRECT LTD SNACKLINE DIRECT LTD,82251,21/06/2023,141508,ZEST Bar/Catering/Vending/Confectionery,13/07/2023,15.49,77.45,92.94,OLSI - Hospitality,Bar Provisions,61905
http://statistics.data.gov.uk/id/local-authority/12UE,Huntingdonshire District Council,200845,WESTMINSTER FOODSERVICE WESTMINSTER FOODSERVICE,86116,05/09/2023,38746,OLSI Catering/Vending/Bar/Confectionery,28/09/2023,39.23,196.16,235.39,OLSI - Hospitality,Bar Provisions,61905
http://statistics.data.gov.uk/id/local-authority/12UE,Huntingdonshire District Council,200734,SOUTH LINCS FOOD SERVICE SOUTH LINCS FOOD SERVICE,86113,05/09/2023,321180,ZEST Catering/Vending/Bar/Materials,18/09/2023,6.6,33,39.6,OLSI - Hospitality,Bar Provisions,61905
http://statistics.data.gov.uk/id/local-authority/12UE,Huntingdonshire District Council,200734,SOUTH LINCS FOOD SERVICE SOUTH LINCS FOOD SERVICE,84170,29/07/2023,309317,ZEST/BH Catering/Bar Provisions,10/08/2023,3,15,18,OLSI - Hospitality,Bar Provisions,61905
http://statistics.data.gov.uk/id/local-authority/12UE,Huntingdonshire District Council,200845,WESTMINSTER FOODSERVICE WESTMINSTER FOODSERVICE,83384,05/07/2023,37288,ZEST Bar/Confectionery/Catering/Material,27/07/2023,32.5,162.51,195.01,OLSI - Hospitality,Bar Provisions,61905
http://statistics.data.gov.uk/id/local-authority/12UE,Huntingdonshire District Council,200726,SNACKLINE DIRECT LTD SNACKLINE DIRECT LTD,84169,25/07/2023,142337,ZEST Catering/Bar/Confectionery,17/08/2023,6.4,31.98,38.38,OLSI - Hospitality,Bar Provisions,61905
http://statistics.data.gov.uk/id/local-authority/12UE,Huntingdonshire District Council,200726,SNACKLINE DIRECT LTD SNACKLINE DIRECT LTD,84169,25/07/2023,142337,ZEST Catering/Bar/Confectionery,17/08/2023,0,52.97,52.97,OLSI - Hospitality,Bar Provisions,61905
http://statistics.data.gov.uk/id/local-authority/12UE,Huntingdonshire District Council,200726,SNACKLINE DIRECT LTD SNACKLINE DIRECT LTD,84866,08/08/2023,142627,olsti catering,31/08/2023,22.18,110.9,133.08,OLSI - Hospitality,Bar Provisions,61905
http://statistics.data.gov.uk/id/local-authority/12UE,Huntingdonshire District Council,200726,SNACKLINE DIRECT LTD SNACKLINE DIRECT LTD,84684,01/08/2023,142485,OLSI Bar Provisions/Confectionery,24/08/2023,0,52.97,52.97,OLSI - Hospitality,Bar Provisions,61905
http://statistics.data.gov.uk/id/local-authority/12UE,Huntingdonshire District Council,200726,SNACKLINE DIRECT LTD SNACKLINE DIRECT LTD,84684,01/08/2023,142485,OLSI Bar Provisions/Confectionery,24/08/2023,41.77,208.87,250.64,OLSI - Hospitality,Bar Provisions,61905
http://statistics.data.gov.uk/id/local-authority/12UE,Huntingdonshire District Council,200734,SOUTH LINCS FOOD SERVICE SOUTH LINCS FOOD SERVICE,86482,12/09/2023,323331,ZEST Catering/Vending/Bar/Materials,25/09/2023,8.21,41.04,49.25,OLSI - Hospitality,Bar Provisions,61905
http://statistics.data.gov.uk/id/local-authority/12UE,Huntingdonshire District Council,200734,SOUTH LINCS FOOD SERVICE SOUTH LINCS FOOD SERVICE,84856,17/08/2023,315092,olsti catering,24/08/2023,6.65,33.24,39.89,OLSI - Hospitality,Bar Provisions,61905
http://statistics.data.gov.uk/id/local-authority/12UE,Huntingdonshire District Council,200734,SOUTH LINCS FOOD SERVICE SOUTH LINCS FOOD SERVICE,84865,06/08/2023,312170,OLSTI CATERING,24/08/2023,3.11,15.54,18.65,OLSI - Hospitality,Bar Provisions,61905
http://statistics.data.gov.uk/id/local-authority/12UE,Huntingdonshire District Council,200726,SNACKLINE DIRECT LTD SNACKLINE DIRECT LTD,84862,15/08/2023,142783,OLSTI SNACKS,07/09/2023,17.89,89.44,107.33,OLSI - Hospitality,Bar Provisions,61905
http://statistics.data.gov.uk/id/local-authority/12UE,Huntingdonshire District Council,200734,SOUTH LINCS FOOD SERVICE SOUTH LINCS FOOD SERVICE,83313,23/05/2023,287611,ZEST Catering/Vending/Bar Provisions,21/07/2023,3.77,18.84,22.61,OLSI - Hospitality,Bar Provisions,61905
http://statistics.data.gov.uk/id/local-authority/12UE,Huntingdonshire District Council,200845,WESTMINSTER FOODSERVICE WESTMINSTER FOODSERVICE,83517,12/07/2023,37468,ZEST/BH Catering/Confectionery/Bar,03/08/2023,26.02,130.11,156.13,OLSI - Hospitality,Bar Provisions,61905
http://statistics.data.gov.uk/id/local-authority/12UE,Huntingdonshire District Council,200845,WESTMINSTER FOODSERVICE WESTMINSTER FOODSERVICE,84861,16/08/2023,38286,OLSTI DRINKS,07/09/2023,34.66,173.31,207.97,OLSI - Hospitality,Bar Provisions,61905
http://statistics.data.gov.uk/id/local-authority/12UE,Huntingdonshire District Council,200845,WESTMINSTER FOODSERVICE WESTMINSTER FOODSERVICE,82254,21/06/2023,36920,ZEST Catering/Vending/Bar/Confectionery,13/07/2023,23.45,117.24,140.69,OLSI - Hospitality,Bar Provisions,61905
http://statistics.data.gov.uk/id/local-authority/12UE,Huntingdonshire District Council,200726,SNACKLINE DIRECT LTD SNACKLINE DIRECT LTD,82061,13/06/2023,141236,OLSI Confectionery/Bar Provs/Wild Waters,07/07/2023,36.87,184.37,221.24,OLSI - Hospitality,Confectionery,61906
http://statistics.data.gov.uk/id/local-authority/12UE,Huntingdonshire District Council,200726,SNACKLINE DIRECT LTD SNACKLINE DIRECT LTD,82061,13/06/2023,141236,OLSI Confectionery/Bar Provs/Wild Waters,07/07/2023,0,31.45,31.45,OLSI - Hospitality,Confectionery,61906
http://statistics.data.gov.uk/id/local-authority/12UE,Huntingdonshire District Council,200726,SNACKLINE DIRECT LTD SNACKLINE DIRECT LTD,86111,05/09/2023,143248,ZEST Confectionery/Bar Provisions,28/09/2023,38.28,191.39,229.67,OLSI - Hospitality,Confectionery,61906
http://statistics.data.gov.uk/id/local-authority/12UE,Huntingdonshire District Council,200726,SNACKLINE DIRECT LTD SNACKLINE DIRECT LTD,86111,05/09/2023,143248,ZEST Confectionery/Bar Provisions,28/09/2023,0,51.85,51.85,OLSI - Hospitality,Confectionery,61906
http://statistics.data.gov.uk/id/local-authority/12UE,Huntingdonshire District Council,200726,SNACKLINE DIRECT LTD SNACKLINE DIRECT LTD,83722,18/07/2023,142185,ZEST Catering/Confectionery/Bar,10/08/2023,0,47.15,47.15,OLSI - Hospitality,Confectionery,61906
http://statistics.data.gov.uk/id/local-authority/12UE,Huntingdonshire District Council,200726,SNACKLINE DIRECT LTD SNACKLINE DIRECT LTD,83722,18/07/2023,142185,ZEST Catering/Confectionery/Bar,10/08/2023,34.68,173.38,208.06,OLSI - Hospitality,Confectionery,61906
http://statistics.data.gov.uk/id/local-authority/12UE,Huntingdonshire District Council,200845,WESTMINSTER FOODSERVICE WESTMINSTER FOODSERVICE,82062,16/06/2023,36787,OLSI Catering/Vending/Confectionery/Bar,07/07/2023,4.27,21.35,25.62,OLSI - Hospitality,Confectionery,61906
http://statistics.data.gov.uk/id/local-authority/12UE,Huntingdonshire District Council,200726,SNACKLINE DIRECT LTD SNACKLINE DIRECT LTD,82251,21/06/2023,141508,ZEST Bar/Catering/Vending/Confectionery,13/07/2023,43.47,217.33,260.8,OLSI - Hospitality,Confectionery,61906
http://statistics.data.gov.uk/id/local-authority/12UE,Huntingdonshire District Council,200726,SNACKLINE DIRECT LTD SNACKLINE DIRECT LTD,82251,21/06/2023,141508,ZEST Bar/Catering/Vending/Confectionery,13/07/2023,0,32.57,32.57,OLSI - Hospitality,Confectionery,61906
http://statistics.data.gov.uk/id/local-authority/12UE,Huntingdonshire District Council,200845,WESTMINSTER FOODSERVICE WESTMINSTER FOODSERVICE,86116,05/09/2023,38746,OLSI Catering/Vending/Bar/Confectionery,28/09/2023,12,60,72,OLSI - Hospitality,Confectionery,61906
http://statistics.data.gov.uk/id/local-authority/12UE,Huntingdonshire District Council,200845,WESTMINSTER FOODSERVICE WESTMINSTER FOODSERVICE,83384,05/07/2023,37288,ZEST Bar/Confectionery/Catering/Material,27/07/2023,7.02,35.09,42.11,OLSI - Hospitality,Confectionery,61906
http://statistics.data.gov.uk/id/local-authority/12UE,Huntingdonshire District Council,200845,WESTMINSTER FOODSERVICE WESTMINSTER FOODSERVICE,83384,05/07/2023,37288,ZEST Bar/Confectionery/Catering/Material,27/07/2023,0,18.2,18.2,OLSI - Hospitality,Confectionery,61906
http://statistics.data.gov.uk/id/local-authority/12UE,Huntingdonshire District Council,200726,SNACKLINE DIRECT LTD SNACKLINE DIRECT LTD,84169,25/07/2023,142337,ZEST Catering/Bar/Confectionery,17/08/2023,22.38,111.92,134.3,OLSI - Hospitality,Confectionery,61906
http://statistics.data.gov.uk/id/local-authority/12UE,Huntingdonshire District Council,200726,SNACKLINE DIRECT LTD SNACKLINE DIRECT LTD,84169,25/07/2023,142337,ZEST Catering/Bar/Confectionery,17/08/2023,0,67.25,67.25,OLSI - Hospitality,Confectionery,61906
http://statistics.data.gov.uk/id/local-authority/12UE,Huntingdonshire District Council,200726,SNACKLINE DIRECT LTD SNACKLINE DIRECT LTD,84866,08/08/2023,142627,olsti catering,31/08/2023,11.19,55.96,67.15,OLSI - Hospitality,Confectionery,61906
http://statistics.data.gov.uk/id/local-authority/12UE,Huntingdonshire District Council,200726,SNACKLINE DIRECT LTD SNACKLINE DIRECT LTD,84866,08/08/2023,142627,olsti catering,31/08/2023,0,30.98,30.98,OLSI - Hospitality,Confectionery,61906
http://statistics.data.gov.uk/id/local-authority/12UE,Huntingdonshire District Council,200726,SNACKLINE DIRECT LTD SNACKLINE DIRECT LTD,84684,01/08/2023,142485,OLSI Bar Provisions/Confectionery,24/08/2023,0,7.29,7.29,OLSI - Hospitality,Confectionery,61906
http://statistics.data.gov.uk/id/local-authority/12UE,Huntingdonshire District Council,200726,SNACKLINE DIRECT LTD SNACKLINE DIRECT LTD,84684,01/08/2023,142485,OLSI Bar Provisions/Confectionery,24/08/2023,5.2,25.98,31.18,OLSI - Hospitality,Confectionery,61906
http://statistics.data.gov.uk/id/local-authority/12UE,Huntingdonshire District Council,200734,SOUTH LINCS FOOD SERVICE SOUTH LINCS FOOD SERVICE,84856,17/08/2023,315092,olsti catering,24/08/2023,0,80.7,80.7,OLSI - Hospitality,Confectionery,61906
http://statistics.data.gov.uk/id/local-authority/12UE,Huntingdonshire District Council,200734,SOUTH LINCS FOOD SERVICE SOUTH LINCS FOOD SERVICE,84856,17/08/2023,315092,olsti catering,24/08/2023,2.78,13.92,16.7,OLSI - Hospitality,Confectionery,61906
http://statistics.data.gov.uk/id/local-authority/12UE,Huntingdonshire District Council,200726,SNACKLINE DIRECT LTD SNACKLINE DIRECT LTD,84862,15/08/2023,142783,OLSTI SNACKS,07/09/2023,0,39.45,39.45,OLSI - Hospitality,Confectionery,61906
http://statistics.data.gov.uk/id/local-authority/12UE,Huntingdonshire District Council,200726,SNACKLINE DIRECT LTD SNACKLINE DIRECT LTD,84862,15/08/2023,142783,OLSTI SNACKS,07/09/2023,11.19,55.97,67.16,OLSI - Hospitality,Confectionery,61906
http://statistics.data.gov.uk/id/local-authority/12UE,Huntingdonshire District Council,200845,WESTMINSTER FOODSERVICE WESTMINSTER FOODSERVICE,84861,16/08/2023,38286,OLSTI DRINKS,07/09/2023,2.3,11.5,13.8,OLSI - Hospitality,Confectionery,61906
http://statistics.data.gov.uk/id/local-authority/12UE,Huntingdonshire District Council,200845,WESTMINSTER FOODSERVICE WESTMINSTER FOODSERVICE,82254,21/06/2023,36920,ZEST Catering/Vending/Bar/Confectionery,13/07/2023,2.3,11.5,13.8,OLSI - Hospitality,Confectionery,61906
http://statistics.data.gov.uk/id/local-authority/12UE,Huntingdonshire District Council,200809,UKACTIVE UKACTIVE,82230,26/06/2023,INV-204896,Licences Aug23-Jul24 Health Commintment,21/07/2023,25,125,150,OLSI - Impressions,Licences,60410
http://statistics.data.gov.uk/id/local-authority/12UE,Huntingdonshire District Council,201994,Pulse Fitness Ltd,86017,04/07/2023,7243,WARRANTY 010723 - 300624,14/09/2023,1490.33,7451.63,8941.96,OLSI - Impressions,"Maintenance - Equipment, Furniture And Materials",61702
http://statistics.data.gov.uk/id/local-authority/12UE,Huntingdonshire District Council,200494,LIFE FITNESS UK LTD LIFE FITNESS UK LTD,83391,06/07/2023,510PI113838,OLSI Gym Computer,27/07/2023,7.6,38,45.6,OLSI - Impressions,"Maintenance - Equipment, Furniture And Materials",61702
http://statistics.data.gov.uk/id/local-authority/12UE,Huntingdonshire District Council,200494,LIFE FITNESS UK LTD LIFE FITNESS UK LTD,83391,06/07/2023,510PI113838,OLSI Gym Computer,27/07/2023,60.48,302.41,362.89,OLSI - Impressions,"Maintenance - Equipment, Furniture And Materials",61702
http://statistics.data.gov.uk/id/local-authority/12UE,Huntingdonshire District Council,203094,Institute of Swimming Limited,85838,30/04/2023,IOSINV032674,OL TEACHER TRAINING,14/09/2023,0,659,659,OLSI - Site & Centre Management,Staff Development And Training,60115
http://statistics.data.gov.uk/id/local-authority/12UE,Huntingdonshire District Council,203094,Institute of Swimming Limited,83702,20/07/2023,IOSINV033922,REDACTED,10/08/2023,0,399,399,OLSI - Site & Centre Management,Staff Development And Training,60115
http://statistics.data.gov.uk/id/local-authority/12UE,Huntingdonshire District Council,200694,ROGER WILSON ELECTRONICS ROGER WILSON ELECTRONICS,83846,25/07/2023,11010,OLSI Various Maintenance Items,03/08/2023,354.28,1771.38,2125.66,OLSI - Site & Centre Management,Maintenance - Building,60201
http://statistics.data.gov.uk/id/local-authority/12UE,Huntingdonshire District Council,200679,RICHARD SISTROM PAINTING & DECORATING RICHARD SISTROM PAINTING & DECORATING,84813,12/08/2023,INV 096,OLSTI VILLAGE HYGIENE BOARD,31/08/2023,550,2750,3300,OLSI - Site & Centre Management,Maintenance - Building,60201
http://statistics.data.gov.uk/id/local-authority/12UE,Huntingdonshire District Council,200772,TEMPLE LIFTS LIMITED TEMPLE LIFTS LIMITED,84331,31/07/2023,570596,BH Service Lift,24/08/2023,290,1450,1740,OLSI - Site & Centre Management,Maintenance - Building,60201
http://statistics.data.gov.uk/id/local-authority/12UE,Huntingdonshire District Council,200694,ROGER WILSON ELECTRONICS ROGER WILSON ELECTRONICS,83850,25/07/2023,11009,BH Cyclical/Planned Maint + Equipment,03/08/2023,70,350,420,OLSI - Site & Centre Management,Maintenance - Building,60201
http://statistics.data.gov.uk/id/local-authority/12UE,Huntingdonshire District Council,200694,ROGER WILSON ELECTRONICS ROGER WILSON ELECTRONICS,85361,13/08/2023,11024,BH Works,04/09/2023,129.88,649.42,779.3,OLSI - Site & Centre Management,Maintenance - Building,60201
http://statistics.data.gov.uk/id/local-authority/12UE,Huntingdonshire District Council,200542,MIRAMAR ENGINEERING LTD MIRAMAR ENGINEERING LTD,82835,05/07/2023,11329,OLSI - Water Pipe Leak Ladies Changing,27/07/2023,110.82,554.1,664.92,OLSI - Site & Centre Management,Maintenance - Building,60201
http://statistics.data.gov.uk/id/local-authority/12UE,Huntingdonshire District Council,200580,NOVUS COMPLIANCE SERVICES LTD NOVUS COMPLIANCE SERVICES LTD,82743,02/06/2023,25407,OLSI PAT23,07/07/2023,107.01,535.06,642.07,OLSI - Site & Centre Management,Maintenance - Building,60201
http://statistics.data.gov.uk/id/local-authority/12UE,Huntingdonshire District Council,200679,RICHARD SISTROM PAINTING & DECORATING RICHARD SISTROM PAINTING & DECORATING,84985,22/08/2023,INV 097,OLSTI SHOWER WORK,18/09/2023,80,400,480,OLSI - Site & Centre Management,Maintenance - Building,60201
http://statistics.data.gov.uk/id/local-authority/12UE,Huntingdonshire District Council,203353,Syston Doors,86755,10/07/2023,2817,OLSI Repair Shutters,28/09/2023,66,330,396,OLSI - Site & Centre Management,Maintenance - Building,60201
http://statistics.data.gov.uk/id/local-authority/12UE,Huntingdonshire District Council,200694,ROGER WILSON ELECTRONICS ROGER WILSON ELECTRONICS,83279,01/05/2023,10972,OLSI Light Repairs,21/07/2023,21.6,108,129.6,OLSI - Site & Centre Management,Maintenance - Building,60201
http://statistics.data.gov.uk/id/local-authority/12UE,Huntingdonshire District Council,200694,ROGER WILSON ELECTRONICS ROGER WILSON ELECTRONICS,83279,01/05/2023,10972,OLSI Light Repairs,21/07/2023,11.9,59.5,71.4,OLSI - Site & Centre Management,Maintenance - Building,60201
http://statistics.data.gov.uk/id/local-authority/12UE,Huntingdonshire District Council,200694,ROGER WILSON ELECTRONICS ROGER WILSON ELECTRONICS,83279,01/05/2023,10972,OLSI Light Repairs,21/07/2023,19.5,97.5,117,OLSI - Site & Centre Management,Maintenance - Building,60201
http://statistics.data.gov.uk/id/local-authority/12UE,Huntingdonshire District Council,200694,ROGER WILSON ELECTRONICS ROGER WILSON ELECTRONICS,83279,01/05/2023,10972,OLSI Light Repairs,21/07/2023,7.5,37.5,45,OLSI - Site & Centre Management,Maintenance - Building,60201
http://statistics.data.gov.uk/id/local-authority/12UE,Huntingdonshire District Council,200694,ROGER WILSON ELECTRONICS ROGER WILSON ELECTRONICS,86335,01/05/2023,10971,BH Works,21/09/2023,50.53,252.63,303.16,OLSI - Site & Centre Management,Maintenance - Building,60201
http://statistics.data.gov.uk/id/local-authority/12UE,Huntingdonshire District Council,201119,UNIVERSAL SAFETY SYSTEMS LTD,84342,01/08/2023,20446,OLSI Fall Arrest,24/08/2023,79.6,398,477.6,OLSI - Site & Centre Management,Maintenance - Mechanical And Electrical,60203
http://statistics.data.gov.uk/id/local-authority/12UE,Huntingdonshire District Council,200742,ASTREA ACADEMY TRUST - ST IVO ACADEMY ST IVO SCHOOL,84497,21/07/2023,37SI 92,OLSTI WATER 1503 -1907,17/08/2023,0,2373.56,2373.56,OLSI - Site & Centre Management,Water And Sewerage,60302
http://statistics.data.gov.uk/id/local-authority/12UE,Huntingdonshire District Council,200913,WAVE  ANGLIAN WATER BUSINESS,84549,13/08/2023,12411428,OLSI Jul-Aug23,17/08/2023,0,407.69,407.69,OLSI - Site & Centre Management,Water And Sewerage,60302
http://statistics.data.gov.uk/id/local-authority/12UE,Huntingdonshire District Council,200913,WAVE  ANGLIAN WATER BUSINESS,83198,13/07/2023,12288771,OLSI Jun-Jul23,21/07/2023,0,375.75,375.75,OLSI - Site & Centre Management,Water And Sewerage,60302
http://statistics.data.gov.uk/id/local-authority/12UE,Huntingdonshire District Council,200913,WAVE  ANGLIAN WATER BUSINESS,86179,13/09/2023,12541233,OLSI Aug-Sep23,21/09/2023,0,373.97,373.97,OLSI - Site & Centre Management,Water And Sewerage,60302
http://statistics.data.gov.uk/id/local-authority/12UE,Huntingdonshire District Council,202135,TOTAL GAS AND POWER LTD,83200,09/07/2023,306356825/23,OLSI Jun23,17/07/2023,3054.87,15274.37,18329.24,OLSI - Site & Centre Management,Electricity,60303
http://statistics.data.gov.uk/id/local-authority/12UE,Huntingdonshire District Council,202135,TOTAL GAS AND POWER LTD,84507,06/08/2023,309179469/23,OLSI Jul23,17/08/2023,2836.95,14184.74,17021.69,OLSI - Site & Centre Management,Electricity,60303
http://statistics.data.gov.uk/id/local-authority/12UE,Huntingdonshire District Council,202135,TOTAL GAS AND POWER LTD,86101,10/09/2023,313259985/23,OLSI Aug23,18/09/2023,2815.97,14079.85,16895.82,OLSI - Site & Centre Management,Electricity,60303
http://statistics.data.gov.uk/id/local-authority/12UE,Huntingdonshire District Council,200126,BRITISH GAS BUSINESS BRITISH GAS BUSINESS,84033,03/08/2023,983683452,OLSI Jul23,10/08/2023,860.29,4301.46,5161.75,OLSI - Site & Centre Management,Gas,60305
http://statistics.data.gov.uk/id/local-authority/12UE,Huntingdonshire District Council,200126,BRITISH GAS BUSINESS BRITISH GAS BUSINESS,85782,05/09/2023,872025398,OLSI Aug23,11/09/2023,850.29,4251.43,5101.72,OLSI - Site & Centre Management,Gas,60305
http://statistics.data.gov.uk/id/local-authority/12UE,Huntingdonshire District Council,200126,BRITISH GAS BUSINESS BRITISH GAS BUSINESS,82906,04/07/2023,975778092,OLSI Jun23,13/07/2023,820.78,4103.88,4924.66,OLSI - Site & Centre Management,Gas,60305
http://statistics.data.gov.uk/id/local-authority/12UE,Huntingdonshire District Council,200348,GREENDAY ENERGY LTD GREENDAY ENERGY LTD,81643,12/06/2023,GD1654,Renewal Display Energy Cert May23,07/07/2023,22,110,132,OLSI - Site & Centre Management,Gas,60305
http://statistics.data.gov.uk/id/local-authority/12UE,Huntingdonshire District Council,202101,TRAINING SHED FAMILY LTD,82665,01/07/2023,INV-0161,OL Licences ALL Sites Jul23,07/07/2023,19.8,99,118.8,OLSI - Site & Centre Management,Licences,60410
http://statistics.data.gov.uk/id/local-authority/12UE,Huntingdonshire District Council,202101,TRAINING SHED FAMILY LTD,84163,01/08/2023,INV-0162,One Leisure Licences Aug23,10/08/2023,19.8,99,118.8,OLSI - Site & Centre Management,Licences,60410
http://statistics.data.gov.uk/id/local-authority/12UE,Huntingdonshire District Council,202101,TRAINING SHED FAMILY LTD,85639,01/09/2023,INV-0163,OL Myzone Facility License,07/09/2023,19.8,99,118.8,OLSI - Site & Centre Management,Licences,60410
http://statistics.data.gov.uk/id/local-authority/12UE,Huntingdonshire District Council,202728,ESCOREFRESH,82720,23/06/2023,43676,OLSI Cleaning Order,13/07/2023,182.36,911.82,1094.18,OLSI - Site & Centre Management,Cleaning Materials,61300
http://statistics.data.gov.uk/id/local-authority/12UE,Huntingdonshire District Council,202728,ESCOREFRESH,84065,04/08/2023,43784,OLSI Cleaning Materials,24/08/2023,128.75,643.74,772.49,OLSI - Site & Centre Management,Cleaning Materials,61300
http://statistics.data.gov.uk/id/local-authority/12UE,Huntingdonshire District Council,202728,ESCOREFRESH,85675,31/08/2023,43842,OLSI Cleaning Materials,21/09/2023,83.59,417.97,501.56,OLSI - Site & Centre Management,Cleaning Materials,61300
http://statistics.data.gov.uk/id/local-authority/12UE,Huntingdonshire District Council,202728,ESCOREFRESH,83561,07/07/2023,43719,OLSI Cleaning Materials,27/07/2023,64.84,324.22,389.06,OLSI - Site & Centre Management,Cleaning Materials,61300
http://statistics.data.gov.uk/id/local-authority/12UE,Huntingdonshire District Council,200737,SPORTMAX SPORTMAX,84859,14/07/2023,126876,OLSTI SWIM EQUIPMENT,24/08/2023,0,126.75,126.75,OLSI - Site & Centre Management,Goods For Resale,61400
http://statistics.data.gov.uk/id/local-authority/12UE,Huntingdonshire District Council,200737,SPORTMAX SPORTMAX,84859,14/07/2023,126876,OLSTI SWIM EQUIPMENT,24/08/2023,142.27,711.35,853.62,OLSI - Site & Centre Management,Goods For Resale,61400
http://statistics.data.gov.uk/id/local-authority/12UE,Huntingdonshire District Council,200737,SPORTMAX SPORTMAX,84966,17/08/2023,127530,sti swimwear,07/09/2023,0,90.45,90.45,OLSI - Site & Centre Management,Goods For Resale,61400
http://statistics.data.gov.uk/id/local-authority/12UE,Huntingdonshire District Council,200737,SPORTMAX SPORTMAX,84966,17/08/2023,127530,sti swimwear,07/09/2023,139.66,698.3,837.96,OLSI - Site & Centre Management,Goods For Resale,61400
http://statistics.data.gov.uk/id/local-authority/12UE,Huntingdonshire District Council,200737,SPORTMAX SPORTMAX,81937,13/06/2023,126320,OLSI Items For Sale,07/07/2023,0,67,67,OLSI - Site & Centre Management,Goods For Resale,61400
http://statistics.data.gov.uk/id/local-authority/12UE,Huntingdonshire District Council,200737,SPORTMAX SPORTMAX,81937,13/06/2023,126320,OLSI Items For Sale,07/07/2023,84.63,423.15,507.78,OLSI - Site & Centre Management,Goods For Resale,61400
http://statistics.data.gov.uk/id/local-authority/12UE,Huntingdonshire District Council,200615,PHS GROUP LTD PHS GROUP LTD,86095,07/02/2023,69616692,OLSI Cleaning/First Aid Materials,18/09/2023,603.37,3016.84,3620.21,OLSI - Site & Centre Management,Hire - Equipment Furniture And Materials,61700
http://statistics.data.gov.uk/id/local-authority/12UE,Huntingdonshire District Council,200411,INITIAL WASHROOM SOLUTIONS INITIAL WASHROOM SOLUTIONS,83157,11/07/2023,34760873,OLSN Hire Equipment,03/08/2023,47.02,235.08,282.1,OLSI - Site & Centre Management,Hire - Equipment Furniture And Materials,61700
http://statistics.data.gov.uk/id/local-authority/12UE,Huntingdonshire District Council,200411,INITIAL WASHROOM SOLUTIONS INITIAL WASHROOM SOLUTIONS,84642,09/08/2023,34793344,OL Hire Equipment 30.08-09.09.23,31/08/2023,46.96,234.78,281.74,OLSI - Site & Centre Management,Hire - Equipment Furniture And Materials,61700
http://statistics.data.gov.uk/id/local-authority/12UE,Huntingdonshire District Council,200411,INITIAL WASHROOM SOLUTIONS INITIAL WASHROOM SOLUTIONS,85965,08/09/2023,34825296,OLSTI 3009-2910,28/09/2023,47.02,235.08,282.1,OLSI - Site & Centre Management,Hire - Equipment Furniture And Materials,61700
http://statistics.data.gov.uk/id/local-authority/12UE,Huntingdonshire District Council,200615,PHS GROUP LTD PHS GROUP LTD,85944,27/08/2023,21744,OLSTI SANITARY,18/09/2023,55.37,276.85,332.22,OLSI - Site & Centre Management,Hire - Equipment Furniture And Materials,61700
http://statistics.data.gov.uk/id/local-authority/12UE,Huntingdonshire District Council,200615,PHS GROUP LTD PHS GROUP LTD,86093,06/02/2023,69615288,OLSI Service Credit,18/09/2023,-90.08,-450.38,-540.46,OLSI - Site & Centre Management,Hire - Equipment Furniture And Materials,61700
http://statistics.data.gov.uk/id/local-authority/12UE,Huntingdonshire District Council,200484,LE MARK  SELF -ADHESIVE LTD LE MARK  SELF -ADHESIVE LTD,82090,21/06/2023,130701,OLSI Materials,13/07/2023,115.44,577.2,692.64,OLSI - Site & Centre Management,Materials,61709
http://statistics.data.gov.uk/id/local-authority/12UE,Huntingdonshire District Council,200484,LE MARK  SELF -ADHESIVE LTD LE MARK  SELF -ADHESIVE LTD,82090,21/06/2023,130701,OLSI Materials,13/07/2023,3,15,18,OLSI - Site & Centre Management,Materials,61709
http://statistics.data.gov.uk/id/local-authority/12UE,Huntingdonshire District Council,200417,Swim England Trading Limited,82218,19/06/2023,SWINV085368,Badges & Certificates,13/07/2023,103.02,515.1,618.12,OLSI - Site & Centre Management,Badges and Certificates,61712
http://statistics.data.gov.uk/id/local-authority/12UE,Huntingdonshire District Council,201621,AUTHENTIC8 ID SOLUTIONS,81933,14/06/2023,4007980,Smart Fobs OL,07/07/2023,574,2870,3444,OLSI - Site & Centre Management,Equipment,61713
http://statistics.data.gov.uk/id/local-authority/12UE,Huntingdonshire District Council,201621,AUTHENTIC8 ID SOLUTIONS,82225,26/06/2023,4008026,OLSI Wrist Bands,13/07/2023,235,1175,1410,OLSI - Site & Centre Management,Equipment,61713
http://statistics.data.gov.uk/id/local-authority/12UE,Huntingdonshire District Council,200232,DCRS LTD DCRS LTD,86733,19/06/2023,260322,OLSI 2x Kirisun DP405,28/09/2023,52.54,262.7,315.24,OLSI - Site & Centre Management,Equipment,61713
http://statistics.data.gov.uk/id/local-authority/12UE,Huntingdonshire District Council,202540,THOMPSON AUDIO VISUAL COMMUNICATIONS LTD,85478,30/08/2023,22424,OLSI Indoor & BH Access Fobs,21/09/2023,51.9,259.5,311.4,OLSI - Site & Centre Management,Equipment,61713
http://statistics.data.gov.uk/id/local-authority/12UE,Huntingdonshire District Council,200434,JADE SECURITY SERVICES LTD JADE SECURITY SERVICES LTD,85828,31/08/2023,6140,Ops Car Park Aug 23,21/09/2023,16.2,81,97.2,OLSI - Site & Centre Management,Contract Charges ,61800
http://statistics.data.gov.uk/id/local-authority/12UE,Huntingdonshire District Council,200434,JADE SECURITY SERVICES LTD JADE SECURITY SERVICES LTD,84052,31/07/2023,5914,Cash Collection Jul23,24/08/2023,10.8,54,64.8,OLSI - Site & Centre Management,Contract Charges ,61800
http://statistics.data.gov.uk/id/local-authority/12UE,Huntingdonshire District Council,200434,JADE SECURITY SERVICES LTD JADE SECURITY SERVICES LTD,84699,30/06/2023,5803,Cash Collections Jun23,17/08/2023,10.8,54,64.8,OLSI - Site & Centre Management,Contract Charges ,61800
http://statistics.data.gov.uk/id/local-authority/12UE,Huntingdonshire District Council,203322,Right Directions (Management) Ltd,86561,22/09/2023,9814,OLSI Audit Fees (Health & Safety),28/09/2023,130,650,780,OLSI - Site & Centre Management,Audit Fees,62100
http://statistics.data.gov.uk/id/local-authority/12UE,Huntingdonshire District Council,200117,BRAMBLE HUB LTD BRAMBLE HUB LTD,84075,28/07/2023,INV-13508,Staff Training & Development,17/08/2023,396.19,1980.97,2377.16,OLSI - Site & Centre Management,Ict Software,64071
http://statistics.data.gov.uk/id/local-authority/12UE,Huntingdonshire District Council,200117,BRAMBLE HUB LTD BRAMBLE HUB LTD,84176,27/07/2023,INV-13505,OL IT Software,17/08/2023,31.67,158.33,190,OLSI - Site & Centre Management,Ict Software,64071
http://statistics.data.gov.uk/id/local-authority/12UE,Huntingdonshire District Council,200117,BRAMBLE HUB LTD BRAMBLE HUB LTD,84076,27/07/2023,INV-13504,Staff Training & Development,17/08/2023,15.72,78.57,94.29,OLSI - Site & Centre Management,Ict Software,64071
http://statistics.data.gov.uk/id/local-authority/12UE,Huntingdonshire District Council,202749,COMPLETE POOL CONTROLS LTD,85741,05/09/2023,INV091572,OLSN Pool Chemicals,28/09/2023,240.05,1200.23,1440.28,OLSI - Swimming,Chemicals,64000
http://statistics.data.gov.uk/id/local-authority/12UE,Huntingdonshire District Council,202749,COMPLETE POOL CONTROLS LTD,84061,03/08/2023,INV090417,OLSI Pool Chemicals,24/08/2023,158.45,792.23,950.68,OLSI - Swimming,Chemicals,64000
http://statistics.data.gov.uk/id/local-authority/12UE,Huntingdonshire District Council,202749,COMPLETE POOL CONTROLS LTD,83570,13/07/2023,INV089421,OLSI Pool Chemicals,03/08/2023,126.11,630.53,756.64,OLSI - Swimming,Chemicals,64000
http://statistics.data.gov.uk/id/local-authority/12UE,Huntingdonshire District Council,202749,COMPLETE POOL CONTROLS LTD,83571,12/07/2023,INV089116,OLSI Pool Chemicals,03/08/2023,78.2,391,469.2,OLSI - Swimming,Chemicals,64000
http://statistics.data.gov.uk/id/local-authority/12UE,Huntingdonshire District Council,202545,HITCHIN INDUSTRIAL & BUSINESS ESTATES LTD C/O BIDWELLS,83219,14/07/2023,ARJ008117,Bidwells Paid in Error,17/07/2023,-69.44,-347.2,-416.64,OLSIO - Hospitality,Vending Machine Income,51207
http://statistics.data.gov.uk/id/local-authority/12UE,Huntingdonshire District Council,202545,HITCHIN INDUSTRIAL & BUSINESS ESTATES LTD C/O BIDWELLS,83219,14/07/2023,ARJ008117,Bidwells Paid in Error,17/07/2023,-69.44,-347.2,-416.64,OLSIO - Hospitality,Vending Machine Income,51207
http://statistics.data.gov.uk/id/local-authority/12UE,Huntingdonshire District Council,202545,HITCHIN INDUSTRIAL & BUSINESS ESTATES LTD C/O BIDWELLS,83219,14/07/2023,ARJ008117,Bidwells Paid in Error,17/07/2023,-69.44,-347.2,-416.64,OLSIO - Hospitality,Vending Machine Income,51207
http://statistics.data.gov.uk/id/local-authority/12UE,Huntingdonshire District Council,200471,LACONS LACONS,83703,17/07/2023,927519,OLSIO Bar Provisions/Gas Cylinders,10/08/2023,4.81,24.03,28.84,OLSIO - Hospitality,Gas Cylinders,61711
http://statistics.data.gov.uk/id/local-authority/12UE,Huntingdonshire District Council,200471,LACONS LACONS,83186,03/07/2023,925592,OLSIO Bar Provisions/Gas Cylinders,27/07/2023,2.49,12.47,14.96,OLSIO - Hospitality,Gas Cylinders,61711
http://statistics.data.gov.uk/id/local-authority/12UE,Huntingdonshire District Council,200471,LACONS LACONS,83940,24/07/2023,928139,OLSIO Bar Provisions/Gas Cylinders,17/08/2023,5.33,26.63,31.96,OLSIO - Hospitality,Gas Cylinders,61711
http://statistics.data.gov.uk/id/local-authority/12UE,Huntingdonshire District Council,200471,LACONS LACONS,82153,19/06/2023,923970,OLSIO Bar Provisions,13/07/2023,208.39,1041.96,1250.35,OLSIO - Hospitality,Bar Provisions,61905
http://statistics.data.gov.uk/id/local-authority/12UE,Huntingdonshire District Council,200471,LACONS LACONS,83703,17/07/2023,927519,OLSIO Bar Provisions/Gas Cylinders,10/08/2023,115.22,576.09,691.31,OLSIO - Hospitality,Bar Provisions,61905
http://statistics.data.gov.uk/id/local-authority/12UE,Huntingdonshire District Council,200471,LACONS LACONS,85499,26/06/2023,924872,OLSIO Bar Provisions,07/09/2023,117.23,586.16,703.39,OLSIO - Hospitality,Bar Provisions,61905
http://statistics.data.gov.uk/id/local-authority/12UE,Huntingdonshire District Council,200471,LACONS LACONS,83186,03/07/2023,925592,OLSIO Bar Provisions/Gas Cylinders,27/07/2023,99.25,496.26,595.51,OLSIO - Hospitality,Bar Provisions,61905
http://statistics.data.gov.uk/id/local-authority/12UE,Huntingdonshire District Council,200471,LACONS LACONS,83940,24/07/2023,928139,OLSIO Bar Provisions/Gas Cylinders,17/08/2023,93.56,467.8,561.36,OLSIO - Hospitality,Bar Provisions,61905
http://statistics.data.gov.uk/id/local-authority/12UE,Huntingdonshire District Council,200471,LACONS LACONS,84956,14/08/2023,931160,OLSTI DRINKS,07/09/2023,87.97,439.83,527.8,OLSIO - Hospitality,Bar Provisions,61905
http://statistics.data.gov.uk/id/local-authority/12UE,Huntingdonshire District Council,202688,NUTRIVEND LTD,82082,21/06/2023,2027887,OLSIO Bottled Drinks,13/07/2023,84.28,421.4,505.68,OLSIO - Hospitality,Bar Provisions,61905
http://statistics.data.gov.uk/id/local-authority/12UE,Huntingdonshire District Council,200471,LACONS LACONS,85484,21/08/2023,932138,OLSIO Bar Provisions,18/09/2023,57.89,289.45,347.34,OLSIO - Hospitality,Bar Provisions,61905
http://statistics.data.gov.uk/id/local-authority/12UE,Huntingdonshire District Council,200471,LACONS LACONS,84206,31/07/2023,929398,OLSIO Bar Provisions,24/08/2023,57.28,286.4,343.68,OLSIO - Hospitality,Bar Provisions,61905
http://statistics.data.gov.uk/id/local-authority/12UE,Huntingdonshire District Council,202688,NUTRIVEND LTD,86178,04/09/2023,2033385,OLSIO Bottled Drinks,28/09/2023,77.19,385.94,463.13,OLSIO - Hospitality,Vending Materials,61907
http://statistics.data.gov.uk/id/local-authority/12UE,Huntingdonshire District Council,202688,NUTRIVEND LTD,83199,06/07/2023,2029152,OLSIO Bottled Drinks,27/07/2023,70.6,353.02,423.62,OLSIO - Hospitality,Vending Materials,61907
http://statistics.data.gov.uk/id/local-authority/12UE,Huntingdonshire District Council,202688,NUTRIVEND LTD,84563,09/08/2023,2031729,OLSIO Bottled Drinks,31/08/2023,65.57,327.87,393.44,OLSIO - Hospitality,Vending Materials,61907
http://statistics.data.gov.uk/id/local-authority/12UE,Huntingdonshire District Council,200489,LES MILLS UK LES MILLS UK,83161,06/07/2023,LMUK-SIV-170986,OLSI Licences Apr23-Mar24,27/07/2023,58.6,293.02,351.62,OLSI - Fitness Activities,Licences,60410
http://statistics.data.gov.uk/id/local-authority/12UE,Huntingdonshire District Council,200489,LES MILLS UK LES MILLS UK,84858,03/08/2023,LMUK-SIV-172457,OLSTI LIVE PROGRAM,24/08/2023,58.6,293.02,351.62,OLSI - Fitness Activities,Licences,60410
http://statistics.data.gov.uk/id/local-authority/12UE,Huntingdonshire District Council,200489,LES MILLS UK LES MILLS UK,85747,06/09/2023,LMUK-SIV-174027,OLSN Licences,28/09/2023,58.6,293.02,351.62,OLSI - Fitness Activities,Licences,60410
http://statistics.data.gov.uk/id/local-authority/12UE,Huntingdonshire District Council,202030,MGS LTD,85823,29/08/2023,19812,ops job 14183,21/09/2023,12.2,61,73.2,OLSIO - Site & Centre Management,Maintenance - Building,60201
http://statistics.data.gov.uk/id/local-authority/12UE,Huntingdonshire District Council,201660,TOTAL ENVIRONMENTAL COMPLIANCE LTD,82987,30/06/2023,51032,OLSIO Chlorolox Drums Delivered&Maintain,21/07/2023,84,420,504,OLSIO - Site & Centre Management,Maintenance - Building,60201
http://statistics.data.gov.uk/id/local-authority/12UE,Huntingdonshire District Council,202135,TOTAL GAS AND POWER LTD,86099,10/09/2023,313260030/23,OLSIO Aug23,18/09/2023,663.59,3317.96,3981.55,OLSIO - Site & Centre Management,Electricity,60303
http://statistics.data.gov.uk/id/local-authority/12UE,Huntingdonshire District Council,202135,TOTAL GAS AND POWER LTD,84506,06/08/2023,309179568/23,REDACTED,17/08/2023,550.87,2754.35,3305.22,OLSIO - Site & Centre Management,Electricity,60303
http://statistics.data.gov.uk/id/local-authority/12UE,Huntingdonshire District Council,202135,TOTAL GAS AND POWER LTD,83195,09/07/2023,306356858/23,REDACTED,17/07/2023,524.78,2623.89,3148.67,OLSIO - Site & Centre Management,Electricity,60303
http://statistics.data.gov.uk/id/local-authority/12UE,Huntingdonshire District Council,200348,GREENDAY ENERGY LTD GREENDAY ENERGY LTD,81643,12/06/2023,GD1654,Renewal Display Energy Cert May23,07/07/2023,22,110,132,OLSIO - Site & Centre Management,Gas,60305
http://statistics.data.gov.uk/id/local-authority/12UE,Huntingdonshire District Council,202101,TRAINING SHED FAMILY LTD,82665,01/07/2023,INV-0161,OL Licences ALL Sites Jul23,07/07/2023,19.8,99,118.8,OLSIO - Site & Centre Management,Licences,60410
http://statistics.data.gov.uk/id/local-authority/12UE,Huntingdonshire District Council,202101,TRAINING SHED FAMILY LTD,84163,01/08/2023,INV-0162,One Leisure Licences Aug23,10/08/2023,19.8,99,118.8,OLSIO - Site & Centre Management,Licences,60410
http://statistics.data.gov.uk/id/local-authority/12UE,Huntingdonshire District Council,202101,TRAINING SHED FAMILY LTD,85639,01/09/2023,INV-0163,OL Myzone Facility License,07/09/2023,19.8,99,118.8,OLSIO - Site & Centre Management,Licences,60410
http://statistics.data.gov.uk/id/local-authority/12UE,Huntingdonshire District Council,200674,REPLAY MAINTENANCE LTD REPLAY MAINTENANCE LTD,82527,21/04/2023,790,Grounds Maint Across Sites Y5 Of 5,03/07/2023,142.5,712.5,855,OLSIO - Site & Centre Management,Grounds Maintenance,60503
http://statistics.data.gov.uk/id/local-authority/12UE,Huntingdonshire District Council,200717,SHERRIFF AMENITY SERVICES SHERRIFF AMENITY SERVICES,85805,18/08/2023,CD971599891,OLSIO Grounds Maintenance,11/09/2023,143.76,718.8,862.56,OLSIO - Site & Centre Management,Grounds Maintenance,60503
http://statistics.data.gov.uk/id/local-authority/12UE,Huntingdonshire District Council,202728,ESCOREFRESH,83867,21/04/2023,43492,OLSIO Cleaning Products,03/08/2023,126.97,634.83,761.8,OLSIO - Site & Centre Management,Cleaning Materials,61300
http://statistics.data.gov.uk/id/local-authority/12UE,Huntingdonshire District Council,202728,ESCOREFRESH,83866,30/06/2023,43698,OLSIO Cleaning Products,03/08/2023,94.59,472.95,567.54,OLSIO - Site & Centre Management,Cleaning Materials,61300
http://statistics.data.gov.uk/id/local-authority/12UE,Huntingdonshire District Council,202728,ESCOREFRESH,82959,07/07/2023,43709,OLH Cleaning Materials,27/07/2023,28.36,141.82,170.18,OLSIO - Site & Centre Management,Cleaning Materials,61300
http://statistics.data.gov.uk/id/local-authority/12UE,Huntingdonshire District Council,201621,AUTHENTIC8 ID SOLUTIONS,81933,14/06/2023,4007980,Smart Fobs OL,07/07/2023,123,615,738,OLSIO - Site & Centre Management,Equipment,61713
http://statistics.data.gov.uk/id/local-authority/12UE,Huntingdonshire District Council,201621,AUTHENTIC8 ID SOLUTIONS,82225,26/06/2023,4008026,OLSI Wrist Bands,13/07/2023,47,235,282,OLSIO - Site & Centre Management,Equipment,61713
http://statistics.data.gov.uk/id/local-authority/12UE,Huntingdonshire District Council,203322,Right Directions (Management) Ltd,86561,22/09/2023,9814,OLSI Audit Fees (Health & Safety),28/09/2023,130,650,780,OLSIO - Site & Centre Management,Audit Fees,62100
http://statistics.data.gov.uk/id/local-authority/12UE,Huntingdonshire District Council,200117,BRAMBLE HUB LTD BRAMBLE HUB LTD,84178,20/07/2023,INV-13485,OL IT Software,14/08/2023,124.44,622.22,746.66,OLSIO - Site & Centre Management,Ict Software,64071
http://statistics.data.gov.uk/id/local-authority/12UE,Huntingdonshire District Council,202545,HITCHIN INDUSTRIAL & BUSINESS ESTATES LTD C/O BIDWELLS,83219,14/07/2023,ARJ008117,Bidwells Paid in Error,17/07/2023,-52.5,-262.52,-315.02,OLSN - Hospitality,Vending Machine Income,51207
http://statistics.data.gov.uk/id/local-authority/12UE,Huntingdonshire District Council,202545,HITCHIN INDUSTRIAL & BUSINESS ESTATES LTD C/O BIDWELLS,83219,14/07/2023,ARJ008117,Bidwells Paid in Error,17/07/2023,-52.5,-262.52,-315.02,OLSN - Hospitality,Vending Machine Income,51207
http://statistics.data.gov.uk/id/local-authority/12UE,Huntingdonshire District Council,202545,HITCHIN INDUSTRIAL & BUSINESS ESTATES LTD C/O BIDWELLS,83219,14/07/2023,ARJ008117,Bidwells Paid in Error,17/07/2023,-52.5,-262.52,-315.02,OLSN - Hospitality,Vending Machine Income,51207
http://statistics.data.gov.uk/id/local-authority/12UE,Huntingdonshire District Council,202545,HITCHIN INDUSTRIAL & BUSINESS ESTATES LTD C/O BIDWELLS,83219,14/07/2023,ARJ008117,Bidwells Paid in Error,17/07/2023,-62.95,-314.77,-377.72,OLSN - Hospitality,Vending Machine Income,51207
http://statistics.data.gov.uk/id/local-authority/12UE,Huntingdonshire District Council,202545,HITCHIN INDUSTRIAL & BUSINESS ESTATES LTD C/O BIDWELLS,83219,14/07/2023,ARJ008117,Bidwells Paid in Error,17/07/2023,-62.95,-314.77,-377.72,OLSN - Hospitality,Vending Machine Income,51207
http://statistics.data.gov.uk/id/local-authority/12UE,Huntingdonshire District Council,202545,HITCHIN INDUSTRIAL & BUSINESS ESTATES LTD C/O BIDWELLS,83219,14/07/2023,ARJ008117,Bidwells Paid in Error,17/07/2023,-62.95,-314.77,-377.72,OLSN - Hospitality,Vending Machine Income,51207
http://statistics.data.gov.uk/id/local-authority/12UE,Huntingdonshire District Council,201123,SELECTA UK LTD,81822,12/06/2023,230077711,OLSN Vending Maintenance Jul-Sep23,07/07/2023,96.52,482.58,579.1,OLSN - Hospitality,Hire - Equipment Furniture And Materials,61700
http://statistics.data.gov.uk/id/local-authority/12UE,Huntingdonshire District Council,200809,UKACTIVE UKACTIVE,82230,26/06/2023,INV-204896,Licences Aug23-Jul24 Health Commintment,21/07/2023,25,125,150,OLSN - Impressions,Licences,60410
http://statistics.data.gov.uk/id/local-authority/12UE,Huntingdonshire District Council,201994,Pulse Fitness Ltd,86018,04/07/2023,7244,WARRANTY 010723-300624,14/09/2023,1610.76,8053.82,9664.58,OLSN - Impressions,"Maintenance - Equipment, Furniture And Materials",61702
http://statistics.data.gov.uk/id/local-authority/12UE,Huntingdonshire District Council,200674,REPLAY MAINTENANCE LTD REPLAY MAINTENANCE LTD,82527,21/04/2023,790,Grounds Maint Across Sites Y5 Of 5,03/07/2023,142.5,712.5,855,OLSN - Outdoor Sports,Grounds Maintenance,60503
http://statistics.data.gov.uk/id/local-authority/12UE,Huntingdonshire District Council,203094,Institute of Swimming Limited,85838,30/04/2023,IOSINV032674,OL TEACHER TRAINING,14/09/2023,0,319,319,OLSN - Site & Centre Management,Staff Development And Training,60115
http://statistics.data.gov.uk/id/local-authority/12UE,Huntingdonshire District Council,202030,MGS LTD,85823,29/08/2023,19812,ops job 14183,21/09/2023,24.4,122,146.4,OLSN - Site & Centre Management,Maintenance - Building,60201
http://statistics.data.gov.uk/id/local-authority/12UE,Huntingdonshire District Council,200694,ROGER WILSON ELECTRONICS ROGER WILSON ELECTRONICS,85221,13/08/2023,11026,OLSN x9 Repairs & Replace Jobs,31/08/2023,241.5,1207.51,1449.01,OLSN - Site & Centre Management,Maintenance - Building,60201
http://statistics.data.gov.uk/id/local-authority/12UE,Huntingdonshire District Council,200694,ROGER WILSON ELECTRONICS ROGER WILSON ELECTRONICS,83845,25/07/2023,11011,OLSN Various Maintenance Items,03/08/2023,149.09,745.46,894.55,OLSN - Site & Centre Management,Maintenance - Building,60201
http://statistics.data.gov.uk/id/local-authority/12UE,Huntingdonshire District Council,200226,DAL-ROD (CAMRIDGESHIRE) DAL-ROD (CAMRIDGESHIRE),83239,12/07/2023,30001031,OLSN Male Changing Room Urinal Work,03/08/2023,99,495,594,OLSN - Site & Centre Management,Maintenance - Building,60201
http://statistics.data.gov.uk/id/local-authority/12UE,Huntingdonshire District Council,200212,COOLER AID LTD COOLER AID LTD,83366,30/06/2023,480317,Fountain First Renewal,21/07/2023,72,360,432,OLSN - Site & Centre Management,Maintenance - Building,60201
http://statistics.data.gov.uk/id/local-authority/12UE,Huntingdonshire District Council,200305,FORGE LEISURE LTD FORGE LEISURE LTD,83666,12/05/2023,15480,Rectify Pool Cover Control Issues,31/07/2023,72,360,432,OLSN - Site & Centre Management,Maintenance - Building,60201
http://statistics.data.gov.uk/id/local-authority/12UE,Huntingdonshire District Council,202742,NFC Property Maintenance Ltd,84056,01/08/2023,1050,OLSN x2 Replace Cistern & Fix Toilet,24/08/2023,66,330,396,OLSN - Site & Centre Management,Maintenance - Building,60201
http://statistics.data.gov.uk/id/local-authority/12UE,Huntingdonshire District Council,200542,MIRAMAR ENGINEERING LTD MIRAMAR ENGINEERING LTD,84639,15/08/2023,11638,,17/08/2023,60.98,304.91,365.89,OLSN - Site & Centre Management,Maintenance - Building,60201
http://statistics.data.gov.uk/id/local-authority/12UE,Huntingdonshire District Council,200324,G4S SECURE SOLUTIONS (UK) LTD G4S SECURE SOLUTIONS (UK) LTD,82829,01/07/2023,82610189404,OLSN Dry Keyholding Aug23-Jul24,10/07/2023,159.82,799.1,958.92,OLSN - Site & Centre Management,Fire Assessment And Safety,60205
http://statistics.data.gov.uk/id/local-authority/12UE,Huntingdonshire District Council,200913,WAVE  ANGLIAN WATER BUSINESS,85720,03/09/2023,12494126,OLSN Aug-Sep23,07/09/2023,0,262.54,262.54,OLSN - Site & Centre Management,Water And Sewerage,60302
http://statistics.data.gov.uk/id/local-authority/12UE,Huntingdonshire District Council,202699,SMS ENERGY SERVICES LTD,86256,11/06/2023,ESL-SINV041747,MOP Contract,21/09/2023,42.8,214,256.8,OLSN - Site & Centre Management,Electricity,60303
http://statistics.data.gov.uk/id/local-authority/12UE,Huntingdonshire District Council,202699,SMS ENERGY SERVICES LTD,86256,11/06/2023,ESL-SINV041747,MOP Contract,21/09/2023,42.8,214,256.8,OLSN - Site & Centre Management,Electricity,60303
http://statistics.data.gov.uk/id/local-authority/12UE,Huntingdonshire District Council,202699,SMS ENERGY SERVICES LTD,86369,19/09/2023,SCR003876,MOP Contract,21/09/2023,-42.8,-214,-256.8,OLSN - Site & Centre Management,Electricity,60303
http://statistics.data.gov.uk/id/local-authority/12UE,Huntingdonshire District Council,202101,TRAINING SHED FAMILY LTD,82665,01/07/2023,INV-0161,OL Licences ALL Sites Jul23,07/07/2023,19.8,99,118.8,OLSN - Site & Centre Management,Licences,60410
http://statistics.data.gov.uk/id/local-authority/12UE,Huntingdonshire District Council,202101,TRAINING SHED FAMILY LTD,84163,01/08/2023,INV-0162,One Leisure Licences Aug23,10/08/2023,19.8,99,118.8,OLSN - Site & Centre Management,Licences,60410
http://statistics.data.gov.uk/id/local-authority/12UE,Huntingdonshire District Council,202101,TRAINING SHED FAMILY LTD,85639,01/09/2023,INV-0163,OL Myzone Facility License,07/09/2023,19.8,99,118.8,OLSN - Site & Centre Management,Licences,60410
http://statistics.data.gov.uk/id/local-authority/12UE,Huntingdonshire District Council,202728,ESCOREFRESH,85490,31/08/2023,43839,OLSN Cleaning Products,21/09/2023,112.65,563.23,675.88,OLSN - Site & Centre Management,Cleaning Materials,61300
http://statistics.data.gov.uk/id/local-authority/12UE,Huntingdonshire District Council,202728,ESCOREFRESH,83598,13/07/2023,43733,OLSN Cleaning Materials,03/08/2023,102.94,514.68,617.62,OLSN - Site & Centre Management,Cleaning Materials,61300
http://statistics.data.gov.uk/id/local-authority/12UE,Huntingdonshire District Council,202728,ESCOREFRESH,82959,07/07/2023,43709,OLH Cleaning Materials,27/07/2023,24.31,121.56,145.87,OLSN - Site & Centre Management,Cleaning Materials,61300
http://statistics.data.gov.uk/id/local-authority/12UE,Huntingdonshire District Council,202728,ESCOREFRESH,82161,23/06/2023,43669,OLSN Cleaning Materials,13/07/2023,76.07,380.35,456.42,OLSN - Site & Centre Management,Cleaning Materials,61300
http://statistics.data.gov.uk/id/local-authority/12UE,Huntingdonshire District Council,202728,ESCOREFRESH,84545,11/08/2023,43807,OLSN Cleaning Materials,31/08/2023,72.18,360.91,433.09,OLSN - Site & Centre Management,Cleaning Materials,61300
http://statistics.data.gov.uk/id/local-authority/12UE,Huntingdonshire District Council,202728,ESCOREFRESH,85033,21/07/2023,43761,OLSTN WINDOW CLEANING,31/08/2023,68,340.02,408.02,OLSN - Site & Centre Management,Cleaning Materials,61300
http://statistics.data.gov.uk/id/local-authority/12UE,Huntingdonshire District Council,202728,ESCOREFRESH,82915,07/07/2023,43717,OLSN Cleaning Materials,27/07/2023,56.56,282.82,339.38,OLSN - Site & Centre Management,Cleaning Materials,61300
http://statistics.data.gov.uk/id/local-authority/12UE,Huntingdonshire District Council,200737,SPORTMAX SPORTMAX,85000,21/08/2023,127568,OLSTN WET SWIMWEAR,18/09/2023,0,122.6,122.6,OLSN - Site & Centre Management,Goods For Resale,61400
http://statistics.data.gov.uk/id/local-authority/12UE,Huntingdonshire District Council,200737,SPORTMAX SPORTMAX,85000,21/08/2023,127568,OLSTN WET SWIMWEAR,18/09/2023,219.41,1097.05,1316.46,OLSN - Site & Centre Management,Goods For Resale,61400
http://statistics.data.gov.uk/id/local-authority/12UE,Huntingdonshire District Council,200737,SPORTMAX SPORTMAX,83649,19/07/2023,126936,OLSN Wet Items For Sale,10/08/2023,0,98.5,98.5,OLSN - Site & Centre Management,Goods For Resale,61400
http://statistics.data.gov.uk/id/local-authority/12UE,Huntingdonshire District Council,200737,SPORTMAX SPORTMAX,83649,19/07/2023,126936,OLSN Wet Items For Sale,10/08/2023,166.11,830.55,996.66,OLSN - Site & Centre Management,Goods For Resale,61400
http://statistics.data.gov.uk/id/local-authority/12UE,Huntingdonshire District Council,200737,SPORTMAX SPORTMAX,82438,27/06/2023,126512,OLSN Goods For Sale,21/07/2023,96.37,481.85,578.22,OLSN - Site & Centre Management,Goods For Resale,61400
http://statistics.data.gov.uk/id/local-authority/12UE,Huntingdonshire District Council,200737,SPORTMAX SPORTMAX,82438,27/06/2023,126512,OLSN Goods For Sale,21/07/2023,0,85.2,85.2,OLSN - Site & Centre Management,Goods For Resale,61400
http://statistics.data.gov.uk/id/local-authority/12UE,Huntingdonshire District Council,200411,INITIAL WASHROOM SOLUTIONS INITIAL WASHROOM SOLUTIONS,83157,11/07/2023,34760873,OLSN Hire Equipment,03/08/2023,63.62,318.09,381.71,OLSN - Site & Centre Management,Hire - Equipment Furniture And Materials,61700
http://statistics.data.gov.uk/id/local-authority/12UE,Huntingdonshire District Council,200411,INITIAL WASHROOM SOLUTIONS INITIAL WASHROOM SOLUTIONS,84642,09/08/2023,34793344,OL Hire Equipment 30.08-09.09.23,31/08/2023,63.62,318.09,381.71,OLSN - Site & Centre Management,Hire - Equipment Furniture And Materials,61700
http://statistics.data.gov.uk/id/local-authority/12UE,Huntingdonshire District Council,200411,INITIAL WASHROOM SOLUTIONS INITIAL WASHROOM SOLUTIONS,85965,08/09/2023,34825296,OLSTI 3009-2910,28/09/2023,63.62,318.09,381.71,OLSN - Site & Centre Management,Hire - Equipment Furniture And Materials,61700
http://statistics.data.gov.uk/id/local-authority/12UE,Huntingdonshire District Council,200615,PHS GROUP LTD PHS GROUP LTD,84983,11/03/2023,69688881,OLSTN WASTE COLLECTION,24/08/2023,52.73,263.67,316.4,OLSN - Site & Centre Management,Hire - Equipment Furniture And Materials,61700
http://statistics.data.gov.uk/id/local-authority/12UE,Huntingdonshire District Council,200004,AAA INFLATABLES LTD AAA INFLATABLES LTD,84912,22/08/2023,INV-2378,olstn testing,18/09/2023,58,290,348,OLSN - Site & Centre Management,"Maintenance - Equipment, Furniture And Materials",61702
http://statistics.data.gov.uk/id/local-authority/12UE,Huntingdonshire District Council,203269,Grant Services Ltd T/A LVC,83597,14/07/2023,877759,I-Mop & Cleaning Equipment,03/08/2023,754.17,3770.85,4525.02,OLSN - Site & Centre Management,"Purchase - Equipment, Furniture And Materials",61703
http://statistics.data.gov.uk/id/local-authority/12UE,Huntingdonshire District Council,200430,J P LENNARD LTD J P LENNARD LTD,84855,03/08/2023,189000,olstn chair/dining table,24/08/2023,328.86,1644.3,1973.16,OLSN - Site & Centre Management,Materials,61709
http://statistics.data.gov.uk/id/local-authority/12UE,Huntingdonshire District Council,200282,ESPO ESPO,82540,28/06/2023,6996878,OLSN Gym Area Mats x6,21/07/2023,82.2,411,493.2,OLSN - Site & Centre Management,Materials,61709
http://statistics.data.gov.uk/id/local-authority/12UE,Huntingdonshire District Council,201621,AUTHENTIC8 ID SOLUTIONS,81933,14/06/2023,4007980,Smart Fobs OL,07/07/2023,574,2870,3444,OLSN - Site & Centre Management,Equipment,61713
http://statistics.data.gov.uk/id/local-authority/12UE,Huntingdonshire District Council,201621,AUTHENTIC8 ID SOLUTIONS,82225,26/06/2023,4008026,OLSI Wrist Bands,13/07/2023,235,1175,1410,OLSN - Site & Centre Management,Equipment,61713
http://statistics.data.gov.uk/id/local-authority/12UE,Huntingdonshire District Council,200434,JADE SECURITY SERVICES LTD JADE SECURITY SERVICES LTD,85828,31/08/2023,6140,Ops Car Park Aug 23,21/09/2023,10.8,54,64.8,OLSN - Site & Centre Management,Contract Charges ,61800
http://statistics.data.gov.uk/id/local-authority/12UE,Huntingdonshire District Council,200434,JADE SECURITY SERVICES LTD JADE SECURITY SERVICES LTD,84052,31/07/2023,5914,Cash Collection Jul23,24/08/2023,10.8,54,64.8,OLSN - Site & Centre Management,Contract Charges ,61800
http://statistics.data.gov.uk/id/local-authority/12UE,Huntingdonshire District Council,200434,JADE SECURITY SERVICES LTD JADE SECURITY SERVICES LTD,84699,30/06/2023,5803,Cash Collections Jun23,17/08/2023,10.8,54,64.8,OLSN - Site & Centre Management,Contract Charges ,61800
http://statistics.data.gov.uk/id/local-authority/12UE,Huntingdonshire District Council,202688,NUTRIVEND LTD,84562,09/08/2023,2031728,OLSN Bottled Drinks,31/08/2023,67.27,336.36,403.63,OLSN - Site & Centre Management,Vending Materials,61907
http://statistics.data.gov.uk/id/local-authority/12UE,Huntingdonshire District Council,203322,Right Directions (Management) Ltd,86561,22/09/2023,9814,OLSI Audit Fees (Health & Safety),28/09/2023,130,650,780,OLSN - Site & Centre Management,Audit Fees,62100
http://statistics.data.gov.uk/id/local-authority/12UE,Huntingdonshire District Council,200117,BRAMBLE HUB LTD BRAMBLE HUB LTD,84075,28/07/2023,INV-13508,Staff Training & Development,17/08/2023,411.9,2059.52,2471.42,OLSN - Site & Centre Management,Ict Software,64071
http://statistics.data.gov.uk/id/local-authority/12UE,Huntingdonshire District Council,200117,BRAMBLE HUB LTD BRAMBLE HUB LTD,84178,20/07/2023,INV-13485,OL IT Software,14/08/2023,96.67,483.33,580,OLSN - Site & Centre Management,Ict Software,64071
http://statistics.data.gov.uk/id/local-authority/12UE,Huntingdonshire District Council,200324,G4S SECURE SOLUTIONS (UK) LTD G4S SECURE SOLUTIONS (UK) LTD,82830,01/07/2023,82610189405,OLSN Wet Keyholding Aug23-Jul24,10/07/2023,159.82,799.1,958.92,OLSN - Swimming,Fire Assessment And Safety,60205
http://statistics.data.gov.uk/id/local-authority/12UE,Huntingdonshire District Council,200913,WAVE  ANGLIAN WATER BUSINESS,85482,26/08/2023,12467603,OLSN Wetside Jul-Aug23,07/09/2023,0,3321.49,3321.49,OLSN - Swimming,Water And Sewerage,60302
http://statistics.data.gov.uk/id/local-authority/12UE,Huntingdonshire District Council,200913,WAVE  ANGLIAN WATER BUSINESS,83855,26/07/2023,12340751,OLSN Jun-Jul23,03/08/2023,0,3214.5,3214.5,OLSN - Swimming,Water And Sewerage,60302
http://statistics.data.gov.uk/id/local-authority/12UE,Huntingdonshire District Council,202135,TOTAL GAS AND POWER LTD,84508,06/08/2023,309179580/23,OLSN Jul23,17/08/2023,3009.58,15047.88,18057.46,OLSN - Swimming,Electricity,60303
http://statistics.data.gov.uk/id/local-authority/12UE,Huntingdonshire District Council,202135,TOTAL GAS AND POWER LTD,83196,09/07/2023,306356869/23,OLSN Jun23,17/07/2023,2978.22,14891.09,17869.31,OLSN - Swimming,Electricity,60303
http://statistics.data.gov.uk/id/local-authority/12UE,Huntingdonshire District Council,202135,TOTAL GAS AND POWER LTD,86098,10/09/2023,313260040/23,OLSN Aug23,18/09/2023,2836.71,14183.53,17020.24,OLSN - Swimming,Electricity,60303
http://statistics.data.gov.uk/id/local-authority/12UE,Huntingdonshire District Council,200126,BRITISH GAS BUSINESS BRITISH GAS BUSINESS,85783,05/09/2023,872025397,OLSN Wet Side Aug23,11/09/2023,608.02,3040.1,3648.12,OLSN - Swimming,Gas,60305
http://statistics.data.gov.uk/id/local-authority/12UE,Huntingdonshire District Council,200126,BRITISH GAS BUSINESS BRITISH GAS BUSINESS,84034,03/08/2023,983683451,OLSN Wet Jul23,10/08/2023,596.55,2982.75,3579.3,OLSN - Swimming,Gas,60305
http://statistics.data.gov.uk/id/local-authority/12UE,Huntingdonshire District Council,200126,BRITISH GAS BUSINESS BRITISH GAS BUSINESS,82908,04/07/2023,975778091,OLSN Wet Jun23,13/07/2023,500.26,2501.3,3001.56,OLSN - Swimming,Gas,60305
http://statistics.data.gov.uk/id/local-authority/12UE,Huntingdonshire District Council,200004,AAA INFLATABLES LTD AAA INFLATABLES LTD,85702,01/09/2023,INV-2380,OLSN Multiple Pool Inflatable Repairs,21/09/2023,68,340,408,OLSN - Swimming,"Maintenance - Equipment, Furniture And Materials",61702
http://statistics.data.gov.uk/id/local-authority/12UE,Huntingdonshire District Council,200417,Swim England Trading Limited,84647,11/08/2023,SWINV089856,Swim England Badge/Certificates,31/08/2023,330.22,1651.07,1981.29,OLSN - Swimming,Materials,61709
http://statistics.data.gov.uk/id/local-authority/12UE,Huntingdonshire District Council,200723,SLUSH PUPPIE LTD SLUSH PUPPIE LTD,84681,16/08/2023,INVGB289169,OLSN Slushie Refills/Materials,07/09/2023,34.1,170.52,204.62,OLSN - Swimming,Materials,61709
http://statistics.data.gov.uk/id/local-authority/12UE,Huntingdonshire District Council,200417,Swim England Trading Limited,85003,21/08/2023,SWINV90353,OLH SWIMWEAR,18/09/2023,304.16,1520.8,1824.96,OLSN - Swimming,Equipment,61713
http://statistics.data.gov.uk/id/local-authority/12UE,Huntingdonshire District Council,200723,SLUSH PUPPIE LTD SLUSH PUPPIE LTD,84681,16/08/2023,INVGB289169,OLSN Slushie Refills/Materials,07/09/2023,71.56,357.8,429.36,OLSN - Swimming,Catering Supplies,61900
http://statistics.data.gov.uk/id/local-authority/12UE,Huntingdonshire District Council,202749,COMPLETE POOL CONTROLS LTD,85750,05/09/2023,INV091574,OLSN Pool Chemicals,28/09/2023,190.85,954.24,1145.09,OLSN - Swimming,Chemicals,64000
http://statistics.data.gov.uk/id/local-authority/12UE,Huntingdonshire District Council,202749,COMPLETE POOL CONTROLS LTD,84059,03/08/2023,INV090420,OLSN Pool Chemicals,24/08/2023,189.12,945.62,1134.74,OLSN - Swimming,Chemicals,64000
http://statistics.data.gov.uk/id/local-authority/12UE,Huntingdonshire District Council,202749,COMPLETE POOL CONTROLS LTD,83237,12/07/2023,INV089117,OLSN Pool Chemicals,03/08/2023,151.39,756.97,908.36,OLSN - Swimming,Chemicals,64000
http://statistics.data.gov.uk/id/local-authority/12UE,Huntingdonshire District Council,200477,LATER LIFE TRAINING LTD LATER LIFE TRAINING LTD,85141,26/07/2023,INV-9612 REINVOICE,St Ives Postural Stability Course,31/08/2023,582.5,2912.5,3495,Integrated Lifestyle Service,Staff Development And Training,60115
http://statistics.data.gov.uk/id/local-authority/12UE,Huntingdonshire District Council,200072,B & H DIGITAL LTD B & H DIGITAL LTD,84130,31/07/2023,41369,Print Health Walks & Fit Diary Leaflet,24/08/2023,76.64,383.22,459.86,Integrated Lifestyle Service,Printing,62001
http://statistics.data.gov.uk/id/local-authority/12UE,Huntingdonshire District Council,203313,REDACTED,84526,14/08/2023,ARJ008271,REDACTED,17/08/2023,0,-117.37,-117.37,Active Health,Courses Income,52000
http://statistics.data.gov.uk/id/local-authority/12UE,Huntingdonshire District Council,202864,KNIGHT KAVANAGH & PAGE LTD,83606,01/03/2023,SI-419,SIOC - 1st Stage Invoice,27/07/2023,450,2250,2700,Playing Pitch/Facility Strategy,Professional Services - General,62402
http://statistics.data.gov.uk/id/local-authority/12UE,Huntingdonshire District Council,200542,MIRAMAR ENGINEERING LTD MIRAMAR ENGINEERING LTD,83143,27/01/2023,10196,Various Sites Service Contract,17/07/2023,100,500,600,H'Brooke Countryside Centre,Maintenance - Building,60201
http://statistics.data.gov.uk/id/local-authority/12UE,Huntingdonshire District Council,200542,MIRAMAR ENGINEERING LTD MIRAMAR ENGINEERING LTD,83615,12/05/2023,10948,HCP Remedials Following AC Service,27/07/2023,87.3,436.5,523.8,H'Brooke Countryside Centre,Maintenance - Building,60201
http://statistics.data.gov.uk/id/local-authority/12UE,Huntingdonshire District Council,200373,HI-SPEC FACILITIES SERVICES PLC HI-SPEC FACILITIES SERVICES PLC,83816,30/06/2023,52293,Cleaning Contract Jun23,03/08/2023,125.51,627.55,753.06,H'Brooke Countryside Centre,Cleaning Contract,60502
http://statistics.data.gov.uk/id/local-authority/12UE,Huntingdonshire District Council,200373,HI-SPEC FACILITIES SERVICES PLC HI-SPEC FACILITIES SERVICES PLC,84201,31/07/2023,52679,Cleaning Services Jul23,21/09/2023,125.6,628,753.6,H'Brooke Countryside Centre,Cleaning Contract,60502
http://statistics.data.gov.uk/id/local-authority/12UE,Huntingdonshire District Council,202256,EASY CLEAN CONTRACTORS LTD,82724,31/05/2023,21633,Various Sites Cleaning May23,07/07/2023,125.35,626.76,752.11,H'Brooke Countryside Centre,Cleaning Contract,60502
http://statistics.data.gov.uk/id/local-authority/12UE,Huntingdonshire District Council,203313,REDACTED,84526,14/08/2023,ARJ008271,REDACTED,17/08/2023,-622.55,-3112.75,-3735.3,Hinchingbrooke Park Cafe,Sale Of Food & Drink,51209
http://statistics.data.gov.uk/id/local-authority/12UE,Huntingdonshire District Council,203313,REDACTED,84526,14/08/2023,ARJ008271,REDACTED,17/08/2023,0,-1173,-1173,Hinchingbrooke Park Cafe,Sale Of Food & Drink,51209
http://statistics.data.gov.uk/id/local-authority/12UE,Huntingdonshire District Council,203313,REDACTED,84526,14/08/2023,ARJ008271,REDACTED,17/08/2023,698.43,3492.12,4190.55,Hinchingbrooke Park Cafe,Sale Of Food & Drink,51209
http://statistics.data.gov.uk/id/local-authority/12UE,Huntingdonshire District Council,203313,REDACTED,84526,14/08/2023,ARJ008271,REDACTED,17/08/2023,-644.4,-3222,-3866.4,Hinchingbrooke Park Cafe,Sale Of Food & Drink,51209
http://statistics.data.gov.uk/id/local-authority/12UE,Huntingdonshire District Council,203313,REDACTED,84526,14/08/2023,ARJ008271,REDACTED,17/08/2023,0,-549.2,-549.2,Hinchingbrooke Park Cafe,Sale Of Food & Drink,51209
http://statistics.data.gov.uk/id/local-authority/12UE,Huntingdonshire District Council,203313,REDACTED,84526,14/08/2023,ARJ008271,REDACTED,17/08/2023,619.72,3098.59,3718.31,Hinchingbrooke Park Cafe,Sale Of Food & Drink,51209
http://statistics.data.gov.uk/id/local-authority/12UE,Huntingdonshire District Council,203313,REDACTED,84526,14/08/2023,ARJ008271,REDACTED,17/08/2023,-694.63,-3473.17,-4167.8,Hinchingbrooke Park Cafe,Sale Of Food & Drink,51209
http://statistics.data.gov.uk/id/local-authority/12UE,Huntingdonshire District Council,203313,REDACTED,84526,14/08/2023,ARJ008271,REDACTED,17/08/2023,0,-1666.8,-1666.8,Hinchingbrooke Park Cafe,Sale Of Food & Drink,51209
http://statistics.data.gov.uk/id/local-authority/12UE,Huntingdonshire District Council,203313,REDACTED,84526,14/08/2023,ARJ008271,REDACTED,17/08/2023,822.35,4111.75,4934.1,Hinchingbrooke Park Cafe,Sale Of Food & Drink,51209
http://statistics.data.gov.uk/id/local-authority/12UE,Huntingdonshire District Council,203313,REDACTED,84526,14/08/2023,ARJ008271,REDACTED,17/08/2023,-646.22,-3231.08,-3877.3,Hinchingbrooke Park Cafe,Sale Of Food & Drink,51209
http://statistics.data.gov.uk/id/local-authority/12UE,Huntingdonshire District Council,203313,REDACTED,84526,14/08/2023,ARJ008271,REDACTED,17/08/2023,0,-789.1,-789.1,Hinchingbrooke Park Cafe,Sale Of Food & Drink,51209
http://statistics.data.gov.uk/id/local-authority/12UE,Huntingdonshire District Council,203313,REDACTED,84526,14/08/2023,ARJ008271,REDACTED,17/08/2023,643.32,3216.58,3859.9,Hinchingbrooke Park Cafe,Sale Of Food & Drink,51209
http://statistics.data.gov.uk/id/local-authority/12UE,Huntingdonshire District Council,203313,REDACTED,84526,14/08/2023,ARJ008271,REDACTED,17/08/2023,-169.17,-845.83,-1015,Hinchingbrooke Park Cafe,Sale Of Food & Drink,51209
http://statistics.data.gov.uk/id/local-authority/12UE,Huntingdonshire District Council,203313,REDACTED,84526,14/08/2023,ARJ008271,REDACTED,17/08/2023,-140.77,-703.83,-844.6,Hinchingbrooke Park Cafe,Sale Of Food & Drink,51209
http://statistics.data.gov.uk/id/local-authority/12UE,Huntingdonshire District Council,203313,REDACTED,84526,14/08/2023,ARJ008271,REDACTED,17/08/2023,-213.62,-1068.08,-1281.7,Hinchingbrooke Park Cafe,Sale Of Food & Drink,51209
http://statistics.data.gov.uk/id/local-authority/12UE,Huntingdonshire District Council,203313,REDACTED,84526,14/08/2023,ARJ008271,REDACTED,17/08/2023,-256.28,-1281.42,-1537.7,Hinchingbrooke Park Cafe,Sale Of Food & Drink,51209
http://statistics.data.gov.uk/id/local-authority/12UE,Huntingdonshire District Council,203313,REDACTED,84526,14/08/2023,ARJ008271,REDACTED,17/08/2023,-116.75,-583.75,-700.5,Hinchingbrooke Park Cafe,Sale Of Food & Drink,51209
http://statistics.data.gov.uk/id/local-authority/12UE,Huntingdonshire District Council,203313,REDACTED,84526,14/08/2023,ARJ008271,REDACTED,17/08/2023,-55.88,-279.42,-335.3,Hinchingbrooke Park Cafe,Sale Of Food & Drink,51209
http://statistics.data.gov.uk/id/local-authority/12UE,Huntingdonshire District Council,203313,REDACTED,84526,14/08/2023,ARJ008271,REDACTED,17/08/2023,-128.35,-641.75,-770.1,Hinchingbrooke Park Cafe,Sale Of Food & Drink,51209
http://statistics.data.gov.uk/id/local-authority/12UE,Huntingdonshire District Council,200542,MIRAMAR ENGINEERING LTD MIRAMAR ENGINEERING LTD,82872,06/07/2023,11349,HCP Replacement System,27/07/2023,90,450,540,Hinchingbrooke Park Cafe,Maintenance - Building,60201
http://statistics.data.gov.uk/id/local-authority/12UE,Huntingdonshire District Council,202135,TOTAL GAS AND POWER LTD,85096,06/08/2023,309173716/23,HCP Caf� Jul23,31/08/2023,262.94,1314.72,1577.66,Hinchingbrooke Park Cafe,Electricity,60303
http://statistics.data.gov.uk/id/local-authority/12UE,Huntingdonshire District Council,202135,TOTAL GAS AND POWER LTD,84146,09/07/2023,306356374/23,HCP Caf� Jun23,10/08/2023,257.1,1285.51,1542.61,Hinchingbrooke Park Cafe,Electricity,60303
http://statistics.data.gov.uk/id/local-authority/12UE,Huntingdonshire District Council,202135,TOTAL GAS AND POWER LTD,86623,10/09/2023,313259480/23,HCP Cafe Aug23,28/09/2023,146.8,733.97,880.77,Hinchingbrooke Park Cafe,Electricity,60303
http://statistics.data.gov.uk/id/local-authority/12UE,Huntingdonshire District Council,200384,HUNTINGDON BEEKEEPERS ASSOCIATION HUNTINGDON BEEKEEPERS ASSOCIATION,85842,06/09/2023,HDC HCP AUG HONEY,HCP HONEY AUG,28/09/2023,0,336.6,336.6,Hinchingbrooke Park Cafe,Goods For Resale,61400
http://statistics.data.gov.uk/id/local-authority/12UE,Huntingdonshire District Council,200571,NISBETS NISBETS,86031,31/08/2023,27435763,HCP CATERING,21/09/2023,90.58,452.92,543.5,Hinchingbrooke Park Cafe,Materials,61709
http://statistics.data.gov.uk/id/local-authority/12UE,Huntingdonshire District Council,200434,JADE SECURITY SERVICES LTD JADE SECURITY SERVICES LTD,85828,31/08/2023,6140,Ops Car Park Aug 23,21/09/2023,10.8,54,64.8,Hinchingbrooke Park Cafe,Contract Charges ,61800
http://statistics.data.gov.uk/id/local-authority/12UE,Huntingdonshire District Council,200434,JADE SECURITY SERVICES LTD JADE SECURITY SERVICES LTD,84052,31/07/2023,5914,Cash Collection Jul23,24/08/2023,5.4,27,32.4,Hinchingbrooke Park Cafe,Contract Charges ,61800
http://statistics.data.gov.uk/id/local-authority/12UE,Huntingdonshire District Council,200434,JADE SECURITY SERVICES LTD JADE SECURITY SERVICES LTD,84699,30/06/2023,5803,Cash Collections Jun23,17/08/2023,5.4,27,32.4,Hinchingbrooke Park Cafe,Contract Charges ,61800
http://statistics.data.gov.uk/id/local-authority/12UE,Huntingdonshire District Council,200462,KING BROS KING BROS,86041,29/08/2023,265532,hcp snacks,21/09/2023,0,615.02,615.02,Hinchingbrooke Park Cafe,Catering Supplies,61900
http://statistics.data.gov.uk/id/local-authority/12UE,Huntingdonshire District Council,200462,KING BROS KING BROS,86041,29/08/2023,265532,hcp snacks,21/09/2023,267.04,1335.19,1602.23,Hinchingbrooke Park Cafe,Catering Supplies,61900
http://statistics.data.gov.uk/id/local-authority/12UE,Huntingdonshire District Council,200462,KING BROS KING BROS,83789,10/07/2023,259208,HCP Catering/Vending Supplies,03/08/2023,148.23,741.13,889.36,Hinchingbrooke Park Cafe,Catering Supplies,61900
http://statistics.data.gov.uk/id/local-authority/12UE,Huntingdonshire District Council,200462,KING BROS KING BROS,83789,10/07/2023,259208,HCP Catering/Vending Supplies,03/08/2023,0,433.73,433.73,Hinchingbrooke Park Cafe,Catering Supplies,61900
http://statistics.data.gov.uk/id/local-authority/12UE,Huntingdonshire District Council,200462,KING BROS KING BROS,85025,17/08/2023,264262,HCP CATERING,07/09/2023,0,155.95,155.95,Hinchingbrooke Park Cafe,Catering Supplies,61900
http://statistics.data.gov.uk/id/local-authority/12UE,Huntingdonshire District Council,200462,KING BROS KING BROS,85025,17/08/2023,264262,HCP CATERING,07/09/2023,171.49,857.43,1028.92,Hinchingbrooke Park Cafe,Catering Supplies,61900
http://statistics.data.gov.uk/id/local-authority/12UE,Huntingdonshire District Council,200462,KING BROS KING BROS,82584,17/06/2023,255961,HCP Catering/Vending Supplies,07/07/2023,0,145.02,145.02,Hinchingbrooke Park Cafe,Catering Supplies,61900
http://statistics.data.gov.uk/id/local-authority/12UE,Huntingdonshire District Council,200462,KING BROS KING BROS,82584,17/06/2023,255961,HCP Catering/Vending Supplies,07/07/2023,170.89,854.44,1025.33,Hinchingbrooke Park Cafe,Catering Supplies,61900
http://statistics.data.gov.uk/id/local-authority/12UE,Huntingdonshire District Council,200462,KING BROS KING BROS,86047,22/08/2023,264814,hcp snacks,18/09/2023,0,357.32,357.32,Hinchingbrooke Park Cafe,Catering Supplies,61900
http://statistics.data.gov.uk/id/local-authority/12UE,Huntingdonshire District Council,200462,KING BROS KING BROS,86047,22/08/2023,264814,hcp snacks,18/09/2023,115.79,578.96,694.75,Hinchingbrooke Park Cafe,Catering Supplies,61900
http://statistics.data.gov.uk/id/local-authority/12UE,Huntingdonshire District Council,200462,KING BROS KING BROS,84731,10/06/2023,254826,HCP Catering/Vending Supplies,17/08/2023,120.6,603.01,723.61,Hinchingbrooke Park Cafe,Catering Supplies,61900
http://statistics.data.gov.uk/id/local-authority/12UE,Huntingdonshire District Council,200462,KING BROS KING BROS,84731,10/06/2023,254826,HCP Catering/Vending Supplies,17/08/2023,0,332.9,332.9,Hinchingbrooke Park Cafe,Catering Supplies,61900
http://statistics.data.gov.uk/id/local-authority/12UE,Huntingdonshire District Council,200462,KING BROS KING BROS,84935,25/07/2023,261335,HCP CATERING,24/08/2023,90.75,453.74,544.49,Hinchingbrooke Park Cafe,Catering Supplies,61900
http://statistics.data.gov.uk/id/local-authority/12UE,Huntingdonshire District Council,200462,KING BROS KING BROS,84935,25/07/2023,261335,HCP CATERING,24/08/2023,0,461.39,461.39,Hinchingbrooke Park Cafe,Catering Supplies,61900
http://statistics.data.gov.uk/id/local-authority/12UE,Huntingdonshire District Council,200462,KING BROS KING BROS,86312,14/08/2023,263748,HCP Catering/Vending Supplies,21/09/2023,0,378.11,378.11,Hinchingbrooke Park Cafe,Catering Supplies,61900
http://statistics.data.gov.uk/id/local-authority/12UE,Huntingdonshire District Council,200462,KING BROS KING BROS,86312,14/08/2023,263748,HCP Catering/Vending Supplies,21/09/2023,101.63,508.16,609.79,Hinchingbrooke Park Cafe,Catering Supplies,61900
http://statistics.data.gov.uk/id/local-authority/12UE,Huntingdonshire District Council,200462,KING BROS KING BROS,83970,21/07/2023,260995,HCP Catering/Vending Supplies,10/08/2023,0,228.18,228.18,Hinchingbrooke Park Cafe,Catering Supplies,61900
http://statistics.data.gov.uk/id/local-authority/12UE,Huntingdonshire District Council,200462,KING BROS KING BROS,83970,21/07/2023,260995,HCP Catering/Vending Supplies,10/08/2023,85.41,427.03,512.44,Hinchingbrooke Park Cafe,Catering Supplies,61900
http://statistics.data.gov.uk/id/local-authority/12UE,Huntingdonshire District Council,200462,KING BROS KING BROS,83790,08/07/2023,259072,HCP Catering/Vending Supplies,03/08/2023,0,165.07,165.07,Hinchingbrooke Park Cafe,Catering Supplies,61900
http://statistics.data.gov.uk/id/local-authority/12UE,Huntingdonshire District Council,200462,KING BROS KING BROS,83790,08/07/2023,259072,HCP Catering/Vending Supplies,03/08/2023,95.37,476.86,572.23,Hinchingbrooke Park Cafe,Catering Supplies,61900
http://statistics.data.gov.uk/id/local-authority/12UE,Huntingdonshire District Council,200462,KING BROS KING BROS,83969,26/07/2023,261482,HCP Catering/Vending Supplies,17/08/2023,0,201.04,201.04,Hinchingbrooke Park Cafe,Catering Supplies,61900
http://statistics.data.gov.uk/id/local-authority/12UE,Huntingdonshire District Council,200462,KING BROS KING BROS,83969,26/07/2023,261482,HCP Catering/Vending Supplies,17/08/2023,85.39,426.94,512.33,Hinchingbrooke Park Cafe,Catering Supplies,61900
http://statistics.data.gov.uk/id/local-authority/12UE,Huntingdonshire District Council,200462,KING BROS KING BROS,86022,31/08/2023,265969,HCP CATERING,21/09/2023,0,436.72,436.72,Hinchingbrooke Park Cafe,Catering Supplies,61900
http://statistics.data.gov.uk/id/local-authority/12UE,Huntingdonshire District Council,200462,KING BROS KING BROS,86022,31/08/2023,265969,HCP CATERING,21/09/2023,33.83,169.16,202.99,Hinchingbrooke Park Cafe,Catering Supplies,61900
http://statistics.data.gov.uk/id/local-authority/12UE,Huntingdonshire District Council,200462,KING BROS KING BROS,86045,23/08/2023,265027,,18/09/2023,0,87.13,87.13,Hinchingbrooke Park Cafe,Catering Supplies,61900
http://statistics.data.gov.uk/id/local-authority/12UE,Huntingdonshire District Council,200462,KING BROS KING BROS,86045,23/08/2023,265027,,18/09/2023,99.69,498.44,598.13,Hinchingbrooke Park Cafe,Catering Supplies,61900
http://statistics.data.gov.uk/id/local-authority/12UE,Huntingdonshire District Council,200462,KING BROS KING BROS,82961,24/06/2023,256973,HCP Catering/Vending Supplies,13/07/2023,0,340.69,340.69,Hinchingbrooke Park Cafe,Catering Supplies,61900
http://statistics.data.gov.uk/id/local-authority/12UE,Huntingdonshire District Council,200462,KING BROS KING BROS,82961,24/06/2023,256973,HCP Catering/Vending Supplies,13/07/2023,48.87,244.37,293.24,Hinchingbrooke Park Cafe,Catering Supplies,61900
http://statistics.data.gov.uk/id/local-authority/12UE,Huntingdonshire District Council,200462,KING BROS KING BROS,84936,01/08/2023,262188,HCP CATERING,24/08/2023,40.04,200.21,240.25,Hinchingbrooke Park Cafe,Catering Supplies,61900
http://statistics.data.gov.uk/id/local-authority/12UE,Huntingdonshire District Council,200462,KING BROS KING BROS,84936,01/08/2023,262188,HCP CATERING,24/08/2023,0,369.76,369.76,Hinchingbrooke Park Cafe,Catering Supplies,61900
http://statistics.data.gov.uk/id/local-authority/12UE,Huntingdonshire District Council,200462,KING BROS KING BROS,83754,19/07/2023,260565,hcp catering,10/08/2023,0,416.09,416.09,Hinchingbrooke Park Cafe,Catering Supplies,61900
http://statistics.data.gov.uk/id/local-authority/12UE,Huntingdonshire District Council,200462,KING BROS KING BROS,83754,19/07/2023,260565,hcp catering,10/08/2023,30.36,151.78,182.14,Hinchingbrooke Park Cafe,Catering Supplies,61900
http://statistics.data.gov.uk/id/local-authority/12UE,Huntingdonshire District Council,200462,KING BROS KING BROS,86314,10/08/2023,263352,HCP Catering/Vending Supplies,21/09/2023,0,192.54,192.54,Hinchingbrooke Park Cafe,Catering Supplies,61900
http://statistics.data.gov.uk/id/local-authority/12UE,Huntingdonshire District Council,200462,KING BROS KING BROS,86314,10/08/2023,263352,HCP Catering/Vending Supplies,21/09/2023,69.5,347.49,416.99,Hinchingbrooke Park Cafe,Catering Supplies,61900
http://statistics.data.gov.uk/id/local-authority/12UE,Huntingdonshire District Council,200462,KING BROS KING BROS,85026,12/08/2023,263691,HCP CATERING,31/08/2023,0,370.22,370.22,Hinchingbrooke Park Cafe,Catering Supplies,61900
http://statistics.data.gov.uk/id/local-authority/12UE,Huntingdonshire District Council,200462,KING BROS KING BROS,85026,12/08/2023,263691,HCP CATERING,31/08/2023,33.61,168.03,201.64,Hinchingbrooke Park Cafe,Catering Supplies,61900
http://statistics.data.gov.uk/id/local-authority/12UE,Huntingdonshire District Council,200462,KING BROS KING BROS,84730,04/07/2023,258133,HCP Catering/Vending Supplies,17/08/2023,0,354.37,354.37,Hinchingbrooke Park Cafe,Catering Supplies,61900
http://statistics.data.gov.uk/id/local-authority/12UE,Huntingdonshire District Council,200462,KING BROS KING BROS,84730,04/07/2023,258133,HCP Catering/Vending Supplies,17/08/2023,36.18,180.9,217.08,Hinchingbrooke Park Cafe,Catering Supplies,61900
http://statistics.data.gov.uk/id/local-authority/12UE,Huntingdonshire District Council,200462,KING BROS KING BROS,86026,05/09/2023,266651,HCP CATERING,28/09/2023,0,170.09,170.09,Hinchingbrooke Park Cafe,Catering Supplies,61900
http://statistics.data.gov.uk/id/local-authority/12UE,Huntingdonshire District Council,200462,KING BROS KING BROS,86026,05/09/2023,266651,HCP CATERING,28/09/2023,71.38,356.88,428.26,Hinchingbrooke Park Cafe,Catering Supplies,61900
http://statistics.data.gov.uk/id/local-authority/12UE,Huntingdonshire District Council,200462,KING BROS KING BROS,86048,21/08/2023,264603,hcp snacks,18/09/2023,0,211.67,211.67,Hinchingbrooke Park Cafe,Catering Supplies,61900
http://statistics.data.gov.uk/id/local-authority/12UE,Huntingdonshire District Council,200462,KING BROS KING BROS,86048,21/08/2023,264603,hcp snacks,18/09/2023,61.95,309.74,371.69,Hinchingbrooke Park Cafe,Catering Supplies,61900
http://statistics.data.gov.uk/id/local-authority/12UE,Huntingdonshire District Council,200462,KING BROS KING BROS,82960,26/06/2023,257009,HCP Catering/Vending Supplies,21/07/2023,0,141.83,141.83,Hinchingbrooke Park Cafe,Catering Supplies,61900
http://statistics.data.gov.uk/id/local-authority/12UE,Huntingdonshire District Council,200462,KING BROS KING BROS,82960,26/06/2023,257009,HCP Catering/Vending Supplies,21/07/2023,64.64,323.19,387.83,Hinchingbrooke Park Cafe,Catering Supplies,61900
http://statistics.data.gov.uk/id/local-authority/12UE,Huntingdonshire District Council,200462,KING BROS KING BROS,86027,04/09/2023,266444,HCP CATERING,28/09/2023,0,165.23,165.23,Hinchingbrooke Park Cafe,Catering Supplies,61900
http://statistics.data.gov.uk/id/local-authority/12UE,Huntingdonshire District Council,200462,KING BROS KING BROS,86027,04/09/2023,266444,HCP CATERING,28/09/2023,57.67,288.36,346.03,Hinchingbrooke Park Cafe,Catering Supplies,61900
http://statistics.data.gov.uk/id/local-authority/12UE,Huntingdonshire District Council,200462,KING BROS KING BROS,82581,12/06/2023,254921,HCP Catering/Vending Supplies,07/07/2023,0,142.68,142.68,Hinchingbrooke Park Cafe,Catering Supplies,61900
http://statistics.data.gov.uk/id/local-authority/12UE,Huntingdonshire District Council,200462,KING BROS KING BROS,82581,12/06/2023,254921,HCP Catering/Vending Supplies,07/07/2023,61.89,309.43,371.32,Hinchingbrooke Park Cafe,Catering Supplies,61900
http://statistics.data.gov.uk/id/local-authority/12UE,Huntingdonshire District Council,200462,KING BROS KING BROS,86044,25/08/2023,265361,hcp catering,18/09/2023,0,186.98,186.98,Hinchingbrooke Park Cafe,Catering Supplies,61900
http://statistics.data.gov.uk/id/local-authority/12UE,Huntingdonshire District Council,200462,KING BROS KING BROS,86044,25/08/2023,265361,hcp catering,18/09/2023,47.33,236.63,283.96,Hinchingbrooke Park Cafe,Catering Supplies,61900
http://statistics.data.gov.uk/id/local-authority/12UE,Huntingdonshire District Council,200462,KING BROS KING BROS,86024,02/09/2023,266344,HCP CATERING,21/09/2023,0,110.06,110.06,Hinchingbrooke Park Cafe,Catering Supplies,61900
http://statistics.data.gov.uk/id/local-authority/12UE,Huntingdonshire District Council,200462,KING BROS KING BROS,86024,02/09/2023,266344,HCP CATERING,21/09/2023,56.73,283.66,340.39,Hinchingbrooke Park Cafe,Catering Supplies,61900
http://statistics.data.gov.uk/id/local-authority/12UE,Huntingdonshire District Council,200462,KING BROS KING BROS,84933,29/07/2023,261969,HCP CATERING,24/08/2023,0,37.63,37.63,Hinchingbrooke Park Cafe,Catering Supplies,61900
http://statistics.data.gov.uk/id/local-authority/12UE,Huntingdonshire District Council,200462,KING BROS KING BROS,84933,29/07/2023,261969,HCP CATERING,24/08/2023,56.44,282.22,338.66,Hinchingbrooke Park Cafe,Catering Supplies,61900
http://statistics.data.gov.uk/id/local-authority/12UE,Huntingdonshire District Council,200462,KING BROS KING BROS,84934,27/07/2023,261644,HCP CATERING,24/08/2023,0,24.82,24.82,Hinchingbrooke Park Cafe,Catering Supplies,61900
http://statistics.data.gov.uk/id/local-authority/12UE,Huntingdonshire District Council,200462,KING BROS KING BROS,84934,27/07/2023,261644,HCP CATERING,24/08/2023,58.87,294.36,353.23,Hinchingbrooke Park Cafe,Catering Supplies,61900
http://statistics.data.gov.uk/id/local-authority/12UE,Huntingdonshire District Council,200462,KING BROS KING BROS,83897,29/06/2023,257628,HCP Catering/Vending Supplies,03/08/2023,0,148.43,148.43,Hinchingbrooke Park Cafe,Catering Supplies,61900
http://statistics.data.gov.uk/id/local-authority/12UE,Huntingdonshire District Council,200462,KING BROS KING BROS,83897,29/06/2023,257628,HCP Catering/Vending Supplies,03/08/2023,33.68,168.38,202.06,Hinchingbrooke Park Cafe,Catering Supplies,61900
http://statistics.data.gov.uk/id/local-authority/12UE,Huntingdonshire District Council,200617,PILGRIM FOODSERVICE LTD PILGRIM FOODSERVICE LTD,82586,17/06/2023,628886,HCP Catering/Vending Supplies,07/07/2023,0,77.37,77.37,Hinchingbrooke Park Cafe,Catering Supplies,61900
http://statistics.data.gov.uk/id/local-authority/12UE,Huntingdonshire District Council,200617,PILGRIM FOODSERVICE LTD PILGRIM FOODSERVICE LTD,82586,17/06/2023,628886,HCP Catering/Vending Supplies,07/07/2023,47.73,238.64,286.37,Hinchingbrooke Park Cafe,Catering Supplies,61900
http://statistics.data.gov.uk/id/local-authority/12UE,Huntingdonshire District Council,200462,KING BROS KING BROS,82955,05/07/2023,258503,HCP Catering/Vending Supplies,27/07/2023,0,142.08,142.08,Hinchingbrooke Park Cafe,Catering Supplies,61900
http://statistics.data.gov.uk/id/local-authority/12UE,Huntingdonshire District Council,200462,KING BROS KING BROS,82955,05/07/2023,258503,HCP Catering/Vending Supplies,27/07/2023,27.88,139.4,167.28,Hinchingbrooke Park Cafe,Catering Supplies,61900
http://statistics.data.gov.uk/id/local-authority/12UE,Huntingdonshire District Council,200462,KING BROS KING BROS,84932,02/08/2023,262333,HCP CATERING,24/08/2023,0,164.99,164.99,Hinchingbrooke Park Cafe,Catering Supplies,61900
http://statistics.data.gov.uk/id/local-authority/12UE,Huntingdonshire District Council,200462,KING BROS KING BROS,84932,02/08/2023,262333,HCP CATERING,24/08/2023,19.49,97.44,116.93,Hinchingbrooke Park Cafe,Catering Supplies,61900
http://statistics.data.gov.uk/id/local-authority/12UE,Huntingdonshire District Council,200542,MIRAMAR ENGINEERING LTD MIRAMAR ENGINEERING LTD,82872,06/07/2023,11349,HCP Replacement System,27/07/2023,415.63,2078.17,2493.8,Hinchingbrooke Park Cafe,Catering Equipment,61901
http://statistics.data.gov.uk/id/local-authority/12UE,Huntingdonshire District Council,203313,REDACTED,84526,14/08/2023,ARJ008271,REDACTED,17/08/2023,0,-228.5,-228.5,Hinchingbrooke Park Management,Sales - Souvenirs,51215
http://statistics.data.gov.uk/id/local-authority/12UE,Huntingdonshire District Council,203313,REDACTED,84526,14/08/2023,ARJ008271,REDACTED,17/08/2023,0,-115.5,-115.5,Hinchingbrooke Park Management,Sales - Souvenirs,51215
http://statistics.data.gov.uk/id/local-authority/12UE,Huntingdonshire District Council,203313,REDACTED,84526,14/08/2023,ARJ008271,REDACTED,17/08/2023,0,-146,-146,Hinchingbrooke Park Management,Sales - Souvenirs,51215
http://statistics.data.gov.uk/id/local-authority/12UE,Huntingdonshire District Council,203313,REDACTED,84526,14/08/2023,ARJ008271,REDACTED,17/08/2023,0,-9,-9,Hinchingbrooke Park Management,Sales - Souvenirs,51215
http://statistics.data.gov.uk/id/local-authority/12UE,Huntingdonshire District Council,203313,REDACTED,84526,14/08/2023,ARJ008271,REDACTED,17/08/2023,0,-141.5,-141.5,Hinchingbrooke Park Management,Sales - Souvenirs,51215
http://statistics.data.gov.uk/id/local-authority/12UE,Huntingdonshire District Council,203313,REDACTED,84526,14/08/2023,ARJ008271,REDACTED,17/08/2023,0,-88,-88,Hinchingbrooke Park Management,Sales - Souvenirs,51215
http://statistics.data.gov.uk/id/local-authority/12UE,Huntingdonshire District Council,203313,REDACTED,84526,14/08/2023,ARJ008271,REDACTED,17/08/2023,0,-70.5,-70.5,Hinchingbrooke Park Management,Sales - Souvenirs,51215
http://statistics.data.gov.uk/id/local-authority/12UE,Huntingdonshire District Council,203313,REDACTED,84526,14/08/2023,ARJ008271,REDACTED,17/08/2023,0,-88,-88,Hinchingbrooke Park Management,Sales - Souvenirs,51215
http://statistics.data.gov.uk/id/local-authority/12UE,Huntingdonshire District Council,200913,WAVE  ANGLIAN WATER BUSINESS,83671,14/07/2023,12292985,HCP Apr-Jul23,31/07/2023,0,478.63,478.63,Hinchingbrooke Park Management,Water And Sewerage,60302
http://statistics.data.gov.uk/id/local-authority/12UE,Huntingdonshire District Council,202135,TOTAL GAS AND POWER LTD,85095,06/08/2023,309174101/23,HCP Visitors Centre Jul23,31/08/2023,16.19,323.84,340.03,Hinchingbrooke Park Management,Electricity,60303
http://statistics.data.gov.uk/id/local-authority/12UE,Huntingdonshire District Council,202135,TOTAL GAS AND POWER LTD,84145,09/07/2023,306356540/23,HCP Visitors Centre Jun23,10/08/2023,16.11,322.18,338.29,Hinchingbrooke Park Management,Electricity,60303
http://statistics.data.gov.uk/id/local-authority/12UE,Huntingdonshire District Council,200390,HEVEY BUILDING SUPPLIES LTD HUNTINGDON TIMBER SUPPLIES,81981,19/06/2023,912481,HCP Motorway Fence Rails,13/07/2023,329.73,1648.65,1978.38,Hinchingbrooke Park Management,Materials,61709
http://statistics.data.gov.uk/id/local-authority/12UE,Huntingdonshire District Council,200390,HEVEY BUILDING SUPPLIES LTD HUNTINGDON TIMBER SUPPLIES,86221,10/07/2023,920743,HCP Materials,21/09/2023,170.91,854.55,1025.46,Hinchingbrooke Park Management,Materials,61709
http://statistics.data.gov.uk/id/local-authority/12UE,Huntingdonshire District Council,200390,HEVEY BUILDING SUPPLIES LTD HUNTINGDON TIMBER SUPPLIES,86221,10/07/2023,920743,HCP Materials,21/09/2023,4.01,20.03,24.04,Hinchingbrooke Park Management,Materials,61709
http://statistics.data.gov.uk/id/local-authority/12UE,Huntingdonshire District Council,203046,Berry bpi recycled products,82787,12/06/2023,CIN381953,HCP Brown Moulded Bench,13/07/2023,93.78,468.9,562.68,Hinchingbrooke Park Management,Materials,61709
http://statistics.data.gov.uk/id/local-authority/12UE,Huntingdonshire District Council,200390,HEVEY BUILDING SUPPLIES LTD HUNTINGDON TIMBER SUPPLIES,84733,13/04/2023,886647,hcp materials,17/08/2023,53.49,267.45,320.94,Hinchingbrooke Park Management,Materials,61709
http://statistics.data.gov.uk/id/local-authority/12UE,Huntingdonshire District Council,200390,HEVEY BUILDING SUPPLIES LTD HUNTINGDON TIMBER SUPPLIES,83910,02/05/2023,893665,HCP Materials,03/08/2023,50.61,253.03,303.64,Hinchingbrooke Park Management,Materials,61709
http://statistics.data.gov.uk/id/local-authority/12UE,Huntingdonshire District Council,202834,MCVEIGH PARKER & CO LTD,86748,07/09/2023,28930,Paxton Pits NR - Materials,28/09/2023,256.17,1280.86,1537.03,Barford Road Pocket Park,Materials,61709
http://statistics.data.gov.uk/id/local-authority/12UE,Huntingdonshire District Council,202448,FIBREGRID LTD,82222,23/06/2023,100/10027195,Little Paxton NR - Materials,13/07/2023,1431.4,7157,8588.4,Holt Island,Materials,61709
http://statistics.data.gov.uk/id/local-authority/12UE,Huntingdonshire District Council,200390,HEVEY BUILDING SUPPLIES LTD HUNTINGDON TIMBER SUPPLIES,84649,30/06/2023,917066,Paxton Pits NR Materials,17/08/2023,84.91,424.56,509.47,Holt Island,Materials,61709
http://statistics.data.gov.uk/id/local-authority/12UE,Huntingdonshire District Council,200060,ARTHUR IBBETT LTD ARTHUR IBBETT LTD,85671,31/08/2023,159103,Little Paxton NR - Materials,21/09/2023,20,100,120,Holt Island,Equipment,61713
http://statistics.data.gov.uk/id/local-authority/12UE,Huntingdonshire District Council,200542,MIRAMAR ENGINEERING LTD MIRAMAR ENGINEERING LTD,83143,27/01/2023,10196,Various Sites Service Contract,17/07/2023,70,350,420,Paxton Pits,Maintenance - Building,60201
http://statistics.data.gov.uk/id/local-authority/12UE,Huntingdonshire District Council,202135,TOTAL GAS AND POWER LTD,85114,06/08/2023,309173430/23,Little Paxton VC Jul23,31/08/2023,239.25,1196.24,1435.49,Paxton Pits,Electricity,60303
http://statistics.data.gov.uk/id/local-authority/12UE,Huntingdonshire District Council,202135,TOTAL GAS AND POWER LTD,86644,10/09/2023,313259314/23,Little Paxton VC Aug23,28/09/2023,107.11,535.57,642.68,Paxton Pits,Electricity,60303
http://statistics.data.gov.uk/id/local-authority/12UE,Huntingdonshire District Council,202135,TOTAL GAS AND POWER LTD,84112,09/07/2023,306356286/23,Little Paxton VC Jun23,10/08/2023,88.74,443.7,532.44,Paxton Pits,Electricity,60303
http://statistics.data.gov.uk/id/local-authority/12UE,Huntingdonshire District Council,202488,FILCRIS LTD,86183,31/07/2023,54559,Contract Charge,21/09/2023,80,400,480,Paxton Pits,Contract Charges (Transport),60900
http://statistics.data.gov.uk/id/local-authority/12UE,Huntingdonshire District Council,201961,NAVIGATORS & GENERAL,82855,07/06/2023,YI 0039106N 2023,Commercial Vessel Policy Renewal,10/07/2023,0,736.74,736.74,Paxton Pits,Vechicle Insurance Premiums,61000
http://statistics.data.gov.uk/id/local-authority/12UE,Huntingdonshire District Council,200282,ESPO ESPO,86355,08/09/2023,7079612,Paxton Pits NR - Cleaning Products,28/09/2023,1.3,6.5,7.8,Paxton Pits,Cleaning Materials,61300
http://statistics.data.gov.uk/id/local-authority/12UE,Huntingdonshire District Council,200282,ESPO ESPO,86355,08/09/2023,7079612,Paxton Pits NR - Cleaning Products,28/09/2023,1.3,6.5,7.8,Paxton Pits,Cleaning Materials,61300
http://statistics.data.gov.uk/id/local-authority/12UE,Huntingdonshire District Council,200282,ESPO ESPO,86355,08/09/2023,7079612,Paxton Pits NR - Cleaning Products,28/09/2023,2.34,11.7,14.04,Paxton Pits,Cleaning Materials,61300
http://statistics.data.gov.uk/id/local-authority/12UE,Huntingdonshire District Council,200282,ESPO ESPO,86355,08/09/2023,7079612,Paxton Pits NR - Cleaning Products,28/09/2023,5.41,27.05,32.46,Paxton Pits,Cleaning Materials,61300
http://statistics.data.gov.uk/id/local-authority/12UE,Huntingdonshire District Council,200697,ROYAL INDUSTRIAL DOORS LTD ROYAL INDUSTRIAL DOORS LTD,84484,05/07/2023,33192,Paxton Pits VC Maintenance,14/08/2023,83,415,498,Paxton Pits,"Maintenance - Equipment, Furniture And Materials",61702
http://statistics.data.gov.uk/id/local-authority/12UE,Huntingdonshire District Council,200060,ARTHUR IBBETT LTD ARTHUR IBBETT LTD,85343,23/08/2023,158635,call out engineer,18/09/2023,50.45,252.25,302.7,Paxton Pits,"Maintenance - Equipment, Furniture And Materials",61702
http://statistics.data.gov.uk/id/local-authority/12UE,Huntingdonshire District Council,200060,ARTHUR IBBETT LTD ARTHUR IBBETT LTD,83979,31/07/2023,157202,Little Paxton NR - Specialist Equipment,24/08/2023,166.4,832,998.4,Paxton Pits,Specialist Equipment For Service Provision,61704
http://statistics.data.gov.uk/id/local-authority/12UE,Huntingdonshire District Council,202834,MCVEIGH PARKER & CO LTD,84132,02/08/2023,23320,Clipex Fencing,24/08/2023,790.41,3952.05,4742.46,Paxton Pits,Materials,61709
http://statistics.data.gov.uk/id/local-authority/12UE,Huntingdonshire District Council,202834,MCVEIGH PARKER & CO LTD,84132,02/08/2023,23320,Clipex Fencing,24/08/2023,1455.08,7275.37,8730.45,Paxton Pits,Materials,61709
http://statistics.data.gov.uk/id/local-authority/12UE,Huntingdonshire District Council,202834,MCVEIGH PARKER & CO LTD,84132,02/08/2023,23320,Clipex Fencing,24/08/2023,790.7,3953.48,4744.18,Paxton Pits,Materials,61709
http://statistics.data.gov.uk/id/local-authority/12UE,Huntingdonshire District Council,202834,MCVEIGH PARKER & CO LTD,84132,02/08/2023,23320,Clipex Fencing,24/08/2023,942.75,4713.72,5656.47,Paxton Pits,Materials,61709
http://statistics.data.gov.uk/id/local-authority/12UE,Huntingdonshire District Council,202834,MCVEIGH PARKER & CO LTD,84132,02/08/2023,23320,Clipex Fencing,24/08/2023,78.18,390.89,469.07,Paxton Pits,Materials,61709
http://statistics.data.gov.uk/id/local-authority/12UE,Huntingdonshire District Council,202834,MCVEIGH PARKER & CO LTD,84132,02/08/2023,23320,Clipex Fencing,24/08/2023,152.24,761.22,913.46,Paxton Pits,Materials,61709
http://statistics.data.gov.uk/id/local-authority/12UE,Huntingdonshire District Council,202834,MCVEIGH PARKER & CO LTD,84132,02/08/2023,23320,Clipex Fencing,24/08/2023,973.4,4867,5840.4,Paxton Pits,Materials,61709
http://statistics.data.gov.uk/id/local-authority/12UE,Huntingdonshire District Council,202834,MCVEIGH PARKER & CO LTD,84132,02/08/2023,23320,Clipex Fencing,24/08/2023,11.46,57.28,68.74,Paxton Pits,Materials,61709
http://statistics.data.gov.uk/id/local-authority/12UE,Huntingdonshire District Council,202834,MCVEIGH PARKER & CO LTD,84132,02/08/2023,23320,Clipex Fencing,24/08/2023,44.91,224.54,269.45,Paxton Pits,Materials,61709
http://statistics.data.gov.uk/id/local-authority/12UE,Huntingdonshire District Council,202834,MCVEIGH PARKER & CO LTD,84132,02/08/2023,23320,Clipex Fencing,24/08/2023,79.04,395.21,474.25,Paxton Pits,Materials,61709
http://statistics.data.gov.uk/id/local-authority/12UE,Huntingdonshire District Council,202834,MCVEIGH PARKER & CO LTD,84132,02/08/2023,23320,Clipex Fencing,24/08/2023,0,0,0,Paxton Pits,Materials,61709
http://statistics.data.gov.uk/id/local-authority/12UE,Huntingdonshire District Council,202834,MCVEIGH PARKER & CO LTD,84133,02/08/2023,23321,Clipex Fencing,24/08/2023,30.96,154.79,185.75,Paxton Pits,Materials,61709
http://statistics.data.gov.uk/id/local-authority/12UE,Huntingdonshire District Council,202834,MCVEIGH PARKER & CO LTD,84133,02/08/2023,23321,Clipex Fencing,24/08/2023,0,0,0,Paxton Pits,Materials,61709
http://statistics.data.gov.uk/id/local-authority/12UE,Huntingdonshire District Council,202834,MCVEIGH PARKER & CO LTD,84133,02/08/2023,23321,Clipex Fencing,24/08/2023,309.59,1547.95,1857.54,Paxton Pits,Materials,61709
http://statistics.data.gov.uk/id/local-authority/12UE,Huntingdonshire District Council,202834,MCVEIGH PARKER & CO LTD,84133,02/08/2023,23321,Clipex Fencing,24/08/2023,569.93,2849.62,3419.55,Paxton Pits,Materials,61709
http://statistics.data.gov.uk/id/local-authority/12UE,Huntingdonshire District Council,202834,MCVEIGH PARKER & CO LTD,84133,02/08/2023,23321,Clipex Fencing,24/08/2023,309.7,1548.52,1858.22,Paxton Pits,Materials,61709
http://statistics.data.gov.uk/id/local-authority/12UE,Huntingdonshire District Council,202834,MCVEIGH PARKER & CO LTD,84133,02/08/2023,23321,Clipex Fencing,24/08/2023,369.26,1846.27,2215.53,Paxton Pits,Materials,61709
http://statistics.data.gov.uk/id/local-authority/12UE,Huntingdonshire District Council,202834,MCVEIGH PARKER & CO LTD,84133,02/08/2023,23321,Clipex Fencing,24/08/2023,30.62,153.11,183.73,Paxton Pits,Materials,61709
http://statistics.data.gov.uk/id/local-authority/12UE,Huntingdonshire District Council,202834,MCVEIGH PARKER & CO LTD,84133,02/08/2023,23321,Clipex Fencing,24/08/2023,59.63,298.15,357.78,Paxton Pits,Materials,61709
http://statistics.data.gov.uk/id/local-authority/12UE,Huntingdonshire District Council,202834,MCVEIGH PARKER & CO LTD,84133,02/08/2023,23321,Clipex Fencing,24/08/2023,381.26,1906.32,2287.58,Paxton Pits,Materials,61709
http://statistics.data.gov.uk/id/local-authority/12UE,Huntingdonshire District Council,202834,MCVEIGH PARKER & CO LTD,84133,02/08/2023,23321,Clipex Fencing,24/08/2023,4.49,22.43,26.92,Paxton Pits,Materials,61709
http://statistics.data.gov.uk/id/local-authority/12UE,Huntingdonshire District Council,202834,MCVEIGH PARKER & CO LTD,84133,02/08/2023,23321,Clipex Fencing,24/08/2023,17.59,87.96,105.55,Paxton Pits,Materials,61709
http://statistics.data.gov.uk/id/local-authority/12UE,Huntingdonshire District Council,202488,FILCRIS LTD,84063,01/08/2023,54541,Paxton Pits NR - Materials,24/08/2023,100.02,500.08,600.1,Paxton Pits,Materials,61709
http://statistics.data.gov.uk/id/local-authority/12UE,Huntingdonshire District Council,202488,FILCRIS LTD,84063,01/08/2023,54541,Paxton Pits NR - Materials,24/08/2023,145.2,726,871.2,Paxton Pits,Materials,61709
http://statistics.data.gov.uk/id/local-authority/12UE,Huntingdonshire District Council,202488,FILCRIS LTD,84063,01/08/2023,54541,Paxton Pits NR - Materials,24/08/2023,525.8,2629,3154.8,Paxton Pits,Materials,61709
http://statistics.data.gov.uk/id/local-authority/12UE,Huntingdonshire District Council,202834,MCVEIGH PARKER & CO LTD,86748,07/09/2023,28930,Paxton Pits NR - Materials,28/09/2023,0,0,0,Paxton Pits,Materials,61709
http://statistics.data.gov.uk/id/local-authority/12UE,Huntingdonshire District Council,200390,HEVEY BUILDING SUPPLIES LTD HUNTINGDON TIMBER SUPPLIES,84907,09/08/2023,932045,HCP SAWN TREATED,31/08/2023,116.49,582.44,698.93,Paxton Pits,Materials,61709
http://statistics.data.gov.uk/id/local-authority/12UE,Huntingdonshire District Council,200314,FRONTIER AGRICULTURAL LTD FRONTIER AGRICULTURAL LTD,82849,17/04/2023,471512,Pollen Mix/Seeds/WWHC,10/07/2023,0,120,120,Paxton Pits,Materials,61709
http://statistics.data.gov.uk/id/local-authority/12UE,Huntingdonshire District Council,200314,FRONTIER AGRICULTURAL LTD FRONTIER AGRICULTURAL LTD,82849,17/04/2023,471512,Pollen Mix/Seeds/WWHC,10/07/2023,0,208.5,208.5,Paxton Pits,Materials,61709
http://statistics.data.gov.uk/id/local-authority/12UE,Huntingdonshire District Council,200314,FRONTIER AGRICULTURAL LTD FRONTIER AGRICULTURAL LTD,82849,17/04/2023,471512,Pollen Mix/Seeds/WWHC,10/07/2023,0,154,154,Paxton Pits,Materials,61709
http://statistics.data.gov.uk/id/local-authority/12UE,Huntingdonshire District Council,201817,PEARCE SEEDS LLP,83191,18/04/2023,SI137357,Arable Field Wheat Seeds,17/07/2023,0,430,430,Paxton Pits,Materials,61709
http://statistics.data.gov.uk/id/local-authority/12UE,Huntingdonshire District Council,202448,FIBREGRID LTD,84550,09/08/2023,100 / 10027974,Little Paxton NR - Materials,31/08/2023,768.6,3843,4611.6,Paxton Pits,Equipment,61713
http://statistics.data.gov.uk/id/local-authority/12UE,Huntingdonshire District Council,202448,FIBREGRID LTD,84550,09/08/2023,100 / 10027974,Little Paxton NR - Materials,31/08/2023,168.3,841.5,1009.8,Paxton Pits,Equipment,61713
http://statistics.data.gov.uk/id/local-authority/12UE,Huntingdonshire District Council,202448,FIBREGRID LTD,84550,09/08/2023,100 / 10027974,Little Paxton NR - Materials,31/08/2023,67.08,335.4,402.48,Paxton Pits,Equipment,61713
http://statistics.data.gov.uk/id/local-authority/12UE,Huntingdonshire District Council,200060,ARTHUR IBBETT LTD ARTHUR IBBETT LTD,83525,10/07/2023,155726,Paxton Pits Equipment,03/08/2023,183,915,1098,Paxton Pits,Equipment,61713
http://statistics.data.gov.uk/id/local-authority/12UE,Huntingdonshire District Council,202411,Noticeboard Company Cumbria Limited,83842,14/07/2023,7161,Noticeboards,03/08/2023,76.34,381.7,458.04,Paxton Pits,Equipment,61713
http://statistics.data.gov.uk/id/local-authority/12UE,Huntingdonshire District Council,202411,Noticeboard Company Cumbria Limited,83842,14/07/2023,7161,Noticeboards,03/08/2023,91.96,459.8,551.76,Paxton Pits,Equipment,61713
http://statistics.data.gov.uk/id/local-authority/12UE,Huntingdonshire District Council,200372,HIRE OR BUY GROUP LTD HIRE OR BUY GROUP LTD,81969,17/06/2023,1109508,HCP Materials,07/07/2023,54,270,324,Paxton Pits,Equipment,61713
http://statistics.data.gov.uk/id/local-authority/12UE,Huntingdonshire District Council,200372,HIRE OR BUY GROUP LTD HIRE OR BUY GROUP LTD,81969,17/06/2023,1109508,HCP Materials,07/07/2023,9.54,47.69,57.23,Paxton Pits,Equipment,61713
http://statistics.data.gov.uk/id/local-authority/12UE,Huntingdonshire District Council,200372,HIRE OR BUY GROUP LTD HIRE OR BUY GROUP LTD,81969,17/06/2023,1109508,HCP Materials,07/07/2023,73.25,366.25,439.5,Paxton Pits,Equipment,61713
http://statistics.data.gov.uk/id/local-authority/12UE,Huntingdonshire District Council,200372,HIRE OR BUY GROUP LTD HIRE OR BUY GROUP LTD,81969,17/06/2023,1109508,HCP Materials,07/07/2023,11,55,66,Paxton Pits,Equipment,61713
http://statistics.data.gov.uk/id/local-authority/12UE,Huntingdonshire District Council,200060,ARTHUR IBBETT LTD ARTHUR IBBETT LTD,82730,30/06/2023,155059,Little Paxton NR Materials,21/07/2023,28.33,141.66,169.99,Paxton Pits,Equipment,61713
http://statistics.data.gov.uk/id/local-authority/12UE,Huntingdonshire District Council,200060,ARTHUR IBBETT LTD ARTHUR IBBETT LTD,82730,30/06/2023,155059,Little Paxton NR Materials,21/07/2023,0.72,3.6,4.32,Paxton Pits,Equipment,61713
http://statistics.data.gov.uk/id/local-authority/12UE,Huntingdonshire District Council,200060,ARTHUR IBBETT LTD ARTHUR IBBETT LTD,82730,30/06/2023,155059,Little Paxton NR Materials,21/07/2023,1.4,7,8.4,Paxton Pits,Equipment,61713
http://statistics.data.gov.uk/id/local-authority/12UE,Huntingdonshire District Council,200060,ARTHUR IBBETT LTD ARTHUR IBBETT LTD,82730,30/06/2023,155059,Little Paxton NR Materials,21/07/2023,1.68,8.38,10.06,Paxton Pits,Equipment,61713
http://statistics.data.gov.uk/id/local-authority/12UE,Huntingdonshire District Council,200060,ARTHUR IBBETT LTD ARTHUR IBBETT LTD,82730,30/06/2023,155059,Little Paxton NR Materials,21/07/2023,4.59,22.95,27.54,Paxton Pits,Equipment,61713
http://statistics.data.gov.uk/id/local-authority/12UE,Huntingdonshire District Council,200060,ARTHUR IBBETT LTD ARTHUR IBBETT LTD,82730,30/06/2023,155059,Little Paxton NR Materials,21/07/2023,7.5,37.5,45,Paxton Pits,Equipment,61713
http://statistics.data.gov.uk/id/local-authority/12UE,Huntingdonshire District Council,200060,ARTHUR IBBETT LTD ARTHUR IBBETT LTD,82730,30/06/2023,155059,Little Paxton NR Materials,21/07/2023,18.36,91.8,110.16,Paxton Pits,Equipment,61713
http://statistics.data.gov.uk/id/local-authority/12UE,Huntingdonshire District Council,200282,ESPO ESPO,86355,08/09/2023,7079612,Paxton Pits NR - Cleaning Products,28/09/2023,43.68,218.4,262.08,Paxton Pits,Equipment,61713
http://statistics.data.gov.uk/id/local-authority/12UE,Huntingdonshire District Council,200060,ARTHUR IBBETT LTD ARTHUR IBBETT LTD,85671,31/08/2023,159103,Little Paxton NR - Materials,21/09/2023,33.86,169.28,203.14,Paxton Pits,Equipment,61713
http://statistics.data.gov.uk/id/local-authority/12UE,Huntingdonshire District Council,200107,Black Wolf Master Locksmith Limited,83811,14/07/2023,507,Paxton Pits NR Keys,03/08/2023,11.67,58.33,70,Paxton Pits,Equipment,61713
http://statistics.data.gov.uk/id/local-authority/12UE,Huntingdonshire District Council,200107,Black Wolf Master Locksmith Limited,83811,14/07/2023,507,Paxton Pits NR Keys,03/08/2023,11.67,58.33,70,Paxton Pits,Equipment,61713
http://statistics.data.gov.uk/id/local-authority/12UE,Huntingdonshire District Council,200107,Black Wolf Master Locksmith Limited,83811,14/07/2023,507,Paxton Pits NR Keys,03/08/2023,30,150,180,Paxton Pits,Equipment,61713
http://statistics.data.gov.uk/id/local-authority/12UE,Huntingdonshire District Council,203134,Zilkin Ltd,85917,15/08/2023,INV-1300,PXT PITS CLOTHING,14/09/2023,138.32,691.6,829.92,Paxton Pits,"Clothes, Uniform And Laundry",62000
http://statistics.data.gov.uk/id/local-authority/12UE,Huntingdonshire District Council,202633,REDACTED,86034,29/08/2023,19,hcp gift shop,21/09/2023,0,444.6,444.6,Hinchingbrook Park Gift Shop,Goods For Resale,61400
http://statistics.data.gov.uk/id/local-authority/12UE,Huntingdonshire District Council,200384,HUNTINGDON BEEKEEPERS ASSOCIATION HUNTINGDON BEEKEEPERS ASSOCIATION,86311,10/08/2023,HCP CAFE HONEY JUL23,HCP Cafe Honey Jul23,21/09/2023,0,405.9,405.9,Hinchingbrook Park Gift Shop,Goods For Resale,61400
http://statistics.data.gov.uk/id/local-authority/12UE,Huntingdonshire District Council,202692,REDACTED,86032,31/08/2023,18,REDACTED,21/09/2023,0,301.77,301.77,Hinchingbrook Park Gift Shop,Goods For Resale,61400
http://statistics.data.gov.uk/id/local-authority/12UE,Huntingdonshire District Council,200333,GB SPORT & LEISURE UK LTD GB SPORT & LEISURE UK LTD,83664,20/07/2023,13059,Equipment/Materials,10/08/2023,15.9,79.52,95.42,Parks & Open Spaces,Cash - Bank Account,10001
http://statistics.data.gov.uk/id/local-authority/12UE,Huntingdonshire District Council,203212,Reids Playground Maintenance Ltd,83372,25/05/2023,556,Playground Equipment,21/07/2023,1978,9889.99,11867.99,Parks & Open Spaces,Maintenance - Building,60201
http://statistics.data.gov.uk/id/local-authority/12UE,Huntingdonshire District Council,203212,Reids Playground Maintenance Ltd,84432,16/06/2023,5609,riverside park new netting,14/08/2023,348,1740,2088,Parks & Open Spaces,Maintenance - Building,60201
http://statistics.data.gov.uk/id/local-authority/12UE,Huntingdonshire District Council,200429,J BREHENY CIVIL ENGINEERING LTD J BREHENY CIVIL ENGINEERING LTD,83834,18/07/2023,HM/5106/36718,Priory Park Electrical Extension,10/08/2023,3136.4,15682,18818.4,Parks & Open Spaces,Site Alterations And Materials,60273
http://statistics.data.gov.uk/id/local-authority/12UE,Huntingdonshire District Council,200429,J BREHENY CIVIL ENGINEERING LTD J BREHENY CIVIL ENGINEERING LTD,86346,18/07/2023,HM/5106/36717,OPS HILL RISE PATHS,21/09/2023,744,3720,4464,Parks & Open Spaces,Site Alterations And Materials,60273
http://statistics.data.gov.uk/id/local-authority/12UE,Huntingdonshire District Council,200478,LATTENBURY SERVICES LATTENBURY SERVICES,82394,21/06/2023,19514,Mooring Works  - Regatta Meadow,13/07/2023,396,1980,2376,Parks & Open Spaces,Site Alterations And Materials,60273
http://statistics.data.gov.uk/id/local-authority/12UE,Huntingdonshire District Council,201492,KEEP BRITAIN TIDY,84616,21/02/2023,SI003381,PRIORY OARK GREEN FLAG AWARD 23-24,17/08/2023,84.8,424,508.8,Parks & Open Spaces,Site Alterations And Materials,60273
http://statistics.data.gov.uk/id/local-authority/12UE,Huntingdonshire District Council,201118,ST NEOTS FENCING COMPANY LTD,84028,03/08/2023,INV-4859A,ROWELL WAY SAWTRY,24/08/2023,62.23,311.15,373.38,Parks & Open Spaces,Site Alterations And Materials,60273
http://statistics.data.gov.uk/id/local-authority/12UE,Huntingdonshire District Council,201118,ST NEOTS FENCING COMPANY LTD,85031,25/08/2023,INV-4869A,OPS SAPLEY PARK,18/09/2023,55.69,278.43,334.12,Parks & Open Spaces,Site Alterations And Materials,60273
http://statistics.data.gov.uk/id/local-authority/12UE,Huntingdonshire District Council,202699,SMS ENERGY SERVICES LTD,86256,11/06/2023,ESL-SINV041747,MOP Contract,21/09/2023,33.4,167,200.4,Parks & Open Spaces,Electricity,60303
http://statistics.data.gov.uk/id/local-authority/12UE,Huntingdonshire District Council,202699,SMS ENERGY SERVICES LTD,86256,11/06/2023,ESL-SINV041747,MOP Contract,21/09/2023,33.4,167,200.4,Parks & Open Spaces,Electricity,60303
http://statistics.data.gov.uk/id/local-authority/12UE,Huntingdonshire District Council,202918,NPower Commercial Gas Ltd,82902,05/07/2023,IN07633097,Views Common Footpath Apr-Jun23,13/07/2023,2.05,10.26,12.31,Parks & Open Spaces,Electricity,60303
http://statistics.data.gov.uk/id/local-authority/12UE,Huntingdonshire District Council,202918,NPower Commercial Gas Ltd,82902,05/07/2023,IN07633097,Views Common Footpath Apr-Jun23,13/07/2023,22.37,447.31,469.68,Parks & Open Spaces,Electricity,60303
http://statistics.data.gov.uk/id/local-authority/12UE,Huntingdonshire District Council,200373,HI-SPEC FACILITIES SERVICES PLC HI-SPEC FACILITIES SERVICES PLC,83816,30/06/2023,52293,Cleaning Contract Jun23,03/08/2023,193.6,967.98,1161.58,Parks & Open Spaces,Cleaning Contract,60502
http://statistics.data.gov.uk/id/local-authority/12UE,Huntingdonshire District Council,200373,HI-SPEC FACILITIES SERVICES PLC HI-SPEC FACILITIES SERVICES PLC,84201,31/07/2023,52679,Cleaning Services Jul23,21/09/2023,193.6,967.98,1161.58,Parks & Open Spaces,Cleaning Contract,60502
http://statistics.data.gov.uk/id/local-authority/12UE,Huntingdonshire District Council,200451,K & M LIGHTING SERVICES LTD K & M LIGHTING SERVICES LTD,85035,19/08/2023,8213,FACILITIES SKATEBOARD PARK,07/09/2023,96,480,576,Parks & Open Spaces,"Maintenance - Equipment, Furniture And Materials",61702
http://statistics.data.gov.uk/id/local-authority/12UE,Huntingdonshire District Council,203295,MH Goals,84955,22/08/2023,16632,ops goal package,18/09/2023,2533.8,12669,15202.8,Parks & Open Spaces,Playground Equipment,61706
http://statistics.data.gov.uk/id/local-authority/12UE,Huntingdonshire District Council,201118,ST NEOTS FENCING COMPANY LTD,83454,14/07/2023,INV-4840A,Supply Rospa Approved Gate,03/08/2023,334.5,1672.5,2007,Parks & Open Spaces,Playground Equipment,61706
http://statistics.data.gov.uk/id/local-authority/12UE,Huntingdonshire District Council,200429,J BREHENY CIVIL ENGINEERING LTD J BREHENY CIVIL ENGINEERING LTD,83582,18/07/2023,HM/5106/36720,Stokes Drive Repair Works,10/08/2023,206,1030,1236,Parks & Open Spaces,Playground Equipment,61706
http://statistics.data.gov.uk/id/local-authority/12UE,Huntingdonshire District Council,200333,GB SPORT & LEISURE UK LTD GB SPORT & LEISURE UK LTD,83664,20/07/2023,13059,Equipment/Materials,10/08/2023,23.04,115.2,138.24,Parks & Open Spaces,Playground Equipment,61706
http://statistics.data.gov.uk/id/local-authority/12UE,Huntingdonshire District Council,200333,GB SPORT & LEISURE UK LTD GB SPORT & LEISURE UK LTD,83664,20/07/2023,13059,Equipment/Materials,10/08/2023,136,680,816,Parks & Open Spaces,Playground Equipment,61706
http://statistics.data.gov.uk/id/local-authority/12UE,Huntingdonshire District Council,200333,GB SPORT & LEISURE UK LTD GB SPORT & LEISURE UK LTD,83852,27/07/2023,13106,Playground Equipment,17/08/2023,12.8,64,76.8,Parks & Open Spaces,Playground Equipment,61706
http://statistics.data.gov.uk/id/local-authority/12UE,Huntingdonshire District Council,200333,GB SPORT & LEISURE UK LTD GB SPORT & LEISURE UK LTD,83852,27/07/2023,13106,Playground Equipment,17/08/2023,7.6,38,45.6,Parks & Open Spaces,Playground Equipment,61706
http://statistics.data.gov.uk/id/local-authority/12UE,Huntingdonshire District Council,200333,GB SPORT & LEISURE UK LTD GB SPORT & LEISURE UK LTD,83852,27/07/2023,13106,Playground Equipment,17/08/2023,52.12,260.6,312.72,Parks & Open Spaces,Playground Equipment,61706
http://statistics.data.gov.uk/id/local-authority/12UE,Huntingdonshire District Council,200333,GB SPORT & LEISURE UK LTD GB SPORT & LEISURE UK LTD,83852,27/07/2023,13106,Playground Equipment,17/08/2023,8.84,44.2,53.04,Parks & Open Spaces,Playground Equipment,61706
http://statistics.data.gov.uk/id/local-authority/12UE,Huntingdonshire District Council,200333,GB SPORT & LEISURE UK LTD GB SPORT & LEISURE UK LTD,83852,27/07/2023,13106,Playground Equipment,17/08/2023,8.14,40.68,48.82,Parks & Open Spaces,Playground Equipment,61706
http://statistics.data.gov.uk/id/local-authority/12UE,Huntingdonshire District Council,200685,Origin Amenity Solutions Ltd Origin Amenity Solutions Ltd,86278,25/05/2023,OASO064123,Postage & Courier,21/09/2023,0,1640,1640,Parks & Open Spaces,Materials,61709
http://statistics.data.gov.uk/id/local-authority/12UE,Huntingdonshire District Council,202377,LOCAL PARTNERSHIPS LLP,83119,31/03/2023,CI0645,Consultancy Fees,13/07/2023,1324.13,6620.65,7944.78,Parks & Open Spaces,Subcontractors,62401
http://statistics.data.gov.uk/id/local-authority/12UE,Huntingdonshire District Council,202059,AQUASERVE MANAGEMENT LTD,84712,08/08/2023,AQMAN22050,Riverside Park Water Risk Assessment,31/08/2023,425.7,2128.5,2554.2,Parks & Open Spaces,Site Alterations And Materials,60273
http://statistics.data.gov.uk/id/local-authority/12UE,Huntingdonshire District Council,202059,AQUASERVE MANAGEMENT LTD,84650,26/06/2023,AQMAN22062,Galley Hill Farm Water Risk Assessment,17/08/2023,206.34,1031.68,1238.02,Parks & Open Spaces,Site Alterations And Materials,60273
http://statistics.data.gov.uk/id/local-authority/12UE,Huntingdonshire District Council,202059,AQUASERVE MANAGEMENT LTD,84628,25/06/2023,AQMAN22061,G'manchester Rec Water Risk Assessment,17/08/2023,170.28,851.4,1021.68,Parks & Open Spaces,Site Alterations And Materials,60273
